Workbook

Sheet Orçamento
O3: UNIDADE ESCOLAR | X3: CÓDIGO INEP
O4: COLÉGIO ESTADUAL PROFESSORA MARIA PEREIRA VASCONCELOS | X4: 52047318
A6: Nmax | O6: OBRA | S6: DATA | X6: CIDADE
A7: =MAX($C$18:$C$501) -> 3 | O7: AMPLIAÇÃO E REFORMA | S7: 2020-08-27 | X7: LUZIÂNIA
O9: CRE | R9: ENDEREÇO | X9: REFERÊNCIA AGETOP
O10: LUZIÂNIA | R10: RUA 92 QD 256 LOTE A SN JARDIM INGA, PQ. ESTRELA DALVA IX, CEP:72853-256 | X10: DEZ/18 | Y10: ONERADA
O12: ÁREA EXISTENTE (M²) | R12: ÁREA A CONSTRUIR (M²) | S12: ÁREA TOTAL CONSTRUÍDA (M²) | X12: REFERÊNCIA SINAPI
R13: 380.52 | X13: MAR/19 | Y13: ONERADA
L15: FILTRO | O15: PLANILHA ORÇAMENTÁRIA
A16: Nível E | B16: Save Nivel | C16: Nível C | D16: Altura | E16: n1 | F16: n2 | G16: n3 | H16: n4 | I16: n5 | J16: Czero | K16: Cnível | L16: ↓ | M16: Nível | N16: Nível Corrigido | O16: ITEM | P16: TABELA | Q16: CODIGO | R16: DESCRIÇÃO DOS SERVIÇOS | S16: UNID | T16: QUANT | U16: REPET | V16: QUANT TOTAL | W16: MAT | X16: MO | Y16: VALOR UNIT | Z16: VALOR TOTAL | AA16: OBSERVAÇÕES¹
A17: =CHOOSE(1+LOG(1+2*(ORÇAMENTO.Nivel="Nível 1")+4*(ORÇAMENTO.Nivel="Nível 2")+8*(ORÇAMENTO.Nivel="Nível 3")+16*(ORÇAMENTO.Nivel="Nível 4")+32*(ORÇAMENTO.Nivel="Serviço"),2),0,1,2,3,4,"S") -> S | B17: =IF(OR(C17="s",C17=0),OFFSET(B17,-1,0),C17) -> Save Nivel | C17: =IF(OFFSET(C17,-1,0)="L",1,IF(OFFSET(C17,-1,0)=1,2,IF(OR(A17="s",A17=0),"S",IF(AND(OFFSET(C17,-1,0)=2,A17=4),3,IF(AND(OR(OFFSET(C17,-1,0)="s",OFFSET(C17,-1,0)=0),A17<>"s",A17>OFFSET(B17,-1,0)),OFFSET(B17,-1,0),A17))))) -> S | D17: =IF(OR(C17="S",C17=0),0,IF(ISERROR(K17),J17,SMALL(J17:K17,1))) -> 0 | E17: =IF($C17=1,OFFSET(E17,-1,0)+1,OFFSET(E17,-1,0)) -> n1 | F17: =IF($C17=1,0,IF($C17=2,OFFSET(F17,-1,0)+1,OFFSET(F17,-1,0))) -> n2 | G17: =IF(AND($C17<=2,$C17<>0),0,IF($C17=3,OFFSET(G17,-1,0)+1,OFFSET(G17,-1,0))) -> n3 | H17: =IF(AND($C17<=3,$C17<>0),0,IF($C17=4,OFFSET(H17,-1,0)+1,OFFSET(H17,-1,0))) -> n4 | I17: =IF(AND($C17<=4,$C17<>0),0,IF(AND($C17="S",$Y17>0),OFFSET(I17,-1,0)+1,OFFSET(I17,-1,0))) -> n5 | J17: =IF(OR($C17="S",$C17=0),0,MATCH(0,OFFSET($D17,1,$C17,ROW($C$501)-ROW($C17)),0)) -> 0 | K17: =IF(OR($C17="S",$C17=0),0,MATCH(OFFSET($D17,0,$C17)+1,OFFSET($D17,1,$C17,ROW($C$501)-ROW($C17)),0)) -> 0 | M17: Serviço | N17: Serviço | O17: - | P17: SINAPI | R17: (sem código) | S17: - | U17: REPET | V17: - | W17: 0 | X17: 0 | Y17: 0 | Z17: -
A18: 0 | C18: L | D18: =COUNTA(OFFSET(D18,1,0):D$501) -> 482 | E18: =LEFT(O19,1)-1 -> 0 | L18: F | M18: LOTE | N18: LOTE | O18: AMPLIAÇÃO E REFORMA - COLÉGIO ESTADUAL PROFESSORA MARIA PEREIRA VASCONCELOS | Z18: 805842.16
A19: 1 | B19: =IF(OR(C19="s",C19=0),OFFSET(B19,-1,0),C19) -> 1 | C19: =IF(OFFSET(C19,-1,0)="L",1,IF(OFFSET(C19,-1,0)=1,2,IF(OR(A19="s",A19=0),"S",IF(AND(OFFSET(C19,-1,0)=2,A19=4),3,IF(AND(OR(OFFSET(C19,-1,0)="s",OFFSET(C19,-1,0)=0),A19<>"s",A19>OFFSET(B19,-1,0)),OFFSET(B19,-1,0),A19))))) -> 1 | D19: =IF(OR(C19="S",C19=0),0,IF(ISERROR(K19),J19,SMALL(J19:K19,1))) -> 362 | E19: =IF($C19=1,OFFSET(E19,-1,0)+1,OFFSET(E19,-1,0)) -> 1 | F19: =IF($C19=1,0,IF($C19=2,OFFSET(F19,-1,0)+1,OFFSET(F19,-1,0))) -> 0 | G19: =IF(AND($C19<=2,$C19<>0),0,IF($C19=3,OFFSET(G19,-1,0)+1,OFFSET(G19,-1,0))) -> 0 | H19: =IF(AND($C19<=3,$C19<>0),0,IF($C19=4,OFFSET(H19,-1,0)+1,OFFSET(H19,-1,0))) -> 0 | I19: 0 | J19: =IF(OR($C19="S",$C19=0),0,MATCH(0,OFFSET($D19,1,$C19,ROW($C$501)-ROW($C19)),0)) -> 482 | K19: =IF(OR($C19="S",$C19=0),0,MATCH(OFFSET($D19,0,$C19)+1,OFFSET($D19,1,$C19,ROW($C$501)-ROW($C19)),0)) -> 362 | L19: F | M19: Nível 1 | N19: Nível 1 | O19: 1. | P19: AGETOP | R19: REFORMA | S19: UN | T19: 1 | U19: 1 | V19: 1
A20: 2 | B20: =IF(OR(C20="s",C20=0),OFFSET(B20,-1,0),C20) -> 2 | C20: =IF(OFFSET(C20,-1,0)="L",1,IF(OFFSET(C20,-1,0)=1,2,IF(OR(A20="s",A20=0),"S",IF(AND(OFFSET(C20,-1,0)=2,A20=4),3,IF(AND(OR(OFFSET(C20,-1,0)="s",OFFSET(C20,-1,0)=0),A20<>"s",A20>OFFSET(B20,-1,0)),OFFSET(B20,-1,0),A20))))) -> 2 | D20: =IF(OR(C20="S",C20=0),0,IF(ISERROR(K20),J20,SMALL(J20:K20,1))) -> 21 | E20: =IF($C20=1,OFFSET(E20,-1,0)+1,OFFSET(E20,-1,0)) -> 1 | F20: =IF($C20=1,0,IF($C20=2,OFFSET(F20,-1,0)+1,OFFSET(F20,-1,0))) -> 1 | G20: =IF(AND($C20<=2,$C20<>0),0,IF($C20=3,OFFSET(G20,-1,0)+1,OFFSET(G20,-1,0))) -> 0 | H20: =IF(AND($C20<=3,$C20<>0),0,IF($C20=4,OFFSET(H20,-1,0)+1,OFFSET(H20,-1,0))) -> 0 | I20: 0 | J20: 361 | K20: 21 | L20: F | M20: Nível 2 | N20: Nível 2 | O20: 1.1. | P20: AGETOP | R20: SERVIÇOS PRELIMINARES | S20: - | U20: 1 | V20: -
A21: S | B21: 2 | C21: S | D21: 0 | E21: 1 | F21: 1 | G21: 0 | H21: 0 | I21: 0 | J21: 0 | K21: 0 | L21: F | M21: Serviço | N21: Serviço | O21: 1.1.0.1. | P21: SINAPI | Q21: 97661 | R21: REMOÇÃO DE CABOS ELÉTRICOS, DE FORMA MANUAL, SEM REAPROVEITAMENTO. AF_12/2017 | S21: M | T21: 2500 | U21: 1 | V21: 2500
A22: S | B22: 2 | C22: S | D22: 0 | E22: 1 | F22: 1 | G22: 0 | H22: 0 | I22: 0 | J22: 0 | K22: 0 | L22: F | M22: Serviço | N22: Serviço | O22: 1.1.0.2. | P22: SINAPI | Q22: 97640 | R22: REMOÇÃO DE FORROS DE DRYWALL, PVC E FIBROMINERAL, DE FORMA MANUAL, SEM REAPROVEITAMENTO. AF_12/2017 | S22: M2 | T22: 204.09 | U22: 1 | V22: 204.09
A23: S | B23: 2 | C23: S | D23: 0 | E23: 1 | F23: 1 | G23: 0 | H23: 0 | I23: 0 | J23: 0 | K23: 0 | L23: F | M23: Serviço | N23: Serviço | O23: 1.1.0.3. | P23: SINAPI | Q23: 97642 | R23: REMOÇÃO DE TRAMA METÁLICA OU DE MADEIRA PARA FORRO, DE FORMA MANUAL, SEM REAPROVEITAMENTO. AF_12/2017 | S23: M2 | T23: 204.09 | U23: 1 | V23: 204.09 | AA23: Serviço incluso na referência acima
A24: S | B24: =IF(OR(C24="s",C24=0),OFFSET(B24,-1,0),C24) -> 2 | C24: =IF(OFFSET(C24,-1,0)="L",1,IF(OFFSET(C24,-1,0)=1,2,IF(OR(A24="s",A24=0),"S",IF(AND(OFFSET(C24,-1,0)=2,A24=4),3,IF(AND(OR(OFFSET(C24,-1,0)="s",OFFSET(C24,-1,0)=0),A24<>"s",A24>OFFSET(B24,-1,0)),OFFSET(B24,-1,0),A24))))) -> S | D24: =IF(OR(C24="S",C24=0),0,IF(ISERROR(K24),J24,SMALL(J24:K24,1))) -> 0 | E24: 1 | F24: 1 | G24: 0 | H24: 0 | I24: 0 | J24: 0 | K24: 0 | L24: F | M24: Serviço | N24: Serviço | O24: 1.1.0.4. | P24: SINAPI | Q24: 97626 | R24: DEMOLIÇÃO DE PILARES E VIGAS EM CONCRETO ARMADO, DE FORMA MANUAL, SEM REAPROVEITAMENTO. AF_12/2017 | S24: M3 | T24: 1.92 | U24: 1 | V24: 1.92
A25: S | B25: 2 | C25: S | D25: 0 | E25: 1 | F25: 1 | G25: 0 | H25: 0 | I25: 0 | J25: 0 | K25: 0 | L25: F | M25: Serviço | N25: Serviço | O25: 1.1.0.5. | P25: AGETOP | Q25: 20101 | R25: DEMOLICAO COBERTURA TELHA CERAMICA C/ TRANSP. ATÉ CB. E CARGA | S25: m2 | T25: 222.19 | U25: 1 | V25: 222.19
A26: S | B26: 2 | C26: S | D26: 0 | E26: 1 | F26: 1 | G26: 0 | H26: 0 | I26: 0 | J26: 0 | K26: 0 | L26: F | M26: Serviço | N26: Serviço | O26: 1.1.0.6. | P26: AGETOP | Q26: 20103 | R26: DEMOLIÇÃO ESTRUTURA EM MADEIRA TELHADO C/ TRANSP. ATÉ CB. E CARGA | S26: m2 | T26: 222.19 | U26: 1 | V26: 222.19
A27: S | B27: 2 | C27: S | D27: 0 | E27: 1 | F27: 1 | G27: 0 | H27: 0 | I27: 0 | J27: 0 | K27: 0 | L27: F | M27: Serviço | N27: Serviço | O27: 1.1.0.7. | P27: SINAPI | Q27: 97645 | R27: REMOÇÃO DE JANELAS, DE FORMA MANUAL, SEM REAPROVEITAMENTO. AF_12/2017 | S27: M2 | T27: 20.22 | U27: 1 | V27: 20.22 | AA27: Referência: AGETOP - 20106
A28: S | B28: 2 | C28: S | D28: 0 | E28: 1 | F28: 1 | G28: 0 | H28: 0 | I28: 0 | J28: 0 | K28: 0 | L28: F | M28: Serviço | N28: Serviço | O28: 1.1.0.8. | P28: SINAPI | Q28: 97644 | R28: REMOÇÃO DE PORTAS, DE FORMA MANUAL, SEM REAPROVEITAMENTO. AF_12/2017 | S28: M2 | T28: 6.21 | U28: 1 | V28: 6.21 | AA28: Referência: AGETOP - 20106
A29: S | B29: 2 | C29: S | D29: 0 | E29: 1 | F29: 1 | G29: 0 | H29: 0 | I29: 0 | J29: 0 | K29: 0 | L29: F | M29: Serviço | N29: Serviço | O29: 1.1.0.9. | P29: AGETOP | Q29: 20112 | R29: DEM.PISO CERAM. INCLUS. RETIRADA DE CONTRAPISO SOBRE LASTRO CONC.C/TR.CB.E CARGA | S29: m2 | T29: 75.28 | U29: 1 | V29: 75.28
A30: S | B30: 2 | C30: S | D30: 0 | E30: 1 | F30: 1 | G30: 0 | H30: 0 | I30: 0 | J30: 0 | K30: 0 | L30: F | M30: Serviço | N30: Serviço | O30: 1.1.0.10. | P30: SINAPI | Q30: 97633 | R30: DEMOLIÇÃO DE REVESTIMENTO CERÂMICO, DE FORMA MANUAL, SEM REAPROVEITAMENTO. AF_12/2017 | S30: M2 | T30: 154.6 | U30: 1 | V30: 154.6 | AA30: Referência: AGETOP - 20115
A31: S | B31: 2 | C31: S | D31: 0 | E31: 1 | F31: 1 | G31: 0 | H31: 0 | I31: 0 | J31: 0 | K31: 0 | L31: F | M31: Serviço | N31: Serviço | O31: 1.1.0.11. | P31: SINAPI | Q31: 97622 | R31: DEMOLIÇÃO DE ALVENARIA DE BLOCO FURADO, DE FORMA MANUAL, SEM REAPROVEITAMENTO. AF_12/2017 | S31: M3 | T31: 2.17 | U31: 1 | V31: 2.17 | AA31: Referência: AGETOP - 20118
A32: S | B32: 2 | C32: S | D32: 0 | E32: 1 | F32: 1 | G32: 0 | H32: 0 | I32: 0 | J32: 0 | K32: 0 | L32: F | M32: Serviço | N32: Serviço | O32: 1.1.0.12. | P32: AGETOP | Q32: 20121 | R32: DEM. MANUAL EM CONCR.SIMPLES C/TR.ATE CB.E CARGA (O.C.) | S32: m3 | T32: 89.4 | U32: 1 | V32: 89.4
A33: S | B33: 2 | C33: S | D33: 0 | E33: 1 | F33: 1 | G33: 0 | H33: 0 | I33: 0 | J33: 0 | K33: 0 | L33: F | M33: Serviço | N33: Serviço | O33: 1.1.0.13. | P33: AGETOP | Q33: 20137 | R33: DEMOLIÇAO BACIA SANITARIA C/ TRANSP. ATÉ CB. E CARGA | S33: Un | T33: 6 | U33: 1 | V33: 6
A34: S | B34: 2 | C34: S | D34: 0 | E34: 1 | F34: 1 | G34: 0 | H34: 0 | I34: 0 | J34: 0 | K34: 0 | L34: F | M34: Serviço | N34: Serviço | O34: 1.1.0.14. | P34: AGETOP | Q34: 20138 | R34: DEMOLIÇAO DE LAVATÓRIO C/ TRANSP. ATÉ CB. E CARGA | S34: Un | T34: 1 | U34: 1 | V34: 1
A35: S | B35: 2 | C35: S | D35: 0 | E35: 1 | F35: 1 | G35: 0 | H35: 0 | I35: 0 | J35: 0 | K35: 0 | L35: F | M35: Serviço | N35: Serviço | O35: 1.1.0.15. | P35: AGETOP | Q35: 20139 | R35: DEMOLIÇAO DE BANCADAS C/ TRANSP. ATÉ CB. E CARGA | S35: m2 | T35: 2.6 | U35: 1 | V35: 2.6
A36: S | B36: 2 | C36: S | D36: 0 | E36: 1 | F36: 1 | G36: 0 | H36: 0 | I36: 0 | J36: 0 | K36: 0 | L36: F | M36: Serviço | N36: Serviço | O36: 1.1.0.16. | P36: AGETOP | Q36: 20140 | R36: DEMOLIÇAO DE VÁLVULA DE DESCARGA C/ TRANSP. ATÉ CB. E CARGA | S36: Un | T36: 6 | U36: 1 | V36: 6
A37: S | B37: 2 | C37: S | D37: 0 | E37: 1 | F37: 1 | G37: 0 | H37: 0 | I37: 0 | J37: 0 | K37: 0 | L37: F | M37: Serviço | N37: Serviço | O37: 1.1.0.17. | P37: AGETOP | Q37: 20146 | R37: DEMOLIÇÃO DE MICTÓRIO C/ TRANSP. ATÉ CB. E CARGA | S37: Un | T37: 2 | U37: 1 | V37: 2
A38: S | B38: 2 | C38: S | D38: 0 | E38: 1 | F38: 1 | G38: 0 | H38: 0 | I38: 0 | J38: 0 | K38: 0 | L38: F | M38: Serviço | N38: Serviço | O38: 1.1.0.18. | P38: AGETOP | Q38: 20163 | R38: DEMOLIÇÃO DAS INSTALAÇÕES HIDROSANITÁRIAS E AFINS C/ TRANSP. ATÉ CB. E CARGA | S38: H | T38: 6 | U38: 1 | V38: 6
A39: S | B39: 2 | C39: S | D39: 0 | E39: 1 | F39: 1 | G39: 0 | H39: 0 | I39: 0 | J39: 0 | K39: 0 | L39: F | M39: Serviço | N39: Serviço | O39: 1.1.0.19. | P39: SINAPI | Q39: 73948/16 | R39: LIMPEZA MANUAL DO TERRENO (C/ RASPAGEM SUPERFICIAL) | S39: M2 | T39: 1106.98 | U39: 1 | V39: 1106.98 | AA39: Referência: AGETOP - 20202
A40: S | B40: 2 | C40: S | D40: 0 | E40: 1 | F40: 1 | G40: 0 | H40: 0 | I40: 0 | J40: 0 | K40: 0 | L40: F | M40: Serviço | N40: Serviço | O40: 1.1.0.20. | P40: SINAPI | Q40: 74209/1 | R40: PLACA DE OBRA EM CHAPA DE ACO GALVANIZADO | S40: M2 | T40: 4.5 | U40: 1 | V40: 4.5 | AA40: Referência: AGETOP - 21301
A41: 2 | B41: 2 | C41: 2 | D41: 5 | E41: 1 | F41: 2 | G41: 0 | H41: 0 | I41: 0 | J41: 340 | K41: 5 | L41: F | M41: Nível 2 | N41: Nível 2 | O41: 1.2. | P41: AGETOP | R41: TRANSPORTES | S41: - | U41: 1 | V41: -
A42: S | B42: 2 | C42: S | D42: 0 | E42: 1 | F42: 2 | G42: 0 | H42: 0 | I42: 0 | J42: 0 | K42: 0 | L42: F | M42: Serviço | N42: Serviço | O42: 1.2.0.1. | P42: SINAPI | Q42: 72900 | R42: TRANSPORTE DE ENTULHO COM CAMINHAO BASCULANTE 6 M3, RODOVIA PAVIMENTADA, DMT 0,5 A 1,0 KM | S42: M3 | T42: 26.64 | U42: 1 | V42: 26.64
A43: S | B43: 2 | C43: S | D43: 0 | E43: 1 | F43: 2 | G43: 0 | H43: 0 | I43: 0 | J43: 0 | K43: 0 | L43: F | M43: Serviço | N43: Serviço | O43: 1.2.0.2. | P43: SINAPI | Q43: 72897 | R43: CARGA MANUAL DE ENTULHO EM CAMINHAO BASCULANTE 6 M3 | S43: M3 | T43: 26.64 | U43: 1 | V43: 26.64
A44: S | B44: 2 | C44: S | D44: 0 | E44: 1 | F44: 2 | G44: 0 | H44: 0 | I44: 0 | J44: 0 | K44: 0 | L44: F | M44: Serviço | N44: Serviço | O44: 1.2.0.3. | P44: SINAPI | Q44: 93358 | R44: ESCAVAÇÃO MANUAL DE VALA COM PROFUNDIDADE MENOR OU IGUAL A 1,30 M. AF_03/2016 | S44: M3 | T44: 20 | U44: 1 | V44: 20 | AA44: Referência: AGETOP - 40101
A45: S | B45: 2 | C45: S | D45: 0 | E45: 1 | F45: 2 | G45: 0 | H45: 0 | I45: 0 | J45: 0 | K45: 0 | L45: F | M45: Serviço | N45: Serviço | O45: 1.2.0.4. | P45: SINAPI | Q45: 96995 | R45: REATERRO MANUAL APILOADO COM SOQUETE. AF_10/2017 | S45: M3 | T45: 20 | U45: 1 | V45: 20 | AA45: Referência: AGETOP - 40902
A46: 2 | B46: 2 | C46: 2 | D46: 9 | E46: 1 | F46: 3 | G46: 0 | H46: 0 | I46: 0 | J46: 335 | K46: 9 | L46: F | M46: Nível 2 | N46: Nível 2 | O46: 1.3. | P46: AGETOP | R46: SERVIÇO EM TERRA | S46: - | U46: 1 | V46: -
A47: S | B47: 2 | C47: S | D47: 0 | E47: 1 | F47: 3 | G47: 0 | H47: 0 | I47: 0 | J47: 0 | K47: 0 | L47: F | M47: Serviço | N47: Serviço | O47: 1.3.0.1. | P47: SINAPI | Q47: 79480 | R47: ESCAVACAO MECANICA CAMPO ABERTO EM SOLO EXCETO ROCHA ATE 2,00M PROFUNDIDADE | S47: M3 | T47: 475.65 | U47: 1 | V47: 475.65 | AA47: Referência: AGETOP - 41004
A48: S | B48: 2 | C48: S | D48: 0 | E48: 1 | F48: 3 | G48: 0 | H48: 0 | I48: 0 | J48: 0 | K48: 0 | L48: F | M48: Serviço | N48: Serviço | O48: 1.3.0.2. | P48: SINAPI | Q48: 72898 | R48: CARGA E DESCARGA MECANIZADAS DE ENTULHO EM CAMINHAO BASCULANTE 6 M3 | S48: M3 | T48: 475.65 | U48: 1 | V48: 475.65 | AA48: Referência: AGETOP - 41005
A49: S | B49: 2 | C49: S | D49: 0 | E49: 1 | F49: 3 | G49: 0 | H49: 0 | I49: 0 | J49: 0 | K49: 0 | L49: F | M49: Serviço | N49: Serviço | O49: 1.3.0.3. | P49: AGETOP | Q49: 41012 | R49: INDENIZAÇÃO DE JAZIDA | S49: m3 | T49: 475.65 | U49: 1 | V49: 475.65
A50: S | B50: 2 | C50: S | D50: 0 | E50: 1 | F50: 3 | G50: 0 | H50: 0 | I50: 0 | J50: 0 | K50: 0 | L50: F | M50: Serviço | N50: Serviço | O50: 1.3.0.4. | P50: AGETOP | Q50: 41006 | R50: TRANSPORTE DE MATERIAL ESCAVADO M3.KM | S50: m3km | T50: 4756.5 | U50: 1 | V50: 4756.5
A51: S | B51: 2 | C51: S | D51: 0 | E51: 1 | F51: 3 | G51: 0 | H51: 0 | I51: 0 | J51: 0 | K51: 0 | L51: F | M51: Serviço | N51: Serviço | O51: 1.3.0.5. | P51: SINAPI | Q51: 74005/2 | R51: COMPACTACAO MECANICA C/ CONTROLE DO GC>=95% DO PN (AREAS) (C/MONIVELADORA 140 HP E ROLO COMPRESSOR VIBRATORIO 80 HP) | S51: M3 | T51: 380.52 | U51: 1 | V51: 380.52 | AA51: Referência: AGETOP - 41008
A52: =CHOOSE(1+LOG(1+2*(ORÇAMENTO.Nivel="Nível 1")+4*(ORÇAMENTO.Nivel="Nível 2")+8*(ORÇAMENTO.Nivel="Nível 3")+16*(ORÇAMENTO.Nivel="Nível 4")+32*(ORÇAMENTO.Nivel="Serviço"),2),0,1,2,3,4,"S") -> S | B52: 2 | C52: S | D52: 0 | E52: 1 | F52: 3 | G52: 0 | H52: 0 | I52: =IF(AND($C52<=4,$C52<>0),0,IF(AND($C52="S",$Y52>0),OFFSET(I52,-1,0)+1,OFFSET(I52,-1,0))) -> 0 | J52: 0 | K52: 0 | L52: F | M52: Serviço | N52: Serviço | O52: 1.3.0.6. | P52: SINAPI | Q52: 96527 | R52: ESCAVAÇÃO MANUAL DE VALA PARA VIGA BALDRAME, COM PREVISÃO DE FÔRMA. AF_06/2017 | S52: M3 | T52: 3.57 | U52: 1 | V52: 3.57 | AA52: Referência: AGETOP - 40101
A53: S | B53: 2 | C53: S | D53: 0 | E53: 1 | F53: 3 | G53: 0 | H53: 0 | I53: 0 | J53: 0 | K53: 0 | L53: F | M53: Serviço | N53: Serviço | O53: 1.3.0.7. | P53: SINAPI | Q53: 96995 | R53: REATERRO MANUAL APILOADO COM SOQUETE. AF_10/2017 | S53: M3 | T53: 1.65 | U53: 1 | V53: 1.65 | AA53: Referência: AGETOP - 40902
A54: S | B54: 2 | C54: S | D54: 0 | E54: =IF($C54=1,OFFSET(E54,-1,0)+1,OFFSET(E54,-1,0)) -> 1 | F54: =IF($C54=1,0,IF($C54=2,OFFSET(F54,-1,0)+1,OFFSET(F54,-1,0))) -> 3 | G54: =IF(AND($C54<=2,$C54<>0),0,IF($C54=3,OFFSET(G54,-1,0)+1,OFFSET(G54,-1,0))) -> 0 | H54: =IF(AND($C54<=3,$C54<>0),0,IF($C54=4,OFFSET(H54,-1,0)+1,OFFSET(H54,-1,0))) -> 0 | I54: 0 | J54: 0 | K54: 0 | L54: F | M54: Serviço | N54: Serviço | O54: 1.3.0.8. | P54: AGETOP | Q54: 41002 | R54: APILOAMENTO | S54: m2 | T54: 893.41 | U54: 1 | V54: 893.41
A55: 2 | B55: =IF(OR(C55="s",C55=0),OFFSET(B55,-1,0),C55) -> 2 | C55: =IF(OFFSET(C55,-1,0)="L",1,IF(OFFSET(C55,-1,0)=1,2,IF(OR(A55="s",A55=0),"S",IF(AND(OFFSET(C55,-1,0)=2,A55=4),3,IF(AND(OR(OFFSET(C55,-1,0)="s",OFFSET(C55,-1,0)=0),A55<>"s",A55>OFFSET(B55,-1,0)),OFFSET(B55,-1,0),A55))))) -> 2 | D55: =IF(OR(C55="S",C55=0),0,IF(ISERROR(K55),J55,SMALL(J55:K55,1))) -> 12 | E55: 1 | F55: 4 | G55: 0 | H55: 0 | I55: 0 | J55: 326 | K55: 12 | L55: F | M55: Nível 2 | N55: Nível 2 | O55: 1.4. | P55: AGETOP | R55: FUNDAÇÕES E SONDAGENS | S55: - | U55: 1 | V55: -
A56: 3 | B56: 3 | C56: 3 | D56: 11 | E56: 1 | F56: 4 | G56: 1 | H56: 0 | I56: 0 | J56: 11 | K56: 84 | L56: F | M56: Nível 3 | N56: Nível 3 | O56: 1.4.1. | P56: SINAPI | R56: ESTACAS E BLOCOS | S56: - | U56: 1 | V56: -
A57: S | B57: 3 | C57: S | D57: 0 | E57: 1 | F57: 4 | G57: 1 | H57: 0 | I57: 0 | J57: 0 | K57: 0 | L57: F | M57: Serviço | N57: Serviço | O57: 1.4.1.1. | P57: SINAPI | Q57: 98230 | R57: ESTACA BROCA DE CONCRETO, DIÂMETRO DE 30 CM, PROFUNDIDADE DE ATÉ 3 M, ESCAVAÇÃO MANUAL COM TRADO CONCHA, NÃO ARMADA. AF_03/2018 | S57: M | T57: 45.5 | U57: 1 | V57: 45.5 | AA57: Referência: AGETOP - 50302
A58: S | B58: 3 | C58: S | D58: 0 | E58: 1 | F58: 4 | G58: 1 | H58: 0 | I58: 0 | J58: 0 | K58: 0 | L58: F | M58: Serviço | N58: Serviço | O58: 1.4.1.2. | P58: SINAPI | Q58: 96522 | R58: ESCAVAÇÃO MANUAL PARA BLOCO DE COROAMENTO OU SAPATA, SEM PREVISÃO DE FÔRMA. AF_06/2017 | S58: M3 | T58: 1.82 | U58: 1 | V58: 1.82 | AA58: Referência: AGETOP - 50901
A59: S | B59: 3 | C59: S | D59: 0 | E59: 1 | F59: 4 | G59: 1 | H59: 0 | I59: 0 | J59: 0 | K59: 0 | L59: F | M59: Serviço | N59: Serviço | O59: 1.4.1.3. | P59: AGETOP | Q59: 50902 | R59: APILOAMENTO (BLOCOS/SAPATAS) | S59: m2 | T59: 2.8 | U59: 1 | V59: 2.8
A60: S | B60: 3 | C60: S | D60: 0 | E60: 1 | F60: 4 | G60: 1 | H60: 0 | I60: 0 | J60: 0 | K60: 0 | L60: F | M60: Serviço | N60: Serviço | O60: 1.4.1.4. | P60: SINAPI | Q60: 94963 | R60: CONCRETO FCK = 15MPA, TRAÇO 1:3,4:3,5 (CIMENTO/ AREIA MÉDIA/ BRITA 1) - PREPARO MECÂNICO COM BETONEIRA 400 L. AF_07/2016 | S60: M3 | T60: 1.68 | U60: 1 | V60: 1.68
A61: S | B61: 3 | C61: S | D61: 0 | E61: 1 | F61: 4 | G61: 1 | H61: 0 | I61: 0 | J61: 0 | K61: 0 | L61: F | M61: Serviço | N61: Serviço | O61: 1.4.1.5. | P61: SINAPI | Q61: 74157/4 | R61: LANCAMENTO/APLICACAO MANUAL DE CONCRETO EM FUNDACOES | S61: M3 | T61: 1.82 | U61: 1 | V61: 1.82 | AA61: Referência: AGETOP - 51055
A62: S | B62: 3 | C62: S | D62: 0 | E62: 1 | F62: 4 | G62: 1 | H62: 0 | I62: 0 | J62: 0 | K62: 0 | L62: F | M62: Serviço | N62: Serviço | O62: 1.4.1.6. | P62: SINAPI | Q62: 94962 | R62: CONCRETO MAGRO PARA LASTRO, TRAÇO 1:4,5:4,5 (CIMENTO/ AREIA MÉDIA/ BRITA 1) - PREPARO MECÂNICO COM BETONEIRA 400 L. AF_07/2016 | S62: M3 | T62: 0.14 | U62: 1 | V62: 0.14
A63: S | B63: 3 | C63: S | D63: 0 | E63: 1 | F63: 4 | G63: 1 | H63: 0 | I63: 0 | J63: 0 | K63: 0 | L63: F | M63: Serviço | N63: Serviço | O63: 1.4.1.7. | P63: SINAPI | Q63: 96544 | R63: ARMAÇÃO DE BLOCO, VIGA BALDRAME OU SAPATA UTILIZANDO AÇO CA-50 DE 6,3 MM - MONTAGEM. AF_06/2017 | S63: KG | T63: 23 | U63: 1 | V63: 23 | AA63: Referência: AGETOP - 52003
A64: S | B64: 3 | C64: S | D64: 0 | E64: 1 | F64: 4 | G64: 1 | H64: 0 | I64: 0 | J64: 0 | K64: 0 | L64: F | M64: Serviço | N64: Serviço | O64: 1.4.1.8. | P64: SINAPI | Q64: 96545 | R64: ARMAÇÃO DE BLOCO, VIGA BALDRAME OU SAPATA UTILIZANDO AÇO CA-50 DE 8 MM - MONTAGEM. AF_06/2017 | S64: KG | T64: 96 | U64: 1 | V64: 96 | AA64: Referência: AGETOP - 52004
A65: S | B65: 3 | C65: S | D65: 0 | E65: 1 | F65: 4 | G65: 1 | H65: 0 | I65: 0 | J65: 0 | K65: 0 | L65: F | M65: Serviço | N65: Serviço | O65: 1.4.1.9. | P65: SINAPI | Q65: 96546 | R65: ARMAÇÃO DE BLOCO, VIGA BALDRAME OU SAPATA UTILIZANDO AÇO CA-50 DE 10 MM - MONTAGEM. AF_06/2017 | S65: KG | T65: 7 | U65: 1 | V65: 7 | AA65: Referência: AGETOP - 52005
A66: S | B66: 3 | C66: S | D66: 0 | E66: 1 | F66: 4 | G66: 1 | H66: 0 | I66: 0 | J66: 0 | K66: 0 | L66: F | M66: Serviço | N66: Serviço | O66: 1.4.1.10. | P66: SINAPI | Q66: 96543 | R66: ARMAÇÃO DE BLOCO, VIGA BALDRAME E SAPATA UTILIZANDO AÇO CA-60 DE 5 MM - MONTAGEM. AF_06/2017 | S66: KG | T66: 20 | U66: 1 | V66: 20 | AA66: Referência: AGETOP - 52014
A67: 2 | B67: 2 | C67: 2 | D67: 9 | E67: 1 | F67: 5 | G67: 0 | H67: 0 | I67: 0 | J67: 314 | K67: 9 | L67: F | M67: Nível 2 | N67: Nível 2 | O67: 1.5. | P67: AGETOP | R67: ESTRUTURA | S67: - | U67: 1 | V67: -
A68: 3 | B68: 3 | C68: 3 | D68: 8 | E68: 1 | F68: 5 | G68: 1 | H68: 0 | I68: 0 | J68: 8 | K68: 72 | L68: F | M68: Nível 3 | N68: Nível 3 | O68: 1.5.1. | P68: AGETOP | R68: PILAR/VIGAS BALDRAMES E VIGAS DE COBERTURA | S68: - | U68: 1 | V68: -
A69: S | B69: 3 | C69: S | D69: 0 | E69: 1 | F69: 5 | G69: 1 | H69: 0 | I69: 0 | J69: 0 | K69: 0 | L69: F | M69: Serviço | N69: Serviço | O69: 1.5.1.1. | P69: SINAPI | Q69: 92426 | R69: MONTAGEM E DESMONTAGEM DE FÔRMA DE PILARES RETANGULARES E ESTRUTURAS SIMILARES COM ÁREA MÉDIA DAS SEÇÕES MENOR OU IGUAL A 0,25 M², PÉ-DIREITO SIMPLES, EM CHAPA DE MADEIRA COMPENSADA RESINADA, 8 UTILIZAÇÕES. AF_12/2015 | S69: M2 | T69: 123.28 | U69: 1 | V69: 123.28
A70: S | B70: 3 | C70: S | D70: 0 | E70: 1 | F70: 5 | G70: 1 | H70: 0 | I70: 0 | J70: 0 | K70: 0 | L70: F | M70: Serviço | N70: Serviço | O70: 1.5.1.2. | P70: SINAPI | Q70: 94964 | R70: CONCRETO FCK = 20MPA, TRAÇO 1:2,7:3 (CIMENTO/ AREIA MÉDIA/ BRITA 1) - PREPARO MECÂNICO COM BETONEIRA 400 L. AF_07/2016 | S70: M3 | T70: 7.07 | U70: 1 | V70: 7.07
A71: S | B71: 3 | C71: S | D71: 0 | E71: 1 | F71: 5 | G71: 1 | H71: 0 | I71: 0 | J71: 0 | K71: 0 | L71: F | M71: Serviço | N71: Serviço | O71: 1.5.1.3. | P71: SINAPI | Q71: 92873 | R71: LANÇAMENTO COM USO DE BALDES, ADENSAMENTO E ACABAMENTO DE CONCRETO EM ESTRUTURAS. AF_12/2015 | S71: M3 | T71: 7.07 | U71: 1 | V71: 7.07 | AA71: Referência: AGETOP - 60801
A72: S | B72: 3 | C72: S | D72: 0 | E72: 1 | F72: 5 | G72: 1 | H72: 0 | I72: 0 | J72: 0 | K72: 0 | L72: F | M72: Serviço | N72: Serviço | O72: 1.5.1.4. | P72: SINAPI | Q72: 92777 | R72: ARMAÇÃO DE PILAR OU VIGA DE UMA ESTRUTURA CONVENCIONAL DE CONCRETO ARMADO EM UMA EDIFICAÇÃO TÉRREA OU SOBRADO UTILIZANDO AÇO CA-50 DE 8,0 MM - MONTAGEM. AF_12/2015 | S72: KG | T72: 208 | U72: 1 | V72: 208 | AA72: Referência: AGETOP - 60304
A73: S | B73: 3 | C73: S | D73: 0 | E73: 1 | F73: 5 | G73: 1 | H73: 0 | I73: 0 | J73: 0 | K73: 0 | L73: F | M73: Serviço | N73: Serviço | O73: 1.5.1.5. | P73: SINAPI | Q73: 92778 | R73: ARMAÇÃO DE PILAR OU VIGA DE UMA ESTRUTURA CONVENCIONAL DE CONCRETO ARMADO EM UMA EDIFICAÇÃO TÉRREA OU SOBRADO UTILIZANDO AÇO CA-50 DE 10,0 MM - MONTAGEM. AF_12/2015 | S73: KG | T73: 237 | U73: 1 | V73: 237 | AA73: Referência: AGETOP - 60305
A74: S | B74: 3 | C74: S | D74: 0 | E74: 1 | F74: 5 | G74: 1 | H74: 0 | I74: 0 | J74: 0 | K74: 0 | L74: F | M74: Serviço | N74: Serviço | O74: 1.5.1.6. | P74: SINAPI | Q74: 92775 | R74: ARMAÇÃO DE PILAR OU VIGA DE UMA ESTRUTURA CONVENCIONAL DE CONCRETO ARMADO EM UMA EDIFICAÇÃO TÉRREA OU SOBRADO UTILIZANDO AÇO CA-60 DE 5,0 MM - MONTAGEM. AF_12/2015 | S74: KG | T74: 265 | U74: 1 | V74: 265 | AA74: Referência: AGETOP - 60314
A75: S | B75: 3 | C75: S | D75: 0 | E75: 1 | F75: 5 | G75: 1 | H75: 0 | I75: 0 | J75: 0 | K75: 0 | L75: F | M75: Serviço | N75: Serviço | O75: 1.5.1.7. | P75: AGETOP | Q75: 61130 | R75: MURO ARRIMO PADRÃO AGETOP EM CANALETA SEM REVESTIMENTO-(COM ALTURA ATÉ 2,50M)-INCLUSO FUNDAÇÃO | S75: m2 | T75: 8.65 | U75: 1 | V75: 8.65
A76: =CHOOSE(1+LOG(1+2*(ORÇAMENTO.Nivel="Nível 1")+4*(ORÇAMENTO.Nivel="Nível 2")+8*(ORÇAMENTO.Nivel="Nível 3")+16*(ORÇAMENTO.Nivel="Nível 4")+32*(ORÇAMENTO.Nivel="Serviço"),2),0,1,2,3,4,"S") -> 2 | B76: =IF(OR(C76="s",C76=0),OFFSET(B76,-1,0),C76) -> 2 | C76: =IF(OFFSET(C76,-1,0)="L",1,IF(OFFSET(C76,-1,0)=1,2,IF(OR(A76="s",A76=0),"S",IF(AND(OFFSET(C76,-1,0)=2,A76=4),3,IF(AND(OR(OFFSET(C76,-1,0)="s",OFFSET(C76,-1,0)=0),A76<>"s",A76>OFFSET(B76,-1,0)),OFFSET(B76,-1,0),A76))))) -> 2 | D76: =IF(OR(C76="S",C76=0),0,IF(ISERROR(K76),J76,SMALL(J76:K76,1))) -> 131 | E76: =IF($C76=1,OFFSET(E76,-1,0)+1,OFFSET(E76,-1,0)) -> 1 | F76: =IF($C76=1,0,IF($C76=2,OFFSET(F76,-1,0)+1,OFFSET(F76,-1,0))) -> 6 | G76: =IF(AND($C76<=2,$C76<>0),0,IF($C76=3,OFFSET(G76,-1,0)+1,OFFSET(G76,-1,0))) -> 0 | H76: =IF(AND($C76<=3,$C76<>0),0,IF($C76=4,OFFSET(H76,-1,0)+1,OFFSET(H76,-1,0))) -> 0 | I76: =IF(AND($C76<=4,$C76<>0),0,IF(AND($C76="S",$Y76>0),OFFSET(I76,-1,0)+1,OFFSET(I76,-1,0))) -> 0 | J76: 305 | K76: 131 | L76: F | M76: Nível 2 | N76: Nível 2 | O76: 1.6. | R76: INSTALAÇÕES ELÉTRICAS | S76: - | U76: 1 | V76: -
A77: 3 | B77: 3 | C77: 3 | D77: 63 | E77: 1 | F77: 6 | G77: 1 | H77: 0 | I77: 0 | J77: 130 | K77: 63 | L77: F | M77: Nível 3 | N77: Nível 3 | O77: 1.6.1. | P77: SINAPI | R77: SUBESTAÇÃO | S77: - | U77: 1 | V77: -
A78: S | B78: 3 | C78: S | D78: 0 | E78: 1 | F78: 6 | G78: 1 | H78: 0 | I78: 0 | J78: 0 | K78: 0 | L78: F | M78: Serviço | N78: Serviço | O78: 1.6.1.1. | P78: SINAPI | Q78: 73767/2 | R78: ALCA PRE-FORMADA DISTRIBUIÇÃO EM ACO RECOBERTO COM ALUMINIO PARA CABO 25MM2, ENCAPADO. FORNECIMENTO E INSTALAÇÃO. | S78: UN | T78: 1 | U78: 1 | V78: 1 | AA78: Referência: AGETOP - 70204
A79: S | B79: 3 | C79: S | D79: 0 | E79: 1 | F79: 6 | G79: 1 | H79: 0 | I79: 0 | J79: 0 | K79: 0 | L79: F | M79: Serviço | N79: Serviço | O79: 1.6.1.2. | P79: AGETOP | Q79: 70252 | R79: ARRUELA LISA D=5/16" | S79: Un | T79: 8 | U79: 1 | V79: 8
A80: S | B80: 3 | C80: S | D80: 0 | E80: 1 | F80: 6 | G80: 1 | H80: 0 | I80: 0 | J80: 0 | K80: 0 | L80: F | M80: Serviço | N80: Serviço | O80: 1.6.1.3. | P80: AGETOP | Q80: 70268 | R80: BARRA DE COBRE 2" X 3/16" (2,0865 KG/M) | S80: m | T80: 1.5 | U80: 1 | V80: 1.5
A81: S | B81: 3 | C81: S | D81: 0 | E81: 1 | F81: 6 | G81: 1 | H81: 0 | I81: 0 | J81: 0 | K81: 0 | L81: F | M81: Serviço | N81: Serviço | O81: 1.6.1.4. | P81: SINAPI | Q81: 91175 | R81: FIXAÇÃO DE TUBOS VERTICAIS DE PPR DIÂMETROS MAIORES QUE 75 MM COM ABRAÇADEIRA METÁLICA RÍGIDA TIPO D 3", FIXADA EM PERFILADO EM ALVENARIA. AF_05/2015 | S81: M | T81: 6 | U81: 1 | V81: 6
A82: S | B82: 3 | C82: S | D82: 0 | E82: 1 | F82: 6 | G82: 1 | H82: 0 | I82: 0 | J82: 0 | K82: 0 | L82: F | M82: Serviço | N82: Serviço | O82: 1.6.1.5. | P82: AGETOP | Q82: 70386 | R82: BRAÇO C AÇO GALVANIZADO , CONFORME NTD-17 | S82: un | T82: 1 | U82: 1 | V82: 1
A83: S | B83: 3 | C83: S | D83: 0 | E83: 1 | F83: 6 | G83: 1 | H83: 0 | I83: 0 | J83: =IF(OR($C83="S",$C83=0),0,MATCH(0,OFFSET($D83,1,$C83,ROW($C$501)-ROW($C83)),0)) -> 0 | K83: =IF(OR($C83="S",$C83=0),0,MATCH(OFFSET($D83,0,$C83)+1,OFFSET($D83,1,$C83,ROW($C$501)-ROW($C83)),0)) -> 0 | L83: F | M83: Serviço | N83: Serviço | O83: 1.6.1.6. | P83: AGETOP | Q83: 70425 | R83: BUCHA E ARRUELA METALICA DIAM. 2" | S83: PR | T83: 2 | U83: 1 | V83: 2
A84: S | B84: 3 | C84: S | D84: 0 | E84: 1 | F84: 6 | G84: 1 | H84: 0 | I84: 0 | J84: 0 | K84: 0 | L84: F | M84: Serviço | N84: Serviço | O84: 1.6.1.7. | P84: AGETOP | Q84: 70428 | R84: BUCHA E ARRUELA METALICA DIAM. 4" | S84: PR | T84: 1 | U84: 1 | V84: 1
A85: S | B85: 3 | C85: S | D85: 0 | E85: 1 | F85: 6 | G85: 1 | H85: 0 | I85: 0 | J85: 0 | K85: 0 | L85: F | M85: Serviço | N85: Serviço | O85: 1.6.1.8. | P85: SINAPI | Q85: 92980 | R85: CABO DE COBRE FLEXÍVEL ISOLADO, 10 MM², ANTI-CHAMA 0,6/1,0 KV, PARA DISTRIBUIÇÃO - FORNECIMENTO E INSTALAÇÃO. AF_12/2015 | S85: M | T85: 5 | U85: 1 | V85: 5
A86: S | B86: 3 | C86: S | D86: 0 | E86: 1 | F86: 6 | G86: 1 | H86: 0 | I86: 0 | J86: 0 | K86: 0 | L86: F | M86: Serviço | N86: Serviço | O86: 1.6.1.9. | P86: SINAPI | Q86: 92992 | R86: CABO DE COBRE FLEXÍVEL ISOLADO, 95 MM², ANTI-CHAMA 0,6/1,0 KV, PARA DISTRIBUIÇÃO - FORNECIMENTO E INSTALAÇÃO. AF_12/2015 | S86: M | T86: 40 | U86: 1 | V86: 40 | AA86: Referência: AGETOP - 70515
A87: S | B87: 3 | C87: S | D87: 0 | E87: 1 | F87: 6 | G87: 1 | H87: 0 | I87: 0 | J87: 0 | K87: 0 | L87: F | M87: Serviço | N87: Serviço | O87: 1.6.1.10. | P87: SINAPI | Q87: 92996 | R87: CABO DE COBRE FLEXÍVEL ISOLADO, 150 MM², ANTI-CHAMA 0,6/1,0 KV, PARA DISTRIBUIÇÃO - FORNECIMENTO E INSTALAÇÃO. AF_12/2015 | S87: M | T87: 160 | U87: 1 | V87: 160 | AA87: Referência: AGETOP - 70517
A88: S | B88: 3 | C88: S | D88: 0 | E88: 1 | F88: 6 | G88: 1 | H88: 0 | I88: 0 | J88: 0 | K88: 0 | L88: F | M88: Serviço | N88: Serviço | O88: 1.6.1.11. | P88: AGETOP | Q88: 70543 | R88: CABO DE COBRE NÚ No. 35 MM2 | S88: M | T88: 3 | U88: 1 | V88: 3
A89: S | B89: 3 | C89: S | D89: 0 | E89: 1 | F89: 6 | G89: 1 | H89: 0 | I89: 0 | J89: 0 | K89: 0 | L89: F | M89: Serviço | N89: Serviço | O89: 1.6.1.12. | P89: SINAPI | Q89: 96977 | R89: CORDOALHA DE COBRE NU 50 MM², ENTERRADA, SEM ISOLADOR - FORNECIMENTO E INSTALAÇÃO. AF_12/2017 | S89: M | T89: 45 | U89: 1 | V89: 45 | AA89: Referência: AGETOP - 70544
A90: S | B90: 3 | C90: S | D90: 0 | E90: 1 | F90: 6 | G90: 1 | H90: 0 | I90: 0 | J90: 0 | K90: 0 | L90: F | M90: Serviço | N90: Serviço | O90: 1.6.1.13. | P90: AGETOP | Q90: 70698 | R90: CAIXA METÁLICA PARA PROTEÇÃO GERAL 1200X1000X310MM DE 500A A 800A | S90: Un | T90: 1 | U90: 1 | V90: 1
A91: S | B91: 3 | C91: S | D91: 0 | E91: 1 | F91: 6 | G91: 1 | H91: 0 | I91: 0 | J91: 0 | K91: 0 | L91: F | M91: Serviço | N91: Serviço | O91: 1.6.1.14. | P91: AGETOP | Q91: 70699 | R91: CAIXA METÁLICA PARA T.C. 1200X1000X310MM - 500 a 800A | S91: Un | T91: 1 | U91: 1 | V91: 1
A92: =CHOOSE(1+LOG(1+2*(ORÇAMENTO.Nivel="Nível 1")+4*(ORÇAMENTO.Nivel="Nível 2")+8*(ORÇAMENTO.Nivel="Nível 3")+16*(ORÇAMENTO.Nivel="Nível 4")+32*(ORÇAMENTO.Nivel="Serviço"),2),0,1,2,3,4,"S") -> S | B92: 3 | C92: S | D92: 0 | E92: 1 | F92: 6 | G92: 1 | H92: 0 | I92: =IF(AND($C92<=4,$C92<>0),0,IF(AND($C92="S",$Y92>0),OFFSET(I92,-1,0)+1,OFFSET(I92,-1,0))) -> 0 | J92: 0 | K92: 0 | L92: F | M92: Serviço | N92: Serviço | O92: 1.6.1.15. | P92: SINAPI | Q92: 97893 | R92: CAIXA ENTERRADA ELÉTRICA RETANGULAR, EM ALVENARIA COM BLOCOS DE CONCRETO, FUNDO COM BRITA, DIMENSÕES INTERNAS: 0,8X0,8X0,6 M. AF_05/2018 | S92: UN | T92: 1 | U92: 1 | V92: 1
A93: S | B93: 3 | C93: S | D93: 0 | E93: 1 | F93: 6 | G93: 1 | H93: 0 | I93: 0 | J93: 0 | K93: 0 | L93: F | M93: Serviço | N93: Serviço | O93: 1.6.1.16. | P93: AGETOP | Q93: 70771 | R93: CANTONEIRA AUXILIAR PARA BRAÇO TIPO C | S93: un | T93: 1 | U93: 1 | V93: 1
A94: S | B94: 3 | C94: S | D94: 0 | E94: 1 | F94: 6 | G94: 1 | H94: 0 | I94: 0 | J94: 0 | K94: 0 | L94: F | M94: Serviço | N94: Serviço | O94: 1.6.1.17. | P94: AGETOP | Q94: 70920 | R94: CINTA DE ACO GALVANIZADO DIAM.190 MM | S94: Un | T94: 1 | U94: 1 | V94: 1
A95: S | B95: 3 | C95: S | D95: 0 | E95: =IF($C95=1,OFFSET(E95,-1,0)+1,OFFSET(E95,-1,0)) -> 1 | F95: =IF($C95=1,0,IF($C95=2,OFFSET(F95,-1,0)+1,OFFSET(F95,-1,0))) -> 6 | G95: =IF(AND($C95<=2,$C95<>0),0,IF($C95=3,OFFSET(G95,-1,0)+1,OFFSET(G95,-1,0))) -> 1 | H95: =IF(AND($C95<=3,$C95<>0),0,IF($C95=4,OFFSET(H95,-1,0)+1,OFFSET(H95,-1,0))) -> 0 | I95: 0 | J95: 0 | K95: 0 | L95: F | M95: Serviço | N95: Serviço | O95: 1.6.1.18. | P95: AGETOP | Q95: 70921 | R95: CINTA DE ACO GALVANIZADO DIAM.220 MM | S95: Un | T95: 2 | U95: 1 | V95: 2
A96: S | B96: 3 | C96: S | D96: 0 | E96: 1 | F96: 6 | G96: 1 | H96: 0 | I96: 0 | J96: 0 | K96: 0 | L96: F | M96: Serviço | N96: Serviço | O96: 1.6.1.19. | P96: AGETOP | Q96: 70922 | R96: CINTA DE ACO GALVANIZADO DIAM.230MM | S96: Un | T96: 2 | U96: 1 | V96: 2
A97: S | B97: 3 | C97: S | D97: 0 | E97: 1 | F97: 6 | G97: 1 | H97: 0 | I97: 0 | J97: 0 | K97: 0 | L97: F | M97: Serviço | N97: Serviço | O97: 1.6.1.20. | P97: AGETOP | Q97: 71016 | R97: CONECTOR DE COMPRESSÃO FORMATO H PARA CABO 25 A 70 MM2 | S97: un | T97: 4 | U97: 1 | V97: 4
A98: S | B98: 3 | C98: S | D98: 0 | E98: 1 | F98: 6 | G98: 1 | H98: 0 | I98: 0 | J98: 0 | K98: 0 | L98: F | M98: Serviço | N98: Serviço | O98: 1.6.1.21. | P98: AGETOP | Q98: 71020 | R98: CONECTOR PARAL. ALUM.EXTRUD.CA-CU-10,0D.10-2-1 PARAF. | S98: Un | T98: 6 | U98: 1 | V98: 6
A99: S | B99: 3 | C99: S | D99: 0 | E99: 1 | F99: 6 | G99: 1 | H99: 0 | I99: 0 | J99: 0 | K99: 0 | L99: F | M99: Serviço | N99: Serviço | O99: 1.6.1.22. | P99: SINAPI | Q99: 72272 | R99: CONECTOR PARAFUSO FENDIDO SPLIT-BOLT - PARA CABO DE 35MM2 - FORNECIMENTO E INSTALACAO | S99: UN | T99: 1 | U99: 1 | V99: 1 | AA99: Referência: AGETOP - 71035
A100: S | B100: 3 | C100: S | D100: 0 | E100: 1 | F100: 6 | G100: 1 | H100: 0 | I100: 0 | J100: 0 | K100: 0 | L100: F | M100: Serviço | N100: Serviço | O100: 1.6.1.23. | P100: AGETOP | Q100: 71040 | R100: CONECTOR TIPO PARAFUSO FENDIDO 150 MM2 | S100: Un | T100: 4 | U100: 1 | V100: 4
A101: S | B101: =IF(OR(C101="s",C101=0),OFFSET(B101,-1,0),C101) -> 3 | C101: =IF(OFFSET(C101,-1,0)="L",1,IF(OFFSET(C101,-1,0)=1,2,IF(OR(A101="s",A101=0),"S",IF(AND(OFFSET(C101,-1,0)=2,A101=4),3,IF(AND(OR(OFFSET(C101,-1,0)="s",OFFSET(C101,-1,0)=0),A101<>"s",A101>OFFSET(B101,-1,0)),OFFSET(B101,-1,0),A101))))) -> S | D101: =IF(OR(C101="S",C101=0),0,IF(ISERROR(K101),J101,SMALL(J101:K101,1))) -> 0 | E101: 1 | F101: 6 | G101: 1 | H101: 0 | I101: 0 | J101: 0 | K101: 0 | L101: F | M101: Serviço | N101: Serviço | O101: 1.6.1.24. | P101: AGETOP | Q101: 71155 | R101: CURVA DE 90 GRAUS AÇO GALVANIZADO DIAM. 2" | S101: Un | T101: 1 | U101: 1 | V101: 1
A102: S | B102: 3 | C102: S | D102: 0 | E102: 1 | F102: 6 | G102: 1 | H102: 0 | I102: 0 | J102: 0 | K102: 0 | L102: F | M102: Serviço | N102: Serviço | O102: 1.6.1.25. | P102: AGETOP | Q102: 71158 | R102: CURVA DE 90 GRAUS AÇO GALVANIZADO DIÂMETRO 4" | S102: Un | T102: 1 | U102: 1 | V102: 1
A103: S | B103: 3 | C103: S | D103: 0 | E103: 1 | F103: 6 | G103: 1 | H103: 0 | I103: 0 | J103: 0 | K103: 0 | L103: F | M103: Serviço | N103: Serviço | O103: 1.6.1.26. | P103: AGETOP | Q103: 71184 | R103: DISPOSITIVO DE PROTEÇÃO CONTRA SURTOS (D.P.S.) 275V DE 8 A 40KA | S103: Un | T103: 3 | U103: 1 | V103: 3
A104: S | B104: 3 | C104: S | D104: 0 | E104: 1 | F104: 6 | G104: 1 | H104: 0 | I104: 0 | J104: 0 | K104: 0 | L104: F | M104: Serviço | N104: Serviço | O104: 1.6.1.27. | P104: SINAPI | Q104: 74130/7 | R104: DISJUNTOR TERMOMAGNETICO TRIPOLAR EM CAIXA MOLDADA 250A 600V, FORNECIMENTO E INSTALACAO | S104: UN | T104: 1 | U104: 1 | V104: 1 | AA104: Referência: AGETOP - 71180
A105: S | B105: 3 | C105: S | D105: 0 | E105: 1 | F105: 6 | G105: 1 | H105: 0 | I105: 0 | J105: 0 | K105: 0 | L105: F | M105: Serviço | N105: Serviço | O105: 1.6.1.28. | P105: AGETOP | Q105: 71205 | R105: ELETRODUTO DE PVC RIGIDO DIAMETRO 2" | S105: M | T105: 5 | U105: 1 | V105: 5
A106: S | B106: 3 | C106: S | D106: 0 | E106: 1 | F106: 6 | G106: 1 | H106: 0 | I106: 0 | J106: 0 | K106: 0 | L106: F | M106: Serviço | N106: Serviço | O106: 1.6.1.29. | P106: AGETOP | Q106: 71208 | R106: ELETRODUTO DE PVC RIGIDO DIAMETRO 4" | S106: M | T106: 30 | U106: 1 | V106: 30
A107: S | B107: 3 | C107: S | D107: 0 | E107: 1 | F107: 6 | G107: 1 | H107: 0 | I107: 0 | J107: 0 | K107: 0 | L107: F | M107: Serviço | N107: Serviço | O107: 1.6.1.30. | P107: AGETOP | Q107: 71218 | R107: ELETRODUTO EM AÇO GALVANIZADO A FOGO DIÂMETRO 4" - PESADO | S107: M | T107: 10 | U107: 1 | V107: 10
A108: S | B108: 3 | C108: S | D108: 0 | E108: 1 | F108: 6 | G108: 1 | H108: 0 | I108: 0 | J108: 0 | K108: 0 | L108: F | M108: Serviço | N108: Serviço | O108: 1.6.1.31. | P108: AGETOP | Q108: 71270 | R108: ELO FUSIVEL 8 K - 15 KV | S108: Un | T108: 1 | U108: 1 | V108: 1
A109: S | B109: 3 | C109: S | D109: 0 | E109: 1 | F109: 6 | G109: 1 | H109: 0 | I109: 0 | J109: 0 | K109: 0 | L109: F | M109: Serviço | N109: Serviço | O109: 1.6.1.32. | P109: AGETOP | Q109: 71321 | R109: FITA DE AUTO FUSAO, ROLO E 10,00 MM | S109: Un | T109: 5 | U109: 1 | V109: 5
A110: S | B110: 3 | C110: S | D110: 0 | E110: 1 | F110: 6 | G110: 1 | H110: 0 | I110: 0 | J110: 0 | K110: 0 | L110: F | M110: Serviço | N110: Serviço | O110: 1.6.1.33. | P110: AGETOP | Q110: 71365 | R110: GRAMPO DE ANCORAGEM POLIMÉRICO | S110: un | T110: 3 | U110: 1 | V110: 3
A111: S | B111: 3 | C111: S | D111: 0 | E111: 1 | F111: 6 | G111: 1 | H111: 0 | I111: 0 | J111: 0 | K111: 0 | L111: F | M111: Serviço | N111: Serviço | O111: 1.6.1.34. | P111: AGETOP | Q111: 71381 | R111: HASTE REV.COBRE(COPPERWELD) 5/8" X 3,00 M C/CONECTOR | S111: Un | T111: 4 | U111: 1 | V111: 4
A112: S | B112: 3 | C112: S | D112: 0 | E112: 1 | F112: 6 | G112: 1 | H112: 0 | I112: 0 | J112: 0 | K112: 0 | L112: F | M112: Serviço | N112: Serviço | O112: 1.6.1.35. | P112: AGETOP | Q112: 71463 | R112: ISOLADOR EPOXI 50X40 (BUJAO) | S112: Un | T112: 2 | U112: 1 | V112: 2
A113: S | B113: 3 | C113: S | D113: 0 | E113: 1 | F113: 6 | G113: 1 | H113: 0 | I113: 0 | J113: 0 | K113: 0 | L113: F | M113: Serviço | N113: Serviço | O113: 1.6.1.36. | P113: AGETOP | Q113: 71476 | R113: ISOLADOR DE ANCORAGEM POLIMÉRICO 15KV | S113: un | T113: 1 | U113: 1 | V113: 1
A114: S | B114: 3 | C114: S | D114: 0 | E114: 1 | F114: 6 | G114: 1 | H114: 0 | I114: 0 | J114: 0 | K114: 0 | L114: F | M114: Serviço | N114: Serviço | O114: 1.6.1.37. | P114: AGETOP | Q114: 71510 | R114: LACO PREFORMADO DE DISTRIBUICAO | S114: Un | T114: 1 | U114: 1 | V114: 1
A115: S | B115: 3 | C115: S | D115: 0 | E115: 1 | F115: 6 | G115: 1 | H115: 0 | I115: 0 | J115: 0 | K115: 0 | L115: F | M115: Serviço | N115: Serviço | O115: 1.6.1.38. | P115: AGETOP | Q115: 71745 | R115: LUVA PVC ROSQUEAVEL DIAMETRO 2" | S115: Un | T115: 1 | U115: 1 | V115: 1
A116: S | B116: 3 | C116: S | D116: 0 | E116: 1 | F116: 6 | G116: 1 | H116: 0 | I116: 0 | J116: 0 | K116: 0 | L116: F | M116: Serviço | N116: Serviço | O116: 1.6.1.39. | P116: SINAPI | Q116: 93017 | R116: LUVA PARA ELETRODUTO, PVC, ROSCÁVEL, DN 110 MM (4") - FORNECIMENTO E INSTALAÇÃO. AF_12/2015 | S116: UN | T116: 10 | U116: 1 | V116: 10 | AA116: Referência: AGETOP - 71748
A117: S | B117: 3 | C117: S | D117: 0 | E117: 1 | F117: 6 | G117: 1 | H117: 0 | I117: 0 | J117: 0 | K117: 0 | L117: F | M117: Serviço | N117: Serviço | O117: 1.6.1.40. | P117: AGETOP | Q117: 71708 | R117: LUVA EM AÇO GALVANIZADO DIÂMETRO 4" | S117: Un | T117: 2 | U117: 1 | V117: 2
A118: S | B118: 3 | C118: S | D118: 0 | E118: 1 | F118: 6 | G118: 1 | H118: 0 | I118: 0 | J118: 0 | K118: 0 | L118: F | M118: Serviço | N118: Serviço | O118: 1.6.1.41. | P118: AGETOP | Q118: 71750 | R118: MANILHA-SAPATILHA EM AÇO GALVANIZADO | S118: un | T118: 1 | U118: 1 | V118: 1
A119: S | B119: 3 | C119: S | D119: 0 | E119: 1 | F119: 6 | G119: 1 | H119: 0 | I119: 0 | J119: 0 | K119: 0 | L119: F | M119: Serviço | N119: Serviço | O119: 1.6.1.42. | P119: AGETOP | Q119: 71761 | R119: MURETA MEDIÇÃO ALVEN. 1 1/2 V.(35CM) REBOC.C/PINTURA ACRÍL. E LAJE CONC. 20MPA MALHA 8.0MM CADA 10CM REVEST.C/ARGAMASSA 1:3 C/ IMPERMEABILIZANTE | S119: m2 | T119: 3 | U119: 1 | V119: 3
A120: S | B120: 3 | C120: S | D120: 0 | E120: 1 | F120: 6 | G120: 1 | H120: 0 | I120: 0 | J120: 0 | K120: 0 | L120: F | M120: Serviço | N120: Serviço | O120: 1.6.1.43. | P120: AGETOP | Q120: 71776 | R120: NIPLE METALICO Fo.Zo. DIAMETRO 2.1/2" | S120: Un | T120: 2 | U120: 1 | V120: 2
A121: S | B121: 3 | C121: S | D121: 0 | E121: 1 | F121: 6 | G121: 1 | H121: 0 | I121: 0 | J121: 0 | K121: 0 | L121: F | M121: Serviço | N121: Serviço | O121: 1.6.1.44. | P121: AGETOP | Q121: 85047 | R121: NIPLE DUPLO FERRO GALVANIZADO 2.1/2" | S121: Un | T121: 1 | U121: 1 | V121: 1
A122: S | B122: 3 | C122: S | D122: 0 | E122: 1 | F122: 6 | G122: 1 | H122: 0 | I122: 0 | J122: 0 | K122: 0 | L122: F | M122: Serviço | N122: Serviço | O122: 1.6.1.45. | P122: AGETOP | Q122: 71795 | R122: OLHAL PARA PARAFUSO | S122: un | T122: 3 | U122: 1 | V122: 3
A123: S | B123: 3 | C123: S | D123: 0 | E123: 1 | F123: 6 | G123: 1 | H123: 0 | I123: 0 | J123: 0 | K123: 0 | L123: F | M123: Serviço | N123: Serviço | O123: 1.6.1.46. | P123: AGETOP | Q123: 71835 | R123: PARAFUSO CABEÇA ABAULADA (FRANCES) M16 X 45 MM | S123: Un | T123: 3 | U123: 1 | V123: 3
A124: S | B124: 3 | C124: S | D124: 0 | E124: 1 | F124: 6 | G124: 1 | H124: 0 | I124: 0 | J124: 0 | K124: 0 | L124: F | M124: Serviço | N124: Serviço | O124: 1.6.1.47. | P124: AGETOP | Q124: 71841 | R124: PARAFUSO CABEÇA ABAULADA (FRANCES) M16 X 150 MM | S124: Un | T124: 3 | U124: 1 | V124: 3
A125: S | B125: 3 | C125: S | D125: 0 | E125: 1 | F125: 6 | G125: 1 | H125: 0 | I125: 0 | J125: 0 | K125: 0 | L125: F | M125: Serviço | N125: Serviço | O125: 1.6.1.48. | P125: AGETOP | Q125: 71833 | R125: PARA RAIOS DISTRIBUIDOR POLIMÉRICO ÓXIDO DE ZINCO S/CENTELHADOR C/ DESLIGAMENTO AUTOMÁTICO 15KV,10KA | S125: Un | T125: 3 | U125: 1 | V125: 3
A126: S | B126: 3 | C126: S | D126: 0 | E126: 1 | F126: 6 | G126: 1 | H126: 0 | I126: 0 | J126: 0 | K126: 0 | L126: F | M126: Serviço | N126: Serviço | O126: 1.6.1.49. | P126: AGETOP | Q126: 71997 | R126: POSTE - FUNDAÇÃO EM CONCRETO SIMPLES DA BASE DOS POSTES 11/600 PARA TRAFO ( DIAM. 1000MM) | S126: m | T126: 0.3 | U126: 1 | V126: 0.3
A127: S | B127: 3 | C127: S | D127: 0 | E127: 1 | F127: 6 | G127: 1 | H127: 0 | I127: 0 | J127: 0 | K127: 0 | L127: F | M127: Serviço | N127: Serviço | O127: 1.6.1.50. | P127: AGETOP | Q127: 72061 | R127: POSTE DE CONCRETO SC 11/600 - SEM FUNDAÇÃO/CONCRETO | S127: Un | T127: 1 | U127: 1 | V127: 1
A128: S | B128: 3 | C128: S | D128: 0 | E128: 1 | F128: 6 | G128: 1 | H128: 0 | I128: 0 | J128: 0 | K128: 0 | L128: F | M128: Serviço | N128: Serviço | O128: 1.6.1.51. | P128: AGETOP | Q128: 72080 | R128: POSTE/TRAFO - CAMINHÃO MUNCK 12 TON. (MÍNIMO 4H/DIA) | S128: H | T128: 4 | U128: 1 | V128: 4
A129: S | B129: 3 | C129: S | D129: 0 | E129: 1 | F129: 6 | G129: 1 | H129: 0 | I129: 0 | J129: 0 | K129: 0 | L129: F | M129: Serviço | N129: Serviço | O129: 1.6.1.52. | P129: AGETOP | Q129: 72329 | R129: SAPATILHA DE AÇO GALVANIZADO PARA POSTE COM TRANSFORMADOR | S129: un | T129: 3 | U129: 1 | V129: 3
A130: S | B130: 3 | C130: S | D130: 0 | E130: 1 | F130: 6 | G130: 1 | H130: 0 | I130: 0 | J130: 0 | K130: 0 | L130: F | M130: Serviço | N130: Serviço | O130: 1.6.1.53. | P130: SINAPI | Q130: 73624 | R130: SUPORTE PARA TRANSFORMADOR EM POSTE DE CONCRETO CIRCULAR | S130: UN | T130: 2 | U130: 1 | V130: 2
A131: S | B131: 3 | C131: S | D131: 0 | E131: 1 | F131: 6 | G131: 1 | H131: 0 | I131: 0 | J131: 0 | K131: 0 | L131: F | M131: Serviço | N131: Serviço | O131: 1.6.1.54. | P131: AGETOP | Q131: 72518 | R131: TERMINAL DE PRESSAO 10 MM2 | S131: Un | T131: 1 | U131: 1 | V131: 1
A132: S | B132: 3 | C132: S | D132: 0 | E132: 1 | F132: 6 | G132: 1 | H132: 0 | I132: 0 | J132: 0 | K132: 0 | L132: F | M132: Serviço | N132: Serviço | O132: 1.6.1.55. | P132: AGETOP | Q132: 72538 | R132: TERMINAL DE PRESSAO 95 MM2 | S132: Un | T132: 5 | U132: 1 | V132: 5
A133: S | B133: 3 | C133: S | D133: 0 | E133: 1 | F133: 6 | G133: 1 | H133: 0 | I133: 0 | J133: 0 | K133: 0 | L133: F | M133: Serviço | N133: Serviço | O133: 1.6.1.56. | P133: AGETOP | Q133: 72550 | R133: TERMINAL DE PRESSAO 150 MM2 | S133: Un | T133: 2 | U133: 1 | V133: 2
A134: S | B134: 3 | C134: S | D134: 0 | E134: 1 | F134: 6 | G134: 1 | H134: 0 | I134: 0 | J134: 0 | K134: 0 | L134: F | M134: Serviço | N134: Serviço | O134: 1.6.1.57. | P134: SINAPI | Q134: 73857/3 | R134: TRANSFORMADOR DISTRIBUICAO 150KVA TRIFASICO 60HZ CLASSE 15KV IMERSO EM ÓLEO MINERAL FORNECIMENTO E INSTALACAO | S134: UN | T134: 1 | U134: 1 | V134: 1
A135: S | B135: 3 | C135: S | D135: 0 | E135: 1 | F135: 6 | G135: 1 | H135: 0 | I135: 0 | J135: 0 | K135: 0 | L135: F | M135: Serviço | N135: Serviço | O135: 1.6.1.58. | P135: SINAPI | Q135: 88543 | R135: ARMACAO SECUNDARIA OU REX COMPLETA PARA TRESLINHAS-FORNECIMENTO E INSTALACAO. | S135: UN | T135: 1 | U135: 1 | V135: 1 | AA135: Referência: AGETOP - 70242
A136: S | B136: 3 | C136: S | D136: 0 | E136: 1 | F136: 6 | G136: 1 | H136: 0 | I136: 0 | J136: 0 | K136: 0 | L136: F | M136: Serviço | N136: Serviço | O136: 1.6.1.59. | P136: COMPOSIÇÃO | Q136: COMP 046_SEE | R136: CAPUZ PARA PROTEÇÃO DOS PARA RAIOS | S136: UN | T136: 3 | U136: 1 | V136: 3
A137: S | B137: 3 | C137: S | D137: 0 | E137: 1 | F137: 6 | G137: 1 | H137: 0 | I137: 0 | J137: 0 | K137: 0 | L137: F | M137: Serviço | N137: Serviço | O137: 1.6.1.60. | P137: COMPOSIÇÃO | Q137: COMP 047_SEE | R137: CAPUZ DE PROTEÇÃO PARA BUCHA DE TRANSFORMADOR | S137: UN | T137: 3 | U137: 1 | V137: 3
A138: S | B138: 3 | C138: S | D138: 0 | E138: 1 | F138: 6 | G138: 1 | H138: 0 | I138: 0 | J138: 0 | K138: 0 | L138: F | M138: Serviço | N138: Serviço | O138: 1.6.1.61. | P138: COMPOSIÇÃO | Q138: COMP 048_SEE | R138: HASTE ROSQUEADA "TIRANTE" 3/8" | S138: M | T138: 0.5 | U138: 1 | V138: 0.5
A139: S | B139: 3 | C139: S | D139: 0 | E139: 1 | F139: 6 | G139: 1 | H139: 0 | I139: 0 | J139: 0 | K139: 0 | L139: F | M139: Serviço | N139: Serviço | O139: 1.6.1.62. | P139: COMPOSIÇÃO | Q139: COMP 049_SEE | R139: PORCA SEXTAVADA 3/8" | S139: UN | T139: 8 | U139: 1 | V139: 8
A140: 3 | B140: 3 | C140: 3 | D140: 49 | E140: 1 | F140: 6 | G140: 2 | H140: 0 | I140: 0 | J140: 67 | K140: 49 | L140: F | M140: Nível 3 | N140: Nível 3 | O140: 1.6.2. | R140: INST. ELÉTRICAS | S140: - | U140: 1 | V140: -
A141: S | B141: 3 | C141: S | D141: 0 | E141: 1 | F141: 6 | G141: 2 | H141: 0 | I141: 0 | J141: 0 | K141: 0 | L141: F | M141: Serviço | N141: Serviço | O141: 1.6.2.1. | P141: AGETOP | Q141: 70351 | R141: BRACADEIRA METALICA TIPO "U" DIAM. 3/4" | S141: Un | T141: 100 | U141: 1 | V141: 100
A142: S | B142: 3 | C142: S | D142: 0 | E142: 1 | F142: 6 | G142: 2 | H142: 0 | I142: 0 | J142: 0 | K142: 0 | L142: F | M142: Serviço | N142: Serviço | O142: 1.6.2.2. | P142: AGETOP | Q142: 70352 | R142: BRACADEIRA METALICA TIPO "U" DIAM. 1" | S142: Un | T142: 10 | U142: 1 | V142: 10
A143: S | B143: 3 | C143: S | D143: 0 | E143: 1 | F143: 6 | G143: 2 | H143: 0 | I143: 0 | J143: 0 | K143: 0 | L143: F | M143: Serviço | N143: Serviço | O143: 1.6.2.3. | P143: AGETOP | Q143: 70354 | R143: BRACADEIRA METALICA TIPO "U" DIAM. 1.1/2" | S143: Un | T143: 10 | U143: 1 | V143: 10
A144: S | B144: 3 | C144: S | D144: 0 | E144: 1 | F144: 6 | G144: 2 | H144: 0 | I144: 0 | J144: 0 | K144: 0 | L144: F | M144: Serviço | N144: Serviço | O144: 1.6.2.4. | P144: AGETOP | Q144: 70355 | R144: BRACADEIRA METALICA TIPO "U" DIAM. 2" | S144: Un | T144: 35 | U144: 1 | V144: 35
A145: S | B145: 3 | C145: S | D145: 0 | E145: 1 | F145: 6 | G145: 2 | H145: 0 | I145: 0 | J145: 0 | K145: 0 | L145: F | M145: Serviço | N145: Serviço | O145: 1.6.2.5. | P145: AGETOP | Q145: 70421 | R145: BUCHA E ARRUELA METALICA DIAM. 3/4" | S145: PR | T145: 100 | U145: 1 | V145: 100
A146: S | B146: 3 | C146: S | D146: 0 | E146: 1 | F146: 6 | G146: 2 | H146: 0 | I146: 0 | J146: 0 | K146: 0 | L146: F | M146: Serviço | N146: Serviço | O146: 1.6.2.6. | P146: AGETOP | Q146: 70422 | R146: BUCHA E ARRUELA METALICA DIAM. 1" | S146: PR | T146: 10 | U146: 1 | V146: 10
A147: S | B147: 3 | C147: S | D147: 0 | E147: 1 | F147: 6 | G147: 2 | H147: 0 | I147: 0 | J147: =IF(OR($C147="S",$C147=0),0,MATCH(0,OFFSET($D147,1,$C147,ROW($C$501)-ROW($C147)),0)) -> 0 | K147: =IF(OR($C147="S",$C147=0),0,MATCH(OFFSET($D147,0,$C147)+1,OFFSET($D147,1,$C147,ROW($C$501)-ROW($C147)),0)) -> 0 | L147: F | M147: Serviço | N147: Serviço | O147: 1.6.2.7. | P147: AGETOP | Q147: 70424 | R147: BUCHA E ARRUELA METALICA DIAM. 1.1/2" | S147: PR | T147: 10 | U147: 1 | V147: 10
A148: S | B148: 3 | C148: S | D148: 0 | E148: 1 | F148: 6 | G148: 2 | H148: 0 | I148: 0 | J148: 0 | K148: 0 | L148: F | M148: Serviço | N148: Serviço | O148: 1.6.2.8. | P148: AGETOP | Q148: 70425 | R148: BUCHA E ARRUELA METALICA DIAM. 2" | S148: PR | T148: 35 | U148: 1 | V148: 35
A149: S | B149: 3 | C149: S | D149: 0 | E149: 1 | F149: 6 | G149: 2 | H149: 0 | I149: 0 | J149: 0 | K149: 0 | L149: F | M149: Serviço | N149: Serviço | O149: 1.6.2.9. | P149: SINAPI | Q149: 91927 | R149: CABO DE COBRE FLEXÍVEL ISOLADO, 2,5 MM², ANTI-CHAMA 0,6/1,0 KV, PARA CIRCUITOS TERMINAIS - FORNECIMENTO E INSTALAÇÃO. AF_12/2015 | S149: M | T149: 3734 | U149: 1 | V149: 3734 | AA149: Referência: AGETOP - 70581
A150: S | B150: 3 | C150: S | D150: 0 | E150: 1 | F150: 6 | G150: 2 | H150: 0 | I150: 0 | J150: 0 | K150: 0 | L150: F | M150: Serviço | N150: Serviço | O150: 1.6.2.10. | P150: SINAPI | Q150: 91929 | R150: CABO DE COBRE FLEXÍVEL ISOLADO, 4 MM², ANTI-CHAMA 0,6/1,0 KV, PARA CIRCUITOS TERMINAIS - FORNECIMENTO E INSTALAÇÃO. AF_12/2015 | S150: M | T150: 1716 | U150: 1 | V150: 1716 | AA150: Referência: AGETOP - 70582
A151: S | B151: 3 | C151: S | D151: 0 | E151: 1 | F151: 6 | G151: 2 | H151: 0 | I151: 0 | J151: 0 | K151: 0 | L151: F | M151: Serviço | N151: Serviço | O151: 1.6.2.11. | P151: SINAPI | Q151: 91930 | R151: CABO DE COBRE FLEXÍVEL ISOLADO, 6 MM², ANTI-CHAMA 450/750 V, PARA CIRCUITOS TERMINAIS - FORNECIMENTO E INSTALAÇÃO. AF_12/2015 | S151: M | T151: 50 | U151: 1 | V151: 50 | AA151: Referência: AGETOP - 70583
A152: S | B152: 3 | C152: S | D152: 0 | E152: 1 | F152: 6 | G152: 2 | H152: 0 | I152: 0 | J152: 0 | K152: 0 | L152: F | M152: Serviço | N152: Serviço | O152: 1.6.2.12. | P152: SINAPI | Q152: 92982 | R152: CABO DE COBRE FLEXÍVEL ISOLADO, 16 MM², ANTI-CHAMA 0,6/1,0 KV, PARA DISTRIBUIÇÃO - FORNECIMENTO E INSTALAÇÃO. AF_12/2015 | S152: M | T152: 93 | U152: 1 | V152: 93
A153: S | B153: 3 | C153: S | D153: 0 | E153: 1 | F153: 6 | G153: 2 | H153: 0 | I153: 0 | J153: 0 | K153: 0 | L153: F | M153: Serviço | N153: Serviço | O153: 1.6.2.13. | P153: SINAPI | Q153: 92983 | R153: CABO DE COBRE FLEXÍVEL ISOLADO, 25 MM², ANTI-CHAMA 450/750 V, PARA DISTRIBUIÇÃO - FORNECIMENTO E INSTALAÇÃO. AF_12/2015 | S153: M | T153: 372 | U153: 1 | V153: 372 | AA153: Referência: AGETOP - 70511
A154: S | B154: 3 | C154: S | D154: 0 | E154: 1 | F154: 6 | G154: 2 | H154: 0 | I154: 0 | J154: 0 | K154: 0 | L154: F | M154: Serviço | N154: Serviço | O154: 1.6.2.14. | P154: SINAPI | Q154: 83366 | R154: CAIXA DE PASSAGEM PARA TELEFONE 15X15X10CM (SOBREPOR), FORNECIMENTO E INSTALACAO. | S154: UN | T154: 1 | U154: 1 | V154: 1 | AA154: Referência: AGETOP - 70645
A155: S | B155: 3 | C155: S | D155: 0 | E155: 1 | F155: 6 | G155: 2 | H155: 0 | I155: 0 | J155: 0 | K155: 0 | L155: F | M155: Serviço | N155: Serviço | O155: 1.6.2.15. | P155: SINAPI | Q155: 92869 | R155: CAIXA RETANGULAR 4" X 2" BAIXA (0,30 M DO PISO), METÁLICA, INSTALADA EM PAREDE - FORNECIMENTO E INSTALAÇÃO. AF_12/2015 | S155: UN | T155: 49 | U155: 1 | V155: 49 | AA155: Referência: AGETOP - 70691
A156: S | B156: 3 | C156: S | D156: 0 | E156: 1 | F156: 6 | G156: 2 | H156: 0 | I156: 0 | J156: 0 | K156: 0 | L156: F | M156: Serviço | N156: Serviço | O156: 1.6.2.16. | P156: SINAPI | Q156: 92868 | R156: CAIXA RETANGULAR 4" X 2" MÉDIA (1,30 M DO PISO), METÁLICA, INSTALADA EM PAREDE - FORNECIMENTO E INSTALAÇÃO. AF_12/2015 | S156: UN | T156: 6 | U156: 1 | V156: 6 | AA156: Referência: AGETOP - 70691
A157: S | B157: 3 | C157: S | D157: 0 | E157: 1 | F157: 6 | G157: 2 | H157: 0 | I157: 0 | J157: 0 | K157: 0 | L157: F | M157: Serviço | N157: Serviço | O157: 1.6.2.17. | P157: SINAPI | Q157: 92867 | R157: CAIXA RETANGULAR 4" X 2" ALTA (2,00 M DO PISO), METÁLICA, INSTALADA EM PAREDE - FORNECIMENTO E INSTALAÇÃO. AF_12/2015 | S157: UN | T157: 24 | U157: 1 | V157: 24 | AA157: Referência: AGETOP - 70691
A158: S | B158: 3 | C158: S | D158: 0 | E158: 1 | F158: 6 | G158: 2 | H158: 0 | I158: 0 | J158: 0 | K158: 0 | L158: F | M158: Serviço | N158: Serviço | O158: 1.6.2.18. | P158: SINAPI | Q158: 97891 | R158: CAIXA ENTERRADA ELÉTRICA RETANGULAR, EM ALVENARIA COM BLOCOS DE CONCRETO, FUNDO COM BRITA, DIMENSÕES INTERNAS: 0,4X0,4X0,4 M. AF_05/2018 | S158: UN | T158: 6 | U158: 1 | V158: 6
A159: S | B159: 3 | C159: S | D159: 0 | E159: 1 | F159: 6 | G159: 2 | H159: 0 | I159: 0 | J159: 0 | K159: 0 | L159: F | M159: Serviço | N159: Serviço | O159: 1.6.2.19. | P159: SINAPI | Q159: 91902 | R159: CURVA 90 GRAUS PARA ELETRODUTO, PVC, ROSCÁVEL, DN 25 MM (3/4"), PARA CIRCUITOS TERMINAIS, INSTALADA EM LAJE - FORNECIMENTO E INSTALAÇÃO. AF_12/2015 | S159: UN | T159: 20 | U159: 1 | V159: 20 | AA159: Referência: AGETOP - 71141
A160: S | B160: 3 | C160: S | D160: 0 | E160: 1 | F160: 6 | G160: 2 | H160: 0 | I160: 0 | J160: 0 | K160: 0 | L160: F | M160: Serviço | N160: Serviço | O160: 1.6.2.20. | P160: SINAPI | Q160: 91905 | R160: CURVA 90 GRAUS PARA ELETRODUTO, PVC, ROSCÁVEL, DN 32 MM (1"), PARA CIRCUITOS TERMINAIS, INSTALADA EM LAJE - FORNECIMENTO E INSTALAÇÃO. AF_12/2015 | S160: UN | T160: 5 | U160: 1 | V160: 5 | AA160: Referência: AGETOP - 71142
A161: S | B161: 3 | C161: S | D161: 0 | E161: 1 | F161: 6 | G161: 2 | H161: 0 | I161: 0 | J161: 0 | K161: 0 | L161: F | M161: Serviço | N161: Serviço | O161: 1.6.2.21. | P161: SINAPI | Q161: 93653 | R161: DISJUNTOR MONOPOLAR TIPO DIN, CORRENTE NOMINAL DE 10A - FORNECIMENTO E INSTALAÇÃO. AF_04/2016 | S161: UN | T161: 5 | U161: 1 | V161: 5
A162: S | B162: 3 | C162: S | D162: 0 | E162: 1 | F162: 6 | G162: 2 | H162: 0 | I162: 0 | J162: 0 | K162: 0 | L162: F | M162: Serviço | N162: Serviço | O162: 1.6.2.22. | P162: SINAPI | Q162: 93654 | R162: DISJUNTOR MONOPOLAR TIPO DIN, CORRENTE NOMINAL DE 16A - FORNECIMENTO E INSTALAÇÃO. AF_04/2016 | S162: UN | T162: 25 | U162: 1 | V162: 25
A163: S | B163: 3 | C163: S | D163: 0 | E163: 1 | F163: 6 | G163: 2 | H163: 0 | I163: 0 | J163: 0 | K163: 0 | L163: F | M163: Serviço | N163: Serviço | O163: 1.6.2.23. | P163: SINAPI | Q163: 93671 | R163: DISJUNTOR TRIPOLAR TIPO DIN, CORRENTE NOMINAL DE 32A - FORNECIMENTO E INSTALAÇÃO. AF_04/2016 | S163: UN | T163: 2 | U163: 1 | V163: 2 | AA163: Referência: AGETOP - 71173
A164: S | B164: 3 | C164: S | D164: 0 | E164: 1 | F164: 6 | G164: 2 | H164: 0 | I164: 0 | J164: 0 | K164: 0 | L164: F | M164: Serviço | N164: Serviço | O164: 1.6.2.24. | P164: SINAPI | Q164: 74130/5 | R164: DISJUNTOR TERMOMAGNETICO TRIPOLAR PADRAO NEMA (AMERICANO) 60 A 100A 240V, FORNECIMENTO E INSTALACAO | S164: UN | T164: 2 | U164: 1 | V164: 2
A165: S | B165: 3 | C165: S | D165: 0 | E165: 1 | F165: 6 | G165: 2 | H165: 0 | I165: 0 | J165: 0 | K165: 0 | L165: F | M165: Serviço | N165: Serviço | O165: 1.6.2.25. | P165: AGETOP | Q165: 71184 | R165: DISPOSITIVO DE PROTEÇÃO CONTRA SURTOS (D.P.S.) 275V DE 8 A 40KA | S165: Un | T165: 3 | U165: 1 | V165: 3
A166: S | B166: 3 | C166: S | D166: 0 | E166: 1 | F166: 6 | G166: 2 | H166: 0 | I166: 0 | J166: 0 | K166: 0 | L166: F | M166: Serviço | N166: Serviço | O166: 1.6.2.26. | P166: SINAPI | Q166: 74130/10 | R166: DISJUNTOR TERMOMAGNETICO TRIPOLAR EM CAIXA MOLDADA 175 A 225A 240V, FORNECIMENTO E INSTALACAO | S166: UN | T166: 1 | U166: 1 | V166: 1 | AA166: Referência: AGETOP - 71177
A167: S | B167: 3 | C167: S | D167: 0 | E167: 1 | F167: 6 | G167: 2 | H167: 0 | I167: 0 | J167: 0 | K167: 0 | L167: F | M167: Serviço | N167: Serviço | O167: 1.6.2.27. | P167: AGETOP | Q167: 71450 | R167: INTERRUPTOR DIFERENCIAL RESIDUAL (D.R.) BIPOLAR DE 25A-30mA | S167: Un | T167: 2 | U167: 1 | V167: 2
A168: S | B168: 3 | C168: S | D168: 0 | E168: 1 | F168: 6 | G168: 2 | H168: 0 | I168: 0 | J168: 0 | K168: 0 | L168: F | M168: Serviço | N168: Serviço | O168: 1.6.2.28. | P168: SINAPI | Q168: 91953 | R168: INTERRUPTOR SIMPLES (1 MÓDULO), 10A/250V, INCLUINDO SUPORTE E PLACA - FORNECIMENTO E INSTALAÇÃO. AF_12/2015 | S168: UN | T168: 14 | U168: 1 | V168: 14
A169: S | B169: 3 | C169: S | D169: 0 | E169: 1 | F169: 6 | G169: 2 | H169: 0 | I169: 0 | J169: 0 | K169: 0 | L169: F | M169: Serviço | N169: Serviço | O169: 1.6.2.29. | P169: SINAPI | Q169: 91871 | R169: ELETRODUTO RÍGIDO ROSCÁVEL, PVC, DN 25 MM (3/4"), PARA CIRCUITOS TERMINAIS, INSTALADO EM PAREDE - FORNECIMENTO E INSTALAÇÃO. AF_12/2015 | S169: M | T169: 300 | U169: 1 | V169: 300 | AA169: Referência: AGETOP - 71201
A170: S | B170: 3 | C170: S | D170: 0 | E170: 1 | F170: 6 | G170: 2 | H170: 0 | I170: 0 | J170: 0 | K170: 0 | L170: F | M170: Serviço | N170: Serviço | O170: 1.6.2.30. | P170: SINAPI | Q170: 91872 | R170: ELETRODUTO RÍGIDO ROSCÁVEL, PVC, DN 32 MM (1"), PARA CIRCUITOS TERMINAIS, INSTALADO EM PAREDE - FORNECIMENTO E INSTALAÇÃO. AF_12/2015 | S170: M | T170: 30 | U170: 1 | V170: 30 | AA170: Referência: AGETOP - 71202
A171: S | B171: 3 | C171: S | D171: 0 | E171: 1 | F171: 6 | G171: 2 | H171: 0 | I171: 0 | J171: 0 | K171: 0 | L171: F | M171: Serviço | N171: Serviço | O171: 1.6.2.31. | P171: SINAPI | Q171: 93008 | R171: ELETRODUTO RÍGIDO ROSCÁVEL, PVC, DN 50 MM (1 1/2") - FORNECIMENTO E INSTALAÇÃO. AF_12/2015 | S171: M | T171: 30 | U171: 1 | V171: 30
A172: S | B172: 3 | C172: S | D172: 0 | E172: 1 | F172: 6 | G172: 2 | H172: 0 | I172: 0 | J172: 0 | K172: 0 | L172: F | M172: Serviço | N172: Serviço | O172: 1.6.2.32. | P172: SINAPI | Q172: 93009 | R172: ELETRODUTO RÍGIDO ROSCÁVEL, PVC, DN 60 MM (2") - FORNECIMENTO E INSTALAÇÃO. AF_12/2015 | S172: M | T172: 105 | U172: 1 | V172: 105
A173: S | B173: 3 | C173: S | D173: 0 | E173: 1 | F173: 6 | G173: 2 | H173: 0 | I173: 0 | J173: 0 | K173: 0 | L173: F | M173: Serviço | N173: Serviço | O173: 1.6.2.33. | P173: AGETOP | Q173: 71321 | R173: FITA DE AUTO FUSAO, ROLO E 10,00 MM | S173: Un | T173: 5 | U173: 1 | V173: 5
A174: S | B174: 3 | C174: S | D174: 0 | E174: 1 | F174: 6 | G174: 2 | H174: 0 | I174: 0 | J174: 0 | K174: 0 | L174: F | M174: Serviço | N174: Serviço | O174: 1.6.2.34. | P174: AGETOP | Q174: 71331 | R174: FITA ISOLANTE, ROLO DE 20,00 M | S174: Un | T174: 30 | U174: 1 | V174: 30
A175: S | B175: 3 | C175: S | D175: 0 | E175: 1 | F175: 6 | G175: 2 | H175: 0 | I175: 0 | J175: 0 | K175: 0 | L175: F | M175: Serviço | N175: Serviço | O175: 1.6.2.35. | P175: SINAPI | Q175: 97586 | R175: LUMINÁRIA TIPO CALHA, DE SOBREPOR, COM 2 LÂMPADAS TUBULARES DE 36 W - FORNECIMENTO E INSTALAÇÃO. AF_11/2017 | S175: UN | T175: 90 | U175: 1 | V175: 90 | AA175: Referência: SINAPI - 97586
A176: S | B176: 3 | C176: S | D176: 0 | E176: 1 | F176: 6 | G176: 2 | H176: 0 | I176: 0 | J176: 0 | K176: 0 | L176: F | M176: Serviço | N176: Serviço | O176: 1.6.2.36. | P176: SINAPI | Q176: 97593 | R176: LUMINÁRIA TIPO SPOT, DE SOBREPOR, COM 1 LÂMPADA DE 15 W - FORNECIMENTO E INSTALAÇÃO. AF_11/2017 | S176: UN | T176: 43 | U176: 1 | V176: 43 | AA176: Referência: SINAPI - 97593
A177: S | B177: 3 | C177: S | D177: 0 | E177: 1 | F177: 6 | G177: 2 | H177: 0 | I177: 0 | J177: 0 | K177: 0 | L177: F | M177: Serviço | N177: Serviço | O177: 1.6.2.37. | P177: COMPOSIÇÃO | Q177: COMP 387_SEE | R177: LÂMPADA LED TUBULAR 18W | S177: UN | T177: 180 | U177: 1 | V177: 180
A178: S | B178: 3 | C178: S | D178: 0 | E178: 1 | F178: 6 | G178: 2 | H178: 0 | I178: 0 | J178: 0 | K178: 0 | L178: F | M178: Serviço | N178: Serviço | O178: 1.6.2.38. | P178: SINAPI | Q178: 91884 | R178: LUVA PARA ELETRODUTO, PVC, ROSCÁVEL, DN 25 MM (3/4"), PARA CIRCUITOS TERMINAIS, INSTALADA EM PAREDE - FORNECIMENTO E INSTALAÇÃO. AF_12/2015 | S178: UN | T178: 100 | U178: 1 | V178: 100 | AA178: Referência: AGETOP - 71741
A179: S | B179: 3 | C179: S | D179: 0 | E179: 1 | F179: 6 | G179: 2 | H179: 0 | I179: 0 | J179: 0 | K179: 0 | L179: F | M179: Serviço | N179: Serviço | O179: 1.6.2.39. | P179: SINAPI | Q179: 91885 | R179: LUVA PARA ELETRODUTO, PVC, ROSCÁVEL, DN 32 MM (1"), PARA CIRCUITOS TERMINAIS, INSTALADA EM PAREDE - FORNECIMENTO E INSTALAÇÃO. AF_12/2015 | S179: UN | T179: 10 | U179: 1 | V179: 10 | AA179: Referência: AGETOP - 71742
A180: S | B180: 3 | C180: S | D180: 0 | E180: 1 | F180: 6 | G180: 2 | H180: 0 | I180: 0 | J180: 0 | K180: 0 | L180: F | M180: Serviço | N180: Serviço | O180: 1.6.2.40. | P180: SINAPI | Q180: 93013 | R180: LUVA PARA ELETRODUTO, PVC, ROSCÁVEL, DN 50 MM (1 1/2") - FORNECIMENTO E INSTALAÇÃO. AF_12/2015 | S180: UN | T180: 10 | U180: 1 | V180: 10 | AA180: Referência: AGETOP - 71744
A181: S | B181: 3 | C181: S | D181: 0 | E181: 1 | F181: 6 | G181: 2 | H181: 0 | I181: 0 | J181: 0 | K181: 0 | L181: F | M181: Serviço | N181: Serviço | O181: 1.6.2.41. | P181: SINAPI | Q181: 93014 | R181: LUVA PARA ELETRODUTO, PVC, ROSCÁVEL, DN 60 MM (2") - FORNECIMENTO E INSTALAÇÃO. AF_12/2015 | S181: UN | T181: 35 | U181: 1 | V181: 35 | AA181: Referência: AGETOP - 71745
A182: S | B182: 3 | C182: S | D182: 0 | E182: 1 | F182: 6 | G182: 2 | H182: 0 | I182: 0 | J182: 0 | K182: 0 | L182: F | M182: Serviço | N182: Serviço | O182: 1.6.2.42. | P182: SINAPI | Q182: 74131/8 | R182: QUADRO DE DISTRIBUICAO DE ENERGIA DE EMBUTIR, EM CHAPA METALICA, PARA 50 DISJUNTORES TERMOMAGNETICOS MONOPOLARES, COM BARRAMENTO TRIFASICO E NEUTRO, FORNECIMENTO E INSTALACAO | S182: UN | T182: 1 | U182: 1 | V182: 1 | AA182: Referência: AGETOP - 72205
A183: S | B183: 3 | C183: S | D183: 0 | E183: 1 | F183: 6 | G183: 2 | H183: 0 | I183: 0 | J183: 0 | K183: 0 | L183: F | M183: Serviço | N183: Serviço | O183: 1.6.2.43. | P183: SINAPI | Q183: 74131/5 | R183: QUADRO DE DISTRIBUICAO DE ENERGIA DE EMBUTIR, EM CHAPA METALICA, PARA 24 DISJUNTORES TERMOMAGNETICOS MONOPOLARES, COM BARRAMENTO TRIFASICO E NEUTRO, FORNECIMENTO E INSTALACAO | S183: UN | T183: 1 | U183: 1 | V183: 1
A184: S | B184: 3 | C184: S | D184: 0 | E184: 1 | F184: 6 | G184: 2 | H184: 0 | I184: 0 | J184: 0 | K184: 0 | L184: F | M184: Serviço | N184: Serviço | O184: 1.6.2.44. | P184: AGETOP | Q184: 72425 | R184: TAMPA CEGA PLASTICA RETANGULAR 4"X2" | S184: Un | T184: 20 | U184: 1 | V184: 20
A185: S | B185: 3 | C185: S | D185: 0 | E185: 1 | F185: 6 | G185: 2 | H185: 0 | I185: 0 | J185: 0 | K185: 0 | L185: F | M185: Serviço | N185: Serviço | O185: 1.6.2.45. | P185: SINAPI | Q185: 91996 | R185: TOMADA MÉDIA DE EMBUTIR (1 MÓDULO), 2P+T 10 A, INCLUINDO SUPORTE E PLACA - FORNECIMENTO E INSTALAÇÃO. AF_12/2015 | S185: UN | T185: 6 | U185: 1 | V185: 6 | AA185: Referência: AGETOP - 72578
A186: S | B186: 3 | C186: S | D186: 0 | E186: 1 | F186: 6 | G186: 2 | H186: 0 | I186: 0 | J186: 0 | K186: 0 | L186: F | M186: Serviço | N186: Serviço | O186: 1.6.2.46. | P186: SINAPI | Q186: 92000 | R186: TOMADA BAIXA DE EMBUTIR (1 MÓDULO), 2P+T 10 A, INCLUINDO SUPORTE E PLACA - FORNECIMENTO E INSTALAÇÃO. AF_12/2015 | S186: UN | T186: 49 | U186: 1 | V186: 49 | AA186: Referência: AGETOP - 72578
A187: S | B187: 3 | C187: S | D187: 0 | E187: 1 | F187: 6 | G187: 2 | H187: 0 | I187: 0 | J187: 0 | K187: 0 | L187: F | M187: Serviço | N187: Serviço | O187: 1.6.2.47. | P187: SINAPI | Q187: 91992 | R187: TOMADA ALTA DE EMBUTIR (1 MÓDULO), 2P+T 10 A, INCLUINDO SUPORTE E PLACA - FORNECIMENTO E INSTALAÇÃO. AF_12/2015 | S187: UN | T187: 8 | U187: 1 | V187: 8 | AA187: Referência: AGETOP - 72585
A188: S | B188: 3 | C188: S | D188: 0 | E188: 1 | F188: 6 | G188: 2 | H188: 0 | I188: 0 | J188: 0 | K188: 0 | L188: F | M188: Serviço | N188: Serviço | O188: 1.6.2.48. | P188: SINAPI | Q188: 91993 | R188: TOMADA ALTA DE EMBUTIR (1 MÓDULO), 2P+T 20 A, INCLUINDO SUPORTE E PLACA - FORNECIMENTO E INSTALAÇÃO. AF_12/2015 | S188: UN | T188: 16 | U188: 1 | V188: 16 | AA188: Referência: AGETOP - 72585
A189: 3 | B189: 3 | C189: 3 | D189: 9 | E189: 1 | F189: 6 | G189: 3 | H189: 0 | I189: 0 | J189: 18 | K189: 9 | L189: F | M189: Nível 3 | N189: Nível 3 | O189: 1.6.3. | R189: IMPLANTAÇÃO BLOCOS DE SALAS | S189: - | U189: 1 | V189: -
A190: S | B190: 3 | C190: S | D190: 0 | E190: 1 | F190: 6 | G190: 3 | H190: 0 | I190: 0 | J190: 0 | K190: 0 | L190: F | M190: Serviço | N190: Serviço | O190: 1.6.3.1. | P190: AGETOP | Q190: 70354 | R190: BRACADEIRA METALICA TIPO "U" DIAM. 1.1/2" | S190: Un | T190: 30 | U190: 1 | V190: 30
A191: S | B191: 3 | C191: S | D191: 0 | E191: 1 | F191: 6 | G191: 3 | H191: 0 | I191: 0 | J191: 0 | K191: 0 | L191: F | M191: Serviço | N191: Serviço | O191: 1.6.3.2. | P191: AGETOP | Q191: 70424 | R191: BUCHA E ARRUELA METALICA DIAM. 1.1/2" | S191: PR | T191: 30 | U191: 1 | V191: 30
A192: S | B192: 3 | C192: S | D192: 0 | E192: 1 | F192: 6 | G192: 3 | H192: 0 | I192: 0 | J192: 0 | K192: 0 | L192: F | M192: Serviço | N192: Serviço | O192: 1.6.3.3. | P192: SINAPI | Q192: 91931 | R192: CABO DE COBRE FLEXÍVEL ISOLADO, 6 MM², ANTI-CHAMA 0,6/1,0 KV, PARA CIRCUITOS TERMINAIS - FORNECIMENTO E INSTALAÇÃO. AF_12/2015 | S192: M | T192: 500 | U192: 1 | V192: 500 | AA192: Referência: AGETOP - 70583
A193: S | B193: 3 | C193: S | D193: 0 | E193: 1 | F193: 6 | G193: 3 | H193: 0 | I193: 0 | J193: 0 | K193: 0 | L193: F | M193: Serviço | N193: Serviço | O193: 1.6.3.4. | P193: SINAPI | Q193: 97891 | R193: CAIXA ENTERRADA ELÉTRICA RETANGULAR, EM ALVENARIA COM BLOCOS DE CONCRETO, FUNDO COM BRITA, DIMENSÕES INTERNAS: 0,4X0,4X0,4 M. AF_05/2018 | S193: UN | T193: 1 | U193: 1 | V193: 1 | AA193: Referência: AGETOP - 70713
A194: S | B194: 3 | C194: S | D194: 0 | E194: 1 | F194: 6 | G194: 3 | H194: 0 | I194: 0 | J194: 0 | K194: 0 | L194: F | M194: Serviço | N194: Serviço | O194: 1.6.3.5. | P194: SINAPI | Q194: 93671 | R194: DISJUNTOR TRIPOLAR TIPO DIN, CORRENTE NOMINAL DE 32A - FORNECIMENTO E INSTALAÇÃO. AF_04/2016 | S194: UN | T194: 1 | U194: 1 | V194: 1 | AA194: Referência: AGETOP - 71173
A195: S | B195: 3 | C195: S | D195: 0 | E195: 1 | F195: 6 | G195: 3 | H195: 0 | I195: 0 | J195: 0 | K195: 0 | L195: F | M195: Serviço | N195: Serviço | O195: 1.6.3.6. | P195: SINAPI | Q195: 93008 | R195: ELETRODUTO RÍGIDO ROSCÁVEL, PVC, DN 50 MM (1 1/2") - FORNECIMENTO E INSTALAÇÃO. AF_12/2015 | S195: M | T195: 90 | U195: 1 | V195: 90
A196: =CHOOSE(1+LOG(1+2*(ORÇAMENTO.Nivel="Nível 1")+4*(ORÇAMENTO.Nivel="Nível 2")+8*(ORÇAMENTO.Nivel="Nível 3")+16*(ORÇAMENTO.Nivel="Nível 4")+32*(ORÇAMENTO.Nivel="Serviço"),2),0,1,2,3,4,"S") -> S | B196: 3 | C196: S | D196: 0 | E196: 1 | F196: 6 | G196: 3 | H196: 0 | I196: =IF(AND($C196<=4,$C196<>0),0,IF(AND($C196="S",$Y196>0),OFFSET(I196,-1,0)+1,OFFSET(I196,-1,0))) -> 0 | J196: 0 | K196: 0 | L196: F | M196: Serviço | N196: Serviço | O196: 1.6.3.7. | P196: AGETOP | Q196: 71321 | R196: FITA DE AUTO FUSAO, ROLO E 10,00 MM | S196: Un | T196: 1 | U196: 1 | V196: 1
A197: S | B197: 3 | C197: S | D197: 0 | E197: 1 | F197: 6 | G197: 3 | H197: 0 | I197: 0 | J197: 0 | K197: 0 | L197: F | M197: Serviço | N197: Serviço | O197: 1.6.3.8. | P197: SINAPI | Q197: 93013 | R197: LUVA PARA ELETRODUTO, PVC, ROSCÁVEL, DN 50 MM (1 1/2") - FORNECIMENTO E INSTALAÇÃO. AF_12/2015 | S197: UN | T197: 30 | U197: 1 | V197: 30 | AA197: Referência: AGETOP - 71744
A198: 3 | B198: 3 | C198: 3 | D198: 9 | E198: 1 | F198: 6 | G198: 4 | H198: 0 | I198: 0 | J198: 9 | K198: 100 | L198: F | M198: Nível 3 | N198: Nível 3 | O198: 1.6.4. | R198: IMPLANTAÇÃO BLOCOS DE SALAS | S198: - | U198: 1 | V198: -
A199: S | B199: 3 | C199: S | D199: 0 | E199: =IF($C199=1,OFFSET(E199,-1,0)+1,OFFSET(E199,-1,0)) -> 1 | F199: =IF($C199=1,0,IF($C199=2,OFFSET(F199,-1,0)+1,OFFSET(F199,-1,0))) -> 6 | G199: =IF(AND($C199<=2,$C199<>0),0,IF($C199=3,OFFSET(G199,-1,0)+1,OFFSET(G199,-1,0))) -> 4 | H199: =IF(AND($C199<=3,$C199<>0),0,IF($C199=4,OFFSET(H199,-1,0)+1,OFFSET(H199,-1,0))) -> 0 | I199: 0 | J199: 0 | K199: 0 | L199: F | M199: Serviço | N199: Serviço | O199: 1.6.4.1. | P199: AGETOP | Q199: 70354 | R199: BRACADEIRA METALICA TIPO "U" DIAM. 1.1/2" | S199: Un | T199: 16 | U199: 1 | V199: 16
A200: S | B200: 3 | C200: S | D200: 0 | E200: 1 | F200: 6 | G200: 4 | H200: 0 | I200: 0 | J200: 0 | K200: 0 | L200: F | M200: Serviço | N200: Serviço | O200: 1.6.4.2. | P200: AGETOP | Q200: 70424 | R200: BUCHA E ARRUELA METALICA DIAM. 1.1/2" | S200: PR | T200: 16 | U200: 1 | V200: 16
A201: S | B201: 3 | C201: S | D201: 0 | E201: 1 | F201: 6 | G201: 4 | H201: 0 | I201: 0 | J201: 0 | K201: 0 | L201: F | M201: Serviço | N201: Serviço | O201: 1.6.4.3. | P201: SINAPI | Q201: 91931 | R201: CABO DE COBRE FLEXÍVEL ISOLADO, 6 MM², ANTI-CHAMA 0,6/1,0 KV, PARA CIRCUITOS TERMINAIS - FORNECIMENTO E INSTALAÇÃO. AF_12/2015 | S201: M | T201: 250 | U201: 1 | V201: 250 | AA201: Referência: AGETOP - 70583
A202: S | B202: 3 | C202: S | D202: 0 | E202: 1 | F202: 6 | G202: 4 | H202: 0 | I202: 0 | J202: 0 | K202: 0 | L202: F | M202: Serviço | N202: Serviço | O202: 1.6.4.4. | P202: SINAPI | Q202: 97891 | R202: CAIXA ENTERRADA ELÉTRICA RETANGULAR, EM ALVENARIA COM BLOCOS DE CONCRETO, FUNDO COM BRITA, DIMENSÕES INTERNAS: 0,4X0,4X0,4 M. AF_05/2018 | S202: UN | T202: 1 | U202: 1 | V202: 1 | AA202: Referência: AGETOP - 70713
A203: S | B203: 3 | C203: S | D203: 0 | E203: 1 | F203: 6 | G203: 4 | H203: 0 | I203: 0 | J203: 0 | K203: 0 | L203: F | M203: Serviço | N203: Serviço | O203: 1.6.4.5. | P203: SINAPI | Q203: 93671 | R203: DISJUNTOR TRIPOLAR TIPO DIN, CORRENTE NOMINAL DE 32A - FORNECIMENTO E INSTALAÇÃO. AF_04/2016 | S203: UN | T203: 1 | U203: 1 | V203: 1 | AA203: Referência: AGETOP - 71173
A204: S | B204: 3 | C204: S | D204: 0 | E204: 1 | F204: 6 | G204: 4 | H204: 0 | I204: 0 | J204: 0 | K204: 0 | L204: F | M204: Serviço | N204: Serviço | O204: 1.6.4.6. | P204: SINAPI | Q204: 93008 | R204: ELETRODUTO RÍGIDO ROSCÁVEL, PVC, DN 50 MM (1 1/2") - FORNECIMENTO E INSTALAÇÃO. AF_12/2015 | S204: M | T204: 50 | U204: 1 | V204: 50
A205: S | B205: =IF(OR(C205="s",C205=0),OFFSET(B205,-1,0),C205) -> 3 | C205: =IF(OFFSET(C205,-1,0)="L",1,IF(OFFSET(C205,-1,0)=1,2,IF(OR(A205="s",A205=0),"S",IF(AND(OFFSET(C205,-1,0)=2,A205=4),3,IF(AND(OR(OFFSET(C205,-1,0)="s",OFFSET(C205,-1,0)=0),A205<>"s",A205>OFFSET(B205,-1,0)),OFFSET(B205,-1,0),A205))))) -> S | D205: =IF(OR(C205="S",C205=0),0,IF(ISERROR(K205),J205,SMALL(J205:K205,1))) -> 0 | E205: 1 | F205: 6 | G205: 4 | H205: 0 | I205: 0 | J205: 0 | K205: 0 | L205: F | M205: Serviço | N205: Serviço | O205: 1.6.4.7. | P205: AGETOP | Q205: 71321 | R205: FITA DE AUTO FUSAO, ROLO E 10,00 MM | S205: Un | T205: 1 | U205: 1 | V205: 1
A206: S | B206: 3 | C206: S | D206: 0 | E206: 1 | F206: 6 | G206: 4 | H206: 0 | I206: 0 | J206: 0 | K206: 0 | L206: F | M206: Serviço | N206: Serviço | O206: 1.6.4.8. | P206: SINAPI | Q206: 93013 | R206: LUVA PARA ELETRODUTO, PVC, ROSCÁVEL, DN 50 MM (1 1/2") - FORNECIMENTO E INSTALAÇÃO. AF_12/2015 | S206: UN | T206: 16 | U206: 1 | V206: 16 | AA206: Referência: AGETOP - 71744
... 368 more rows

Sheet Resumo
B3: UNIDADE ESCOLAR | G3: CÓDIGO INEP
B4: =Orçamento!$O$4 -> COLÉGIO ESTADUAL PROFESSORA MARIA PEREIRA VASCONCELOS | G4: =Orçamento!X4 -> 52047318
B6: OBRA | G6: CIDADE
B7: =Orçamento!$O$7 -> AMPLIAÇÃO E REFORMA | G7: =Orçamento!$X$7 -> LUZIÂNIA
B9: ENDEREÇO | G9: CRE
B10: =Orçamento!$R$10 -> RUA 92 QD 256 LOTE A SN JARDIM INGA, PQ. ESTRELA DALVA IX, CEP:72853-256 | G10: =Orçamento!$O$10 -> LUZIÂNIA
B12: REFERÊNCIA | D12: DATA | G12: ÁREA TOTAL CONSTRUÍDA (M²)
B13: =CONCATENATE("AGETOP E SINAPI - ",Orçamento!$Y$10) -> AGETOP E SINAPI - ONERADA | D13: =Orçamento!$S$7 -> 2020-08-27 | G13: =Orçamento!$S$13 -> 0
A14: FILTRO
B15: RESUMO GERAL DO ORÇAMENTO
A16: ↓ | B16: ITEM | C16: DESCRIÇÃO DOS SERVIÇOS | G16: PREÇO SEM BDI | H16: PREÇO COM BDI | I16: PARTICIP. (%)
A17: =IF(G17>0,"F","") ->  | B17: 1. | C17: =Orçamento!$P554 -> REFORMA | G17: =IFERROR(Orçamento!S554,"-") -> 0 | H17: =IFERROR(Orçamento!X554,"") -> 0 | I17: =Orçamento!AA554 -> 
A18: =IF(G18>0,"F","") ->  | B18: 2. | C18: =Orçamento!$P555 -> BLOCO 3 SALAS PADRÃO SEDUC 2017 - LAJE | G18: =IFERROR(Orçamento!S555,"-") -> 0 | H18: =IFERROR(Orçamento!X555,"") -> 0 | I18: =Orçamento!AA555 -> 
B19: 3. | C19: =Orçamento!$P556 ->  | G19: =IFERROR(Orçamento!S556,"-") -> 0 | H19: =IFERROR(Orçamento!X556,"") -> 0 | I19: =Orçamento!AA556 -> 
B20: 4. | C20: =Orçamento!$P557 ->  | G20: =IFERROR(Orçamento!S557,"-") -> 0 | H20: =IFERROR(Orçamento!X557,"") -> 0 | I20: =Orçamento!AA557 -> 
B21: 5. | C21: =Orçamento!$P558 ->  | G21: =IFERROR(Orçamento!S558,"-") -> 0 | H21: =IFERROR(Orçamento!X558,"") -> 0 | I21: =Orçamento!AA558 -> 
B22: 6. | C22: =Orçamento!$P559 ->  | G22: =IFERROR(Orçamento!S559,"-") -> 0 | H22: =IFERROR(Orçamento!X559,"") -> 0 | I22: =Orçamento!AA559 -> 
B23: 7. | C23: =Orçamento!$P560 ->  | G23: =IFERROR(Orçamento!S560,"-") -> 0 | H23: =IFERROR(Orçamento!X560,"") -> 0 | I23: =Orçamento!AA560 -> 
B24: 8. | C24: =Orçamento!$P561 ->  | G24: =IFERROR(Orçamento!S561,"-") -> 0 | H24: =IFERROR(Orçamento!X561,"") -> 0 | I24: =Orçamento!AA561 -> 
B25: 9. | C25: =Orçamento!$P562 ->  | G25: =IFERROR(Orçamento!S562,"-") -> 0 | H25: =IFERROR(Orçamento!X562,"") -> 0 | I25: =Orçamento!AA562 -> 
B26: 10. | C26: =Orçamento!$P563 ->  | G26: =IFERROR(Orçamento!S563,"-") -> 0 | H26: =IFERROR(Orçamento!X563,"") -> 0 | I26: =Orçamento!AA563 -> 
B27: 11. | C27: =Orçamento!$P564 ->  | G27: =IFERROR(Orçamento!S564,"-") -> 0 | H27: =IFERROR(Orçamento!X564,"") -> 0 | I27: =Orçamento!AA564 -> 
B28: 12. | C28: =Orçamento!$P565 ->  | G28: =IFERROR(Orçamento!S565,"-") -> 0 | H28: =IFERROR(Orçamento!X565,"") -> 0 | I28: =Orçamento!AA565 -> 
B29: 13. | C29: =Orçamento!$P566 ->  | G29: =IFERROR(Orçamento!S566,"-") -> 0 | H29: =IFERROR(Orçamento!X566,"") -> 0 | I29: =Orçamento!AA566 -> 
B30: 14. | C30: =Orçamento!$P567 ->  | G30: =IFERROR(Orçamento!S567,"-") -> 0 | H30: =IFERROR(Orçamento!X567,"") -> 0 | I30: =Orçamento!AA567 -> 
B31: 15. | C31: =Orçamento!$P568 ->  | G31: =IFERROR(Orçamento!S568,"-") -> 0 | H31: =IFERROR(Orçamento!X568,"") -> 0 | I31: =Orçamento!AA568 -> 
B32: 16. | C32: =Orçamento!$P569 ->  | G32: =IFERROR(Orçamento!S569,"-") -> 0 | H32: =IFERROR(Orçamento!X569,"") -> 0 | I32: =Orçamento!AA569 -> 
B33: 17. | C33: =Orçamento!$P570 ->  | G33: =IFERROR(Orçamento!S570,"-") -> 0 | H33: =IFERROR(Orçamento!X570,"") -> 0 | I33: =Orçamento!AA570 -> 
B34: 18. | C34: =Orçamento!$P571 ->  | G34: =IFERROR(Orçamento!S571,"-") -> 0 | H34: =IFERROR(Orçamento!X571,"") -> 0 | I34: =Orçamento!AA571 -> 
B35: 19. | C35: =Orçamento!$P572 ->  | G35: =IFERROR(Orçamento!S572,"-") -> 0 | H35: =IFERROR(Orçamento!X572,"") -> 0 | I35: =Orçamento!AA572 -> 
B36: 20. | C36: =Orçamento!$P573 ->  | G36: =IFERROR(Orçamento!S573,"-") -> 0 | H36: =IFERROR(Orçamento!X573,"") -> 0 | I36: =Orçamento!AA573 -> 
A37: F | B37: TOTAL GERAL DO ORÇAMENTO (R$) | G37: =SUM(G17:G36) -> 0 | H37: 0 | I37: =SUM(I17:I36) -> 
A38: F
A39: F

Sheet Somatório
B3: UNIDADE ESCOLAR | E3: CÓDIGO INEP
B4: =Orçamento!$O$4 -> COLÉGIO ESTADUAL PROFESSORA MARIA PEREIRA VASCONCELOS | E4: =Orçamento!X4 -> 52047318
B6: OBRA | E6: CIDADE
B7: =Orçamento!$O$7 -> AMPLIAÇÃO E REFORMA | E7: =Orçamento!$X$7 -> LUZIÂNIA
B9: ENDEREÇO | E9: CRE
B10: =Orçamento!$R$10 -> RUA 92 QD 256 LOTE A SN JARDIM INGA, PQ. ESTRELA DALVA IX, CEP:72853-256 | E10: =Orçamento!$O$10 -> LUZIÂNIA
B12: REFERÊNCIA | D12: DATA | E12: ÁREA TOTAL CONSTRUÍDA (M²)
B13: =CONCATENATE("AGETOP E SINAPI - ",Orçamento!$Y$10) -> AGETOP E SINAPI - ONERADA | D13: =Orçamento!$S$7 -> 2020-08-27 | E13: =Orçamento!$S$13 -> 0
A14: FILTRO
B15: SOMATÓRIO DE SERVIÇOS
A16: ↓ | B16: ITEM | C16: DESCRIÇÃO DOS SERVIÇOS | D16: PREÇO SEM BDI (R$) | E16: PREÇO COM BDI (R$) | F16: PARTIC. ( % )
A17: =IF(D17>0,"F","") ->  | B17: a. | C17: =Orçamento!P520 -> SERVIÇOS PRELIMINARES | D17: =Orçamento!S520 -> 0 | E17: =Orçamento!X520 -> 0 | F17: =Orçamento!AA520 -> 0
A18: =IF(D18>0,"F","") ->  | B18: b. | C18: =Orçamento!P521 -> TRANSPORTES | D18: =Orçamento!S521 -> 0 | E18: =Orçamento!X521 -> 0 | F18: =Orçamento!AA521 -> 0
B19: c. | C19: =Orçamento!P522 -> SERVIÇO EM TERRA | D19: =Orçamento!S522 -> 0 | E19: =Orçamento!X522 -> 0 | F19: =Orçamento!AA522 -> 0
B20: d. | C20: =Orçamento!P523 -> FUNDAÇÕES E SONDAGENS | D20: =Orçamento!S523 -> 0 | E20: =Orçamento!X523 -> 0 | F20: =Orçamento!AA523 -> 0
B21: e. | C21: =Orçamento!P524 -> ESTRUTURA | D21: =Orçamento!S524 -> 0 | E21: =Orçamento!X524 -> 0 | F21: =Orçamento!AA524 -> 0
B22: f. | C22: =Orçamento!P525 -> INSTALAÇÕES ELÉTRICAS | D22: =Orçamento!S525 -> 0 | E22: =Orçamento!X525 -> 0 | F22: =Orçamento!AA525 -> 0
B23: g. | C23: =Orçamento!P526 -> INSTALAÇÕES HIDROSSANITÁRIAS | D23: =Orçamento!S526 -> 0 | E23: =Orçamento!X526 -> 0 | F23: =Orçamento!AA526 -> 0
B24: h | C24: =Orçamento!P527 -> INSTALAÇÕES ESPECIAIS | D24: =Orçamento!S527 -> 0 | E24: =Orçamento!X527 -> 0 | F24: =Orçamento!AA527 -> 0
B25: i. | C25: =Orçamento!P528 -> ALVENARIAS E DIVISÓRIAS | D25: =Orçamento!S528 -> 0 | E25: =Orçamento!X528 -> 0 | F25: =Orçamento!AA528 -> 0
B26: j. | C26: =Orçamento!P529 -> ALVENARIA AUTO-PORTANTE | D26: =Orçamento!S529 -> 0 | E26: =Orçamento!X529 -> 0 | F26: =Orçamento!AA529 -> 0
B27: k. | C27: =Orçamento!P530 -> IMPERMEABILIZAÇÃO | D27: =Orçamento!S530 -> 0 | E27: =Orçamento!X530 -> 0 | F27: =Orçamento!AA530 -> 0
B28: l. | C28: =Orçamento!P531 -> ISOLAMENTO TÉRMICO E ACÚSTICO | D28: =Orçamento!S531 -> 0 | E28: =Orçamento!X531 -> 0 | F28: =Orçamento!AA531 -> 0
B29: m. | C29: =Orçamento!P532 -> ESTRUTURA DE MADEIRA | D29: =Orçamento!S532 -> 0 | E29: =Orçamento!X532 -> 0 | F29: =Orçamento!AA532 -> 0
B30: n. | C30: =Orçamento!P533 -> ESTRUTURAS METÁLICAS | D30: =Orçamento!S533 -> 0 | E30: =Orçamento!X533 -> 0 | F30: =Orçamento!AA533 -> 0
B31: o. | C31: =Orçamento!P534 -> COBERTURAS | D31: =Orçamento!S534 -> 0 | E31: =Orçamento!X534 -> 0 | F31: =Orçamento!AA534 -> 0
B32: p. | C32: =Orçamento!P535 -> ESQUADRIAS DE MADEIRA | D32: =Orçamento!S535 -> 0 | E32: =Orçamento!X535 -> 0 | F32: =Orçamento!AA535 -> 0
B33: q. | C33: =Orçamento!P536 -> ESQUADRIAS METÁLICAS | D33: =Orçamento!S536 -> 0 | E33: =Orçamento!X536 -> 0 | F33: =Orçamento!AA536 -> 0
B34: r. | C34: =Orçamento!P537 -> VIDROS | D34: =Orçamento!S537 -> 0 | E34: =Orçamento!X537 -> 0 | F34: =Orçamento!AA537 -> 0
B35: s. | C35: =Orçamento!P538 -> REVESTIMENTO DE PAREDE | D35: =Orçamento!S538 -> 0 | E35: =Orçamento!X538 -> 0 | F35: =Orçamento!AA538 -> 0
B36: t. | C36: =Orçamento!P539 -> FORROS | D36: =Orçamento!S539 -> 0 | E36: =Orçamento!X539 -> 0 | F36: =Orçamento!AA539 -> 0
B37: u. | C37: =Orçamento!P540 -> REVESTIMENTO DE PISO | D37: =Orçamento!S540 -> 0 | E37: =Orçamento!X540 -> 0 | F37: =Orçamento!AA540 -> 0
B38: v. | C38: =Orçamento!P541 -> FERRAGENS | D38: =Orçamento!S541 -> 0 | E38: =Orçamento!X541 -> 0 | F38: =Orçamento!AA541 -> 0
B39: w. | C39: =Orçamento!P542 -> MARCENARIA | D39: =Orçamento!S542 -> 0 | E39: =Orçamento!X542 -> 0 | F39: =Orçamento!AA542 -> 0
B40: x. | C40: =Orçamento!P543 -> ADMINISTRAÇÃO | D40: =Orçamento!S543 -> 0 | E40: =Orçamento!X543 -> 0 | F40: =Orçamento!AA543 -> 0
B41: y. | C41: =Orçamento!P544 -> PINTURA | D41: =Orçamento!S544 -> 0 | E41: =Orçamento!X544 -> 0 | F41: =Orçamento!AA544 -> 0
B42: z. | C42: =Orçamento!P545 -> DIVERSOS | D42: =Orçamento!S545 -> 0 | E42: =Orçamento!X545 -> 0 | F42: =Orçamento!AA545 -> 0
A43: F | B43: TOTAL GERAL DO ORÇAMENTO | D43: =SUM(D17:D42) -> 0 | E43: =SUM(E17:E42) -> 0 | F43: =SUM(F17:F42) -> 0
B45: (*) Para itens da AGETOP, os vidros não estão inclusos nas esquadrias e já foram considerados os custos de contramarco para as esquadrias de alumínio;

Sheet Cronog_90_Dias
B3: UNIDADE ESCOLAR | I3: PRAZO
B4: =Orçamento!$O$4 -> COLÉGIO ESTADUAL PROFESSORA MARIA PEREIRA VASCONCELOS | I4: 90 DIAS CORRIDOS
B6: OBRA | I6: DATA
B7: =Orçamento!$O$7 -> AMPLIAÇÃO E REFORMA | I7: =Orçamento!$S$7 -> 2020-08-27
B9: LOCAL | I9: ÁREA TOTAL CONSTRUÍDA (M²)
A10: FILTRO | B10: =Orçamento!$X$7 -> LUZIÂNIA | I10: =Orçamento!$S$13 -> 0
B12: CRONOGRAMA - FÍSICO FINANCEIRO
A13: ↓ | B13: CUSTO TOTAL: | C13: =D93 -> 0 | D13: VALOR | E13: Dias: | F13: 30 | J13: 60 | N13: 90 | R13: TOTAL
B14: DESCRIÇÃO DOS SERVIÇOS | E14: % | F14: 1ª PARCELA | J14: 2ª PARCELA | N14: 3ª PARCELA
A15: =IF(D15>0,"F","") ->  | B15: SERVIÇOS PRELIMINARES | D15: =Orçamento!X520 -> 0 | E15: =Orçamento!AA520 -> 0 | F15: =ROUND(F17*$D$15,2) -> 0 | J15: =ROUND(J17*$D$15,2) -> 0 | N15: =ROUND(N17*$D$15,2) -> 0 | R15: =SUM(F15:Q15) -> 0
A16: =IF(A15="F",A15,"") -> 
A17: =IF(A16="F",A16,"") ->  | F17: 0.6 | J17: 0.4 | N17: =1-F17-J17 -> 0 | R17: =IFERROR(E15/100,"") -> 0
A18: =IF(D18>0,"F","") ->  | B18: TRANSPORTES | D18: =Orçamento!X521 -> 0 | E18: =Orçamento!AA521 -> 0 | F18: =ROUND(F20*$D$18,2) -> 0 | J18: =ROUND(J20*$D$18,2) -> 0 | N18: =ROUND(N20*$D$18,2) -> 0 | R18: =SUM(F18:Q18) -> 0
A19: =IF(A18="F",A18,"") -> 
A20: =IF(A19="F",A19,"") ->  | F20: 0.42 | J20: 0.58 | N20: =1-F20-J20 -> 0 | R20: =IFERROR(E18/100,"") -> 0
A21: =IF(D21>0,"F","") ->  | B21: SERVIÇO EM TERRA | D21: =Orçamento!X522 -> 0 | E21: =Orçamento!AA522 -> 0 | F21: =ROUND(F23*$D$21,2) -> 0 | J21: =ROUND(J23*$D$21,2) -> 0 | N21: =ROUND(N23*$D$21,2) -> 0 | R21: =SUM(F21:Q21) -> 0
A22: =IF(A21="F",A21,"") -> 
A23: =IF(A22="F",A22,"") ->  | F23: 0.6 | J23: 0.4 | N23: =1-F23-J23 -> 0 | R23: =IFERROR(E21/100,"") -> 0
A24: =IF(D24>0,"F","") ->  | B24: FUNDAÇÕES E SONDAGENS | D24: =Orçamento!X523 -> 0 | E24: =Orçamento!AA523 -> 0 | F24: =ROUND(F26*$D$24,2) -> 0 | J24: =ROUND(J26*$D$24,2) -> 0 | N24: =ROUND(N26*$D$24,2) -> 0 | R24: =SUM(F24:Q24) -> 0
A25: =IF(A24="F",A24,"") -> 
A26: =IF(A25="F",A25,"") ->  | F26: 0.6 | J26: 0.4 | N26: =1-F26-J26 -> 0 | R26: =IFERROR(E24/100,"") -> 0
A27: =IF(D27>0,"F","") ->  | B27: ESTRUTURA | D27: =Orçamento!X524 -> 0 | E27: =Orçamento!AA524 -> 0 | F27: =ROUND(F29*$D$27,2) -> 0 | J27: =ROUND(J29*$D$27,2) -> 0 | N27: =ROUND(N29*$D$27,2) -> 0 | R27: =SUM(F27:Q27) -> 0
A28: =IF(A27="F",A27,"") -> 
A29: =IF(A28="F",A28,"") ->  | F29: 0.2 | J29: 0.7 | N29: =1-F29-J29 -> 0.1 | R29: =IFERROR(E27/100,"") -> 0
A30: =IF(D30>0,"F","") ->  | B30: INST.ELET/TELEFÔNICA/CABEAMENTO ESTRUTURADO | D30: =Orçamento!X525 -> 0 | E30: =Orçamento!AA525 -> 0 | F30: =ROUND(F32*$D$30,2) -> 0 | J30: =ROUND(J32*$D$30,2) -> 0 | N30: =ROUND(N32*$D$30,2) -> 0 | R30: =SUM(F30:Q30) -> 0
A31: =IF(A30="F",A30,"") -> 
A32: =IF(A31="F",A31,"") ->  | F32: 0.15 | J32: 0.75 | N32: =1-F32-J32 -> 0.1 | R32: =IFERROR(E30/100,"") -> 0
A33: =IF(D33>0,"F","") ->  | B33: INSTALAÇÕES HIDROSSANITÁRIAS | D33: =Orçamento!X526 -> 0 | E33: =Orçamento!AA526 -> 0 | F33: =ROUND(F35*$D$33,2) -> 0 | J33: =ROUND(J35*$D$33,2) -> 0 | N33: =ROUND(N35*$D$33,2) -> 0 | R33: =SUM(F33:Q33) -> 0
A34: =IF(A33="F",A33,"") -> 
A35: =IF(A34="F",A34,"") ->  | F35: 0.25 | J35: 0.6 | N35: =1-F35-J35 -> 0.15 | R35: =IFERROR(E33/100,"") -> 0
A36: =IF(D36>0,"F","") ->  | B36: INSTALAÇÕES ESPECIAIS | D36: =Orçamento!X527 -> 0 | E36: =Orçamento!AA527 -> 0 | F36: =ROUND(F38*$D$36,2) -> 0 | J36: =ROUND(J38*$D$36,2) -> 0 | N36: =ROUND(N38*$D$36,2) -> 0 | R36: =SUM(F36:Q36) -> 0
A37: =IF(A36="F",A36,"") -> 
A38: =IF(A37="F",A37,"") ->  | F38: 0.3 | J38: 0.7 | N38: =1-F38-J38 -> 0 | R38: =IFERROR(E36/100,"") -> 0
A39: =IF(D39>0,"F","") ->  | B39: ALVENARIA E DIVISÓRIAS | D39: =Orçamento!X528 -> 0 | E39: =Orçamento!AA528 -> 0 | F39: =ROUND(F41*$D$39,2) -> 0 | J39: =ROUND(J41*$D$39,2) -> 0 | N39: =ROUND(N41*$D$39,2) -> 0 | R39: =SUM(F39:Q39) -> 0
A40: =IF(A39="F",A39,"") -> 
A41: =IF(A40="F",A40,"") ->  | F41: 0.35 | J41: 0.65 | N41: =1-F41-J41 -> 0 | R41: =IFERROR(E39/100,"") -> 0
A42: =IF(D42>0,"F","") ->  | B42: ALVENARIA AUTO-PORTANTE | D42: =Orçamento!X529 -> 0 | E42: =Orçamento!AA529 -> 0 | F42: =ROUND(F44*$D$42,2) -> 0 | J42: =ROUND(J44*$D$42,2) -> 0 | N42: =ROUND(N44*$D$42,2) -> 0 | R42: =SUM(F42:Q42) -> 0
A43: =IF(A42="F",A42,"") -> 
A44: =IF(A43="F",A43,"") ->  | F44: 0.34 | J44: 0.66 | N44: =1-F44-J44 -> 0 | R44: =IFERROR(E42/100,"") -> 0
A45: =IF(D45>0,"F","") ->  | B45: IMPERMEABILIZAÇÃO | D45: =Orçamento!X530 -> 0 | E45: =Orçamento!AA530 -> 0 | F45: =ROUND(F47*$D$45,2) -> 0 | J45: =ROUND(J47*$D$45,2) -> 0 | N45: =ROUND(N47*$D$45,2) -> 0 | R45: =SUM(F45:Q45) -> 0
A46: =IF(A45="F",A45,"") -> 
A47: =IF(A46="F",A46,"") ->  | F47: 0.45 | J47: 0.55 | N47: =1-F47-J47 -> 0 | R47: =IFERROR(E45/100,"") -> 0
A48: =IF(D48>0,"F","") ->  | B48: ISOLAMENTO TÉRMICO E ACÚSTICO | D48: =Orçamento!X531 -> 0 | E48: =Orçamento!AA531 -> 0 | F48: =ROUND(F50*$D$48,2) -> 0 | J48: =ROUND(J50*$D$48,2) -> 0 | N48: =ROUND(N50*$D$48,2) -> 0 | R48: =SUM(F48:Q48) -> 0
A49: =IF(A48="F",A48,"") -> 
A50: =IF(A49="F",A49,"") ->  | F50: 0.45 | J50: 0.55 | N50: =1-F50-J50 -> 0 | R50: =IFERROR(E48/100,"") -> 0
A51: =IF(D51>0,"F","") ->  | B51: ESTRUTURA DE MADEIRA | D51: =Orçamento!X532 -> 0 | E51: =Orçamento!AA532 -> 0 | F51: =ROUND(F53*$D$51,2) -> 0 | J51: =ROUND(J53*$D$51,2) -> 0 | N51: =ROUND(N53*$D$51,2) -> 0 | R51: =SUM(F51:Q51) -> 0
A52: =IF(A51="F",A51,"") -> 
A53: =IF(A52="F",A52,"") ->  | F53: 0.15 | J53: 0.7 | N53: =1-F53-J53 -> 0.15 | R53: =IFERROR(E51/100,"") -> 0
A54: =IF(D54>0,"F","") ->  | B54: ESTRUTURA METÁLICA | D54: =Orçamento!X533 -> 0 | E54: =Orçamento!AA533 -> 0 | F54: =ROUND(F56*$D$54,2) -> 0 | J54: =ROUND(J56*$D$54,2) -> 0 | N54: =ROUND(N56*$D$54,2) -> 0 | R54: =SUM(F54:Q54) -> 0
A55: =IF(A54="F",A54,"") -> 
A56: =IF(A55="F",A55,"") ->  | F56: 0.35 | J56: 0.65 | N56: =1-F56-J56 -> 0 | R56: =IFERROR(E54/100,"") -> 0
A57: =IF(D57>0,"F","") ->  | B57: COBERTURAS | D57: =Orçamento!X534 -> 0 | E57: =Orçamento!AA534 -> 0 | F57: =ROUND(F59*$D$57,2) -> 0 | J57: =ROUND(J59*$D$57,2) -> 0 | N57: =ROUND(N59*$D$57,2) -> 0 | R57: =SUM(F57:Q57) -> 0
A58: =IF(A57="F",A57,"") -> 
A59: =IF(A58="F",A58,"") ->  | F59: 0 | J59: 0.26 | N59: =1-F59-J59 -> 0.74 | R59: =IFERROR(E57/100,"") -> 0
A60: =IF(D60>0,"F","") ->  | B60: ESQUADRIAS DE MADEIRA | D60: =Orçamento!X535 -> 0 | E60: =Orçamento!AA535 -> 0 | F60: =ROUND(F62*$D$60,2) -> 0 | J60: =ROUND(J62*$D$60,2) -> 0 | N60: =ROUND(N62*$D$60,2) -> 0 | R60: =SUM(F60:Q60) -> 0
A61: =IF(A60="F",A60,"") -> 
A62: =IF(A61="F",A61,"") ->  | F62: 0.3 | J62: 0.55 | N62: =1-F62-J62 -> 0.15 | R62: =IFERROR(E60/100,"") -> 0
A63: =IF(D63>0,"F","") ->  | B63: ESQUADRIAS METÁLICAS | D63: =Orçamento!X536 -> 0 | E63: =Orçamento!AA536 -> 0 | F63: =ROUND(F65*$D$63,2) -> 0 | J63: =ROUND(J65*$D$63,2) -> 0 | N63: =ROUND(N65*$D$63,2) -> 0 | R63: =SUM(F63:Q63) -> 0
A64: =IF(A63="F",A63,"") -> 
A65: =IF(A64="F",A64,"") ->  | F65: 0.3 | J65: 0.55 | N65: =1-F65-J65 -> 0.15 | R65: =IFERROR(E63/100,"") -> 0
A66: =IF(D66>0,"F","") ->  | B66: VIDROS | D66: =Orçamento!X537 -> 0 | E66: =Orçamento!AA537 -> 0 | F66: =ROUND(F68*$D$66,2) -> 0 | J66: =ROUND(J68*$D$66,2) -> 0 | N66: =ROUND(N68*$D$66,2) -> 0 | R66: =SUM(F66:Q66) -> 0
A67: =IF(A66="F",A66,"") -> 
A68: =IF(A67="F",A67,"") ->  | F68: 0 | J68: 0 | N68: =1-F68-J68 -> 1 | R68: =IFERROR(E66/100,"") -> 0
A69: =IF(D69>0,"F","") ->  | B69: REVESTIMENTO DE PAREDE | D69: =Orçamento!X538 -> 0 | E69: =Orçamento!AA538 -> 0 | F69: =ROUND(F71*$D$69,2) -> 0 | J69: =ROUND(J71*$D$69,2) -> 0 | N69: =ROUND(N71*$D$69,2) -> 0 | R69: =SUM(F69:Q69) -> 0
A70: =IF(A69="F",A69,"") -> 
A71: =IF(A70="F",A70,"") ->  | F71: 0.25 | J71: 0.6 | N71: =1-F71-J71 -> 0.15 | R71: =IFERROR(E69/100,"") -> 0
A72: =IF(D72>0,"F","") ->  | B72: FORROS | D72: =Orçamento!X539 -> 0 | E72: =Orçamento!AA539 -> 0 | F72: =ROUND(F74*$D$72,2) -> 0 | J72: =ROUND(J74*$D$72,2) -> 0 | N72: =ROUND(N74*$D$72,2) -> 0 | R72: =SUM(F72:Q72) -> 0
A73: =IF(A72="F",A72,"") -> 
A74: =IF(A73="F",A73,"") ->  | F74: 0.24 | J74: 0.55 | N74: =1-F74-J74 -> 0.21 | R74: =IFERROR(E72/100,"") -> 0
A75: =IF(D75>0,"F","") ->  | B75: REVESTIMENTO DE PISO | D75: =Orçamento!X540 -> 0 | E75: =Orçamento!AA540 -> 0 | F75: =ROUND(F77*$D$75,2) -> 0 | J75: =ROUND(J77*$D$75,2) -> 0 | N75: =ROUND(N77*$D$75,2) -> 0 | R75: =SUM(F75:Q75) -> 0
A76: =IF(A75="F",A75,"") -> 
A77: =IF(A76="F",A76,"") ->  | F77: 0.3 | J77: 0.5 | N77: =1-F77-J77 -> 0.2 | R77: =IFERROR(E75/100,"") -> 0
A78: =IF(D78>0,"F","") ->  | B78: FERRAGENS | D78: =Orçamento!X541 -> 0 | E78: =Orçamento!AA541 -> 0 | F78: =ROUND(F80*$D$78,2) -> 0 | J78: =ROUND(J80*$D$78,2) -> 0 | N78: =ROUND(N80*$D$78,2) -> 0 | R78: =SUM(F78:Q78) -> 0
A79: =IF(A78="F",A78,"") -> 
A80: =IF(A79="F",A79,"") ->  | F80: 0 | J80: 0 | N80: =1-F80-J80 -> 1 | R80: =IFERROR(E78/100,"") -> 0
A81: =IF(D81>0,"F","") ->  | B81: MARCENARIA | D81: =Orçamento!X542 -> 0 | E81: =Orçamento!AA542 -> 0 | F81: =ROUND(F83*$D$81,2) -> 0 | J81: =ROUND(J83*$D$81,2) -> 0 | N81: =ROUND(N83*$D$81,2) -> 0 | R81: =SUM(F81:Q81) -> 0
A82: =IF(A81="F",A81,"") -> 
A83: =IF(A82="F",A82,"") ->  | F83: 0 | J83: 0.74 | N83: =1-F83-J83 -> 0.26 | R83: =IFERROR(E81/100,"") -> 0
A84: =IF(D84>0,"F","") ->  | B84: ADMINISTRAÇÃO - MENSALISTAS | D84: =Orçamento!X543 -> 0 | E84: =Orçamento!AA543 -> 0 | F84: =ROUND(F86*$D$84,2) -> 0 | J84: =ROUND(J86*$D$84,2) -> 0 | N84: =ROUND(N86*$D$84,2) -> 0 | R84: =SUM(F84:Q84) -> 0
A85: =IF(A84="F",A84,"") -> 
A86: =IF(A85="F",A85,"") ->  | F86: 0.33 | J86: 0.33 | N86: =1-F86-J86 -> 0.34 | R86: =IFERROR(E84/100,"") -> 0
A87: =IF(D87>0,"F","") ->  | B87: PINTURA | D87: =Orçamento!X544 -> 0 | E87: =Orçamento!AA544 -> 0 | F87: =ROUND(F89*$D$87,2) -> 0 | J87: =ROUND(J89*$D$87,2) -> 0 | N87: =ROUND(N89*$D$87,2) -> 0 | R87: =SUM(F87:Q87) -> 0
A88: =IF(A87="F",A87,"") -> 
A89: =IF(A88="F",A88,"") ->  | F89: 0 | J89: 0.44 | N89: =1-F89-J89 -> 0.56 | R89: =IFERROR(E87/100,"") -> 0
A90: =IF(D90>0,"F","") ->  | B90: DIVERSOS | D90: =Orçamento!X545 -> 0 | E90: =Orçamento!AA545 -> 0 | F90: =ROUND(F92*$D$90,2) -> 0 | J90: =ROUND(J92*$D$90,2) -> 0 | N90: =ROUND(N92*$D$90,2) -> 0 | R90: =SUM(F90:Q90) -> 0
A91: =IF(A90="F",A90,"") -> 
A92: =IF(A91="F",A91,"") ->  | F92: 0.26 | J92: 0.55 | N92: =1-F92-J92 -> 0.19 | R92: =IFERROR(E90/100,"") -> 0
A93: F | B93: CUSTO DO ORÇAMENTO | D93: =SUM(D15:D92) -> 0 | E93: =SUM(E15:E92) -> 0 | F93: =F15+F18+F21+F24+F27+F30+F33+F36+F39+F42+F45+F48+F51+F54+F57+F60+F63+F66+F69+F72+F75+F78+F81+F84+F87+F90 -> 0 | J93: =J15+J18+J21+J24+J27+J30+J33+J36+J39+J42+J45+J48+J51+J54+J57+J60+J63+J66+J69+J72+J75+J78+J81+J84+J87+J90 -> 0 | N93: =N15+N18+N21+N24+N27+N30+N33+N36+N39+N42+N45+N48+N51+N54+N57+N60+N63+N66+N69+N72+N75+N78+N81+N84+N87+N90 -> 0 | R93: =R15+R18+R21+R24+R27+R30+R33+R36+R39+R42+R45+R48+R51+R54+R57+R60+R63+R66+R69+R72+R75+R78+R81+R84+R87+R90 -> 0
A94: F | B94: PERCENTUAIS: | F94: =IFERROR(F93/D93,"") ->  | J94: =IFERROR(J93/D93,"") ->  | N94: =IFERROR(N93/D93,"") ->  | R94: =SUM(F94:Q94) -> 0
A95: F | B95: TOTAIS ACUMULADOS: | F95: =F93 -> 0 | J95: =F95+J93 -> 0 | N95: =J95+N93 -> 0
A96: F | B96: PERCENTUAIS ACUMULADOS: | F96: =F94 ->  | J96: =IFERROR(F96+J94,"") ->  | N96: =IFERROR(J96+N94,"") -> 
A97: F
A98: F | B98: OBSERVAÇÕES:
A99: F | B99: Os pagamentos somente poderão ser efetuados mediante medição e atesto pelos técnicos da Secretaria da Educação.

Sheet Composição BDI
A3: UNIDADE ESCOLAR
A4: =Orçamento!$O$4 -> COLÉGIO ESTADUAL PROFESSORA MARIA PEREIRA VASCONCELOS
A6: OBRA
A7: =Orçamento!$O$7 -> AMPLIAÇÃO E REFORMA
A9: ENDEREÇO
A10: =Orçamento!$R$10 -> RUA 92 QD 256 LOTE A SN JARDIM INGA, PQ. ESTRELA DALVA IX, CEP:72853-256
A12: CIDADE
A13: =Orçamento!$X$7 -> LUZIÂNIA
A15: CRE
A16: =Orçamento!$O$10 -> LUZIÂNIA
A18: DETALHAMENTO DA COMPOSIÇÃO DE BDI
A19: COMPOSIÇÃO BDI PARA OBRAS CIVIS | F19: BDI CONSTRUÇÃO E REFORMA
A20: DESCRIÇÃO | B20: COEF. | C20: TAXA % (a.m) | D20: % no preço de venda | F20: Situação | G20: 1º Quartil | H20: Médio | I20: 3º Quartil
A21: 1) COFINS | B21: 1 | C21: 0.03 | D21: =C21 -> 0.03 | F21: =IF(OR(C21<G21,C21>I21),"FORA DO INTERVALO","OK") -> OK | G21: 0.03 | H21: 0.03 | I21: 0.03
A22: 2) PIS | B22: 1 | C22: 0.0065 | D22: =C22 -> 0.0065 | F22: =IF(OR(C22<G22,C22>I22),"FORA DO INTERVALO","OK") -> OK | G22: 0.0065 | H22: 0.0065 | I22: 0.0065
A23: 3) ISSQN | B23: 1 | C23: 0.03 | D23: =C23*B23 -> 0.03 | F23: OK | G23: 0.02 | H23: 0.035 | I23: 0.05
A24: 4) CPRB | B24: 1 | C24: 0 | D24: =C24 -> 0 | F24: FORA DO INTERVALO | G24: 0.045 | H24: 0.045 | I24: 0.045
A25: 5) Administração Central | B25: 1 | C25: 0.04 | D25: 0.04 | F25: OK | G25: 0.03 | H25: 0.04 | I25: 0.055
A26: 6) Despesas Financeiras | B26: 1 | C26: 0.0056 | D26: 0.0056 | F26: FORA DO INTERVALO | G26: 0.0059 | H26: 0.0123 | I26: 0.0139
A27: 7) Seguros + Garantias | B27: 1 | C27: 0.0012 | D27: 0.0012 | F27: FORA DO INTERVALO | G27: 0.008 | H27: 0.008 | I27: 0.01
A28: 8) Risco | B28: 1 | C28: 0.0097 | D28: 0.0097 | F28: OK | G28: 0.0097 | H28: 0.0127 | I28: 0.0127
A29: 9) Lucro | B29: 1 | C29: 0.072 | D29: 0.072 | F29: OK | G29: 0.0616 | H29: 0.074 | I29: 0.0896
A30: BDI - FINAL | D30: =(((1+D25+D27+D28)*(1+D26)*(1+D29))/(1-(D21+D22+D23+D24))-1) -> 0.213576393 | F30: FORA DO INTERVALO | G30: 0.2034 | H30: 0.2212 | I30: 0.25
A32: Notas:
A33: (1) e (2) Alíquota definida por lei.
A34: (3) Alíquota e base de cálculo definidas pela legislação municipal.
A35: (4) Alíquota definida pelas leis 12.546/11, 12844/13 e 13.161/15 (CPRB – contribuição previdenciária sobre a receita bruta).
A36: (5) Valores definidos a partir dos limites no Acórdão nº 2.622/2013 - TCU – Plenário. Valores entre o 1º e 3º quartis.
A37: (6) Valor calculado pela expressão matemática do acórdão 2.369/2011 – TCU – Plenário e disponibilizado pela AGETOP em dezembro de 2018. (Foi utilizado para o cálculo a média da Taxa SELIC no período de 11/2017 a 10/2018)
A39: (7) Valores definidos pela AGETOP a partir dos limites no Acórdão nº 2.622/2013 - TCU – Plenário. Valores médios. Observação da AGETOP: (Seguros contra erros de execução, incêndio e explosão, danos da natureza (vendaval, destelhamento, alagamento, inundação, desmoronamento, geadas etc.), emprego de material defeituoso ou inadequado, roubo e/ou furto qualificado, quebra de equipamentos, desmoronamento de estrutura, nas modalidades de Obras Civis em Construção (OCC); Instalação e Montagem (IM); e Obras Civis em Construção e Instalação e Montagem (OCC/IM). Bem como coberturas adicionais para ampliação dessas coberturas básicas, como: cobertura de responsabilidade civil geral, cobertura de responsabilidade civil cruzada, cobertura de despesas extraordinárias, cobertura de tumultos, cobertura de desentulho do local, cobertura de riscos do fabricante, dentre outras, incluindo o seguro de vida em grupo regido pela convenção coletiva dos trabalhadores na indústria da construção civil). A partir de 24/02/2015 por intermédio da Portaria 449/2015 a Presidência da AGETOP, na pessoa do Senhor Jayme Eduardo Rincon, determinou a exclusão dos valores referentes aos Seguros de Risco de Engenharia e Responsabilidade Civil do Profissional na composição do cálculo do B.D.I..
A40: (8) Valores definidos a partir dos limites no Acórdão nº 2.622/2013 - TCU – Plenário. Valores entre 1º e 3° quartis.
A41: (9) Valores definidos a partir dos limites definidos no Acórdão nº 2.622/2013 - TCU – Plenário. Valores adotados e praticados no mercado ( “ ex ante ” ) ou aqueles entre os 1º e 3º quartis.
A43: (*) A fórmula para estipulação da taxa de BDI estimado adotado é a mesma que foi aplicada para a obtenção das tabelas contidas no Acórdão n. 2.622/2013 – TCUPlenário
A45: Obs.: Para obras com valores superiores a R$ 20.000.000,00 sugere-se recalcular o BDI, dimensionando as taxas de administração central e lucro para patamares inferiores ao estipulado acima.

Sheet Relatório CENTRAL
B3: UNIDADE ESCOLAR | D3: CIDADE
B4: =Orçamento!$O$4 -> COLÉGIO ESTADUAL PROFESSORA MARIA PEREIRA VASCONCELOS | D4: =Orçamento!$X$7 -> LUZIÂNIA
B6: OBRA | D6: CRE
B7: =Orçamento!$O$7 -> AMPLIAÇÃO E REFORMA | D7: =Orçamento!$O$10 -> LUZIÂNIA
B9: ENDEREÇO | D9: DATA
A10: FILTRO | B10: =Orçamento!$R$10 -> RUA 92 QD 256 LOTE A SN JARDIM INGA, PQ. ESTRELA DALVA IX, CEP:72853-256 | D10: =Orçamento!$S$7 -> 2020-08-27
B12: RELATÓRIO CENTRAL
A13: ↓ | B13: CÓDIGO | C13: ETAPA | D13: PREÇO (R$) C/ BDI | E13: PARTIC ( % )
A14: =IF(D14>0,"F","") ->  | B14: =Orçamento!O520 -> a. | C14: =Orçamento!P520 -> SERVIÇOS PRELIMINARES | D14: =Orçamento!X520 -> 0 | E14: =Orçamento!AA520 -> 0
A15: =IF(D15>0,"F","") ->  | B15: =Orçamento!O521 -> b. | C15: =Orçamento!P521 -> TRANSPORTES | D15: =Orçamento!X521 -> 0 | E15: =Orçamento!AA521 -> 0
B16: =Orçamento!O522 -> c. | C16: =Orçamento!P522 -> SERVIÇO EM TERRA | D16: =Orçamento!X522 -> 0 | E16: =Orçamento!AA522 -> 0
B17: =Orçamento!O523 -> d. | C17: =Orçamento!P523 -> FUNDAÇÕES E SONDAGENS | D17: =Orçamento!X523 -> 0 | E17: =Orçamento!AA523 -> 0
B18: =Orçamento!O524 -> e. | C18: =Orçamento!P524 -> ESTRUTURA | D18: =Orçamento!X524 -> 0 | E18: =Orçamento!AA524 -> 0
B19: =Orçamento!O525 -> f. | C19: =Orçamento!P525 -> INSTALAÇÕES ELÉTRICAS | D19: =Orçamento!X525 -> 0 | E19: =Orçamento!AA525 -> 0
B20: =Orçamento!O526 -> g. | C20: =Orçamento!P526 -> INSTALAÇÕES HIDROSSANITÁRIAS | D20: =Orçamento!X526 -> 0 | E20: =Orçamento!AA526 -> 0
B21: =Orçamento!O527 -> h | C21: =Orçamento!P527 -> INSTALAÇÕES ESPECIAIS | D21: =Orçamento!X527 -> 0 | E21: =Orçamento!AA527 -> 0
B22: =Orçamento!O528 -> i. | C22: =Orçamento!P528 -> ALVENARIAS E DIVISÓRIAS | D22: =Orçamento!X528 -> 0 | E22: =Orçamento!AA528 -> 0
B23: =Orçamento!O529 -> j. | C23: =Orçamento!P529 -> ALVENARIA AUTO-PORTANTE | D23: =Orçamento!X529 -> 0 | E23: =Orçamento!AA529 -> 0
B24: =Orçamento!O530 -> k. | C24: =Orçamento!P530 -> IMPERMEABILIZAÇÃO | D24: =Orçamento!X530 -> 0 | E24: =Orçamento!AA530 -> 0
B25: =Orçamento!O531 -> l. | C25: =Orçamento!P531 -> ISOLAMENTO TÉRMICO E ACÚSTICO | D25: =Orçamento!X531 -> 0 | E25: =Orçamento!AA531 -> 0
B26: =Orçamento!O532 -> m. | C26: =Orçamento!P532 -> ESTRUTURA DE MADEIRA | D26: =Orçamento!X532 -> 0 | E26: =Orçamento!AA532 -> 0
B27: =Orçamento!O533 -> n. | C27: =Orçamento!P533 -> ESTRUTURAS METÁLICAS | D27: =Orçamento!X533 -> 0 | E27: =Orçamento!AA533 -> 0
B28: =Orçamento!O534 -> o. | C28: =Orçamento!P534 -> COBERTURAS | D28: =Orçamento!X534 -> 0 | E28: =Orçamento!AA534 -> 0
B29: =Orçamento!O535 -> p. | C29: =Orçamento!P535 -> ESQUADRIAS DE MADEIRA | D29: =Orçamento!X535 -> 0 | E29: =Orçamento!AA535 -> 0
B30: =Orçamento!O536 -> q. | C30: =Orçamento!P536 -> ESQUADRIAS METÁLICAS | D30: =Orçamento!X536 -> 0 | E30: =Orçamento!AA536 -> 0
B31: =Orçamento!O537 -> r. | C31: =Orçamento!P537 -> VIDROS | D31: =Orçamento!X537 -> 0 | E31: =Orçamento!AA537 -> 0
B32: =Orçamento!O538 -> s. | C32: =Orçamento!P538 -> REVESTIMENTO DE PAREDE | D32: =Orçamento!X538 -> 0 | E32: =Orçamento!AA538 -> 0
B33: =Orçamento!O539 -> t. | C33: =Orçamento!P539 -> FORROS | D33: =Orçamento!X539 -> 0 | E33: =Orçamento!AA539 -> 0
B34: =Orçamento!O540 -> u. | C34: =Orçamento!P540 -> REVESTIMENTO DE PISO | D34: =Orçamento!X540 -> 0 | E34: =Orçamento!AA540 -> 0
B35: =Orçamento!O541 -> v. | C35: =Orçamento!P541 -> FERRAGENS | D35: =Orçamento!X541 -> 0 | E35: =Orçamento!AA541 -> 0
B36: =Orçamento!O542 -> w. | C36: =Orçamento!P542 -> MARCENARIA | D36: =Orçamento!X542 -> 0 | E36: =Orçamento!AA542 -> 0
B37: =Orçamento!O543 -> x. | C37: =Orçamento!P543 -> ADMINISTRAÇÃO | D37: =Orçamento!X543 -> 0 | E37: =Orçamento!AA543 -> 0
B38: =Orçamento!O544 -> y. | C38: =Orçamento!P544 -> PINTURA | D38: =Orçamento!X544 -> 0 | E38: =Orçamento!AA544 -> 0
B39: =Orçamento!O545 -> z. | C39: =Orçamento!P545 -> DIVERSOS | D39: =Orçamento!X545 -> 0 | E39: =Orçamento!AA545 -> 0
A40: F | B40: TOTAL GERAL DO ORÇAMENTO (R$) C/BDI | D40: =SUM(D14:D39) -> 0 | E40: =SUM(E14:E39) -> 0

Sheet Parc Maior Relev
B3: UNIDADE ESCOLAR | E3: CÓDIGO INEP
B4: =Orçamento!$O$4 -> COLÉGIO ESTADUAL PROFESSORA MARIA PEREIRA VASCONCELOS | E4: =Orçamento!$X$4 -> 52047318
B6: OBRA | E6: CIDADE
B7: =Orçamento!$O$7 -> AMPLIAÇÃO E REFORMA | E7: =Orçamento!$X$7 -> LUZIÂNIA
B9: CRE | E9: ÁREA TOTAL CONSTRUÍDA (M²)
B10: =Orçamento!$O$10 -> LUZIÂNIA | E10: =Orçamento!$S$13 -> 0
A11: FILTRO
B12: PARCELA DE MAIOR RELEVÂNCIA
B13: CÓDIGO | C13: SERVIÇO | D13: DESCRIÇÃO | E13: UNID | F13: QUANT | G13: PARC. MAIOR RELEV (100%)
A14: =IF(F14>0,"F","") -> F | B14: 70000 | C14: INSTALAÇÕES ELÉTRICAS | D14: SUBESTAÇÃO | E14: KVA | F14: 150 | G14: =F14 -> 150
B15: CÓDIGO | C15: SERVIÇO | D15: DESCRIÇÃO | E15: UNID | F15: QUANT | G15: PARC. MAIOR RELEV (50%)
A16: =IF(F16>0,"F","") -> F | B16: 160000 | C16: COBERTURAS | D16: TELHA PLAN | E16: M2 | F16: =Orçamento!T340 -> 304.84 | G16: =F16*0.5 -> 152.42
A17: =IF(F17>0,"F","") -> F | B17: 220000 | C17: REVESTIMENTO DE PISO | D17: GRANITINA | E17: M2 | F17: =Orçamento!T357 -> 1588.0429 | G17: =F17*0.5 -> 794.02145
C18: =IFERROR(VLOOKUP(B18,Orçamento!$O$520:$P$545,2,FALSE),"(inserir código ao lado)") -> (inserir código ao lado) | E18: =IFERROR(VLOOKUP($D18,Orçamento!$R$20:$Y$501,2,FALSE),"-") -> - | F18: =SUMIF(Orçamento!$R$20:$R$501,'Parc Maior Relev'!D18,Orçamento!$T$20:$T$501) -> 0 | G18: 0
C19: =IFERROR(VLOOKUP(B19,Orçamento!$O$520:$P$545,2,FALSE),"(inserir código ao lado)") -> (inserir código ao lado) | E19: =IFERROR(VLOOKUP($D19,Orçamento!$R$20:$Y$501,2,FALSE),"-") -> - | F19: =SUMIF(Orçamento!$R$20:$R$501,'Parc Maior Relev'!D19,Orçamento!$T$20:$T$501) -> 0 | G19: 0
A20: F
A21: F | B21: (*) Para os fins do inciso I dp § 1º do Art. 30 da Lei Federal 8.666/93, são consideradas parcelas de maior relevância técnica as execuções apresentadas
A22: F

Sheet Composições
A4: UNIDADE ESCOLAR | H4: CÓDIGO INEP
A5: =Orçamento!$O$4 -> COLÉGIO ESTADUAL PROFESSORA MARIA PEREIRA VASCONCELOS | H5: =Orçamento!$X$4 -> 52047318
A7: OBRA | H7: CIDADE
A8: =Orçamento!$O$7 -> AMPLIAÇÃO E REFORMA | H8: =Orçamento!$X$7 -> LUZIÂNIA
A10: CRE | D10: ENDEREÇO | H10: REFERÊNCIA AGETOP
A11: =Orçamento!$O$10 -> LUZIÂNIA | D11: =Orçamento!$R$10 -> RUA 92 QD 256 LOTE A SN JARDIM INGA, PQ. ESTRELA DALVA IX, CEP:72853-256 | H11: =Orçamento!$X$10 -> DEZ/18 | I11: =Orçamento!$Y$10 -> ONERADA
A13: DATA | D13: ÁREA TOTAL CONSTRUÍDA (M²) | H13: REFERÊNCIA SINAPI
A14: =Orçamento!$S$7 -> 2020-08-27 | D14: =Orçamento!$S$13 -> 0 | H14: =Orçamento!$X$13 -> MAR/19 | I14: =Orçamento!$Y$13 -> ONERADA
A16: COMPOSIÇÕES DE CUSTOS UNITÁRIOS - SEE-GO
A17: 46 | B17: FONTE | C17: CÓDIGO | D17: DESCRIÇÃO | E17: UNIDADE | F17: COEFIC. | G17: CUSTO UNITÁRIO | I17: CUSTO TOTAL (A) + (B) + (C) + (D) + (E)
G18: DESONERADO | H18: NÃO DESONER. | I18: DESONERADO | J18: NÃO DESONER.
B19: COMPOSIÇÃO | C19: COMP 046_SEE | D19: CAPUZ PARA PROTEÇÃO DOS PARA RAIOS | E19: UN | I19: 16.53 | J19: 16.65
B20: AGETOP_I | C20: 8 | D20: AJUDANTE | E20: h | F20: 0.0333 | G20: 8.2 | H20: 9.51 | I20: 0.27 | J20: 0.32
B21: AGETOP_I | C21: 12 | D21: ELETRICISTA | E21: h | F21: 0.0333 | G21: 13.4 | H21: 15.53 | I21: 0.45 | J21: 0.52
G22: 0 | H22: 0 | I22: 0 | J22: 0
B23: MÃO DE OBRA (B) - TOTAL | I23: 0.72 | J23: 0.84
B24: COTAÇÃO | C24: COT 010_SEE | D24: CAPUZ PARA PROTEÇÃO DOS PARA RAIOS | E24: UN | F24: 1 | G24: 15.81 | H24: 15.81 | I24: 15.81 | J24: 15.81
G25: 0 | H25: 0 | I25: 0 | J25: 0
G26: 0 | H26: 0 | I26: 0 | J26: 0
B27: MATERIAL (C) - TOTAL | I27: 15.81 | J27: 15.81
A29: 47 | B29: FONTE | C29: CÓDIGO | D29: DESCRIÇÃO | E29: UNIDADE | F29: COEFIC. | G29: CUSTO UNITÁRIO | I29: CUSTO TOTAL (A) + (B) + (C) + (D) + (E)
G30: DESONERADO | H30: NÃO DESONER. | I30: DESONERADO | J30: NÃO DESONER.
B31: COMPOSIÇÃO | C31: COMP 047_SEE | D31: CAPUZ DE PROTEÇÃO PARA BUCHA DE TRANSFORMADOR | E31: UN | I31: 16.53 | J31: 16.65
B32: AGETOP_I | C32: 8 | D32: AJUDANTE | E32: h | F32: 0.0333 | G32: 8.2 | H32: 9.51 | I32: 0.27 | J32: 0.32
B33: AGETOP_I | C33: 12 | D33: ELETRICISTA | E33: h | F33: 0.0333 | G33: 13.4 | H33: 15.53 | I33: 0.45 | J33: 0.52
G34: 0 | H34: 0 | I34: 0 | J34: 0
B35: MÃO DE OBRA (B) - TOTAL | I35: 0.72 | J35: 0.84
B36: COTAÇÃO | C36: COT 011_SEE | D36: CAPUZ DE PROTEÇÃO PARA BUCHA DE TRANSFORMADOR | E36: UN | F36: 1 | G36: 15.81 | H36: 15.81 | I36: 15.81 | J36: 15.81
G37: 0 | H37: 0 | I37: 0 | J37: 0
G38: 0 | H38: 0 | I38: 0 | J38: 0
B39: MATERIAL (C) - TOTAL | I39: 15.81 | J39: 15.81
A41: 48 | B41: FONTE | C41: CÓDIGO | D41: DESCRIÇÃO | E41: UNIDADE | F41: COEFIC. | G41: CUSTO UNITÁRIO | I41: CUSTO TOTAL (A) + (B) + (C) + (D) + (E)
G42: DESONERADO | H42: NÃO DESONER. | I42: DESONERADO | J42: NÃO DESONER.
B43: COMPOSIÇÃO | C43: COMP 048_SEE | D43: HASTE ROSQUEADA "TIRANTE" 3/8" | E43: M | I43: 14.02 | J43: 15.39
B44: AGETOP_I | C44: 8 | D44: AJUDANTE | E44: h | F44: 0.4 | G44: 8.2 | H44: 9.51 | I44: 3.28 | J44: 3.8
B45: AGETOP_I | C45: 12 | D45: ELETRICISTA | E45: h | F45: 0.4 | G45: 13.4 | H45: 15.53 | I45: 5.36 | J45: 6.21
G46: 0 | H46: 0 | I46: 0 | J46: 0
B47: MÃO DE OBRA (B) - TOTAL | I47: 8.64 | J47: 10.01
B48: COTAÇÃO | C48: COT 012_SEE | D48: HASTE ROSQUEADA "TIRANTE" 3/8" | E48: M | F48: 1 | G48: 5.383333333 | H48: 5.383333333 | I48: 5.38 | J48: 5.38
G49: 0 | H49: 0 | I49: 0 | J49: 0
G50: 0 | H50: 0 | I50: 0 | J50: 0
B51: MATERIAL (C) - TOTAL | I51: 5.38 | J51: 5.38
A53: 49 | B53: FONTE | C53: CÓDIGO | D53: DESCRIÇÃO | E53: UNIDADE | F53: COEFIC. | G53: CUSTO UNITÁRIO | I53: CUSTO TOTAL (A) + (B) + (C) + (D) + (E)
G54: DESONERADO | H54: NÃO DESONER. | I54: DESONERADO | J54: NÃO DESONER.
B55: COMPOSIÇÃO | C55: COMP 049_SEE | D55: PORCA SEXTAVADA 3/8" | E55: UN | I55: 0.2 | J55: 0.22
B56: AGETOP_I | C56: 8 | D56: AJUDANTE | E56: h | F56: 0.009 | G56: 8.2 | H56: 9.51 | I56: 0.07 | J56: 0.09
G57: 0 | H57: 0 | I57: 0 | J57: 0
G58: 0 | H58: 0 | I58: 0 | J58: 0
B59: MÃO DE OBRA (B) - TOTAL | I59: 0.07 | J59: 0.09
B60: COTAÇÃO | C60: COT 013_SEE | D60: PORCA SEXTAVADA 3/8" | E60: UN | F60: 1 | G60: 0.13 | H60: 0.13 | I60: 0.13 | J60: 0.13
G61: 0 | H61: 0 | I61: 0 | J61: 0
G62: 0 | H62: 0 | I62: 0 | J62: 0
B63: MATERIAL (C) - TOTAL | I63: 0.13 | J63: 0.13
A65: 387 | B65: FONTE | C65: CÓDIGO | D65: DESCRIÇÃO | E65: UNIDADE | F65: COEFIC. | G65: CUSTO UNITÁRIO | I65: CUSTO TOTAL (A) + (B) + (C) + (D) + (E)
G66: DESONERADO | H66: NÃO DESONER. | I66: DESONERADO | J66: NÃO DESONER.
B67: COMPOSIÇÃO | C67: COMP 387_SEE | D67: LÂMPADA LED TUBULAR 18W | E67: UN | I67: 22.28 | J67: 22.33
B68: AGETOP_I | C68: 8 | D68: AJUDANTE | E68: h | F68: 0.015 | G68: 8.2 | H68: 9.51 | I68: 0.12 | J68: 0.14
B69: AGETOP_I | C69: 12 | D69: ELETRICISTA | E69: h | F69: 0.015 | G69: 13.4 | H69: 15.53 | I69: 0.2 | J69: 0.23
G70: 0 | H70: 0 | I70: 0 | J70: 0
B71: MÃO DE OBRA (B) - TOTAL | I71: 0.32 | J71: 0.37
B72: COTAÇÃO | C72: COT 195_SEE | D72: LÂMPADA LED TUBULAR 18W | E72: UN | F72: 1 | G72: 21.96 | H72: 21.96 | I72: 21.96 | J72: 21.96
G73: 0 | H73: 0 | I73: 0 | J73: 0
G74: 0 | H74: 0 | I74: 0 | J74: 0
B75: MATERIAL (C) - TOTAL | I75: 21.96 | J75: 21.96
A77: 17 | B77: FONTE | C77: CÓDIGO | D77: DESCRIÇÃO | E77: UNIDADE | F77: COEFIC. | G77: CUSTO UNITÁRIO | I77: CUSTO TOTAL (A) + (B) + (C) + (D) + (E)
G78: DESONERADO | H78: NÃO DESONER. | I78: DESONERADO | J78: NÃO DESONER.
B79: COMPOSIÇÃO | C79: COMP 017_SEE | D79: REDUCAO GIRATÓRIA TIPO STORZ LATAO P/ INST. PREDIAL COMBATE A INCENDIO ENGATE RAPIDO 2.1/2" X 1.1/2" | E79: UN | G79: - | H79: - | I79: 94.15 | J79: 94.7
B80: AGETOP_I | C80: 8 | D80: AJUDANTE | E80: h | F80: 0.16 | G80: 8.2 | H80: 9.51 | I80: 1.31 | J80: 1.52
B81: AGETOP_I | C81: 11 | D81: ENCANADOR | E81: h | F81: 0.16 | G81: 13.4 | H81: 15.53 | I81: 2.14 | J81: 2.48
G82: 0 | H82: 0 | I82: 0 | J82: 0
B83: MÃO DE OBRA (B) - TOTAL | I83: 3.45 | J83: 4
B84: SINAPI_I | C84: 20972 | D84: REDUCAO FIXA TIPO STORZ, ENGATE RAPIDO 2.1/2" X 1.1/2", EM LATAO, PARA INSTALACAO PREDIAL COMBATE A INCENDIO PREDIAL | E84: UN | F84: 1 | G84: 90.7 | H84: 90.7 | I84: 90.7 | J84: 90.7
G85: 0 | H85: 0 | I85: 0 | J85: 0
G86: 0 | H86: 0 | I86: 0 | J86: 0
B87: MATERIAL (C) - TOTAL | I87: 90.7 | J87: 90.7
A89: 18 | B89: FONTE | C89: CÓDIGO | D89: DESCRIÇÃO | E89: UNIDADE | F89: COEFIC. | G89: CUSTO UNITÁRIO | I89: CUSTO TOTAL (A) + (B) + (C) + (D) + (E)
G90: DESONERADO | H90: NÃO DESONER. | I90: DESONERADO | J90: NÃO DESONER.
B91: COMPOSIÇÃO | C91: COMP 018_SEE | D91: CHAVE DUPLA P/ CONEXÕES TIPO STORZ EM LATÃO ENGATE RÁPIDO 1 1/2" X 2 1/2" | E91: UN | G91: - | H91: - | I91: 14.1 | J91: 14.42
B92: AGETOP_I | C92: 11 | D92: ENCANADOR | E92: h | F92: 0.15 | G92: 13.4 | H92: 15.53 | I92: 2.01 | J92: 2.33
G93: 0 | H93: 0 | I93: 0 | J93: 0
G94: 0 | H94: 0 | I94: 0 | J94: 0
B95: MÃO DE OBRA (B) - TOTAL | I95: 2.01 | J95: 2.33
B96: SINAPI_I | C96: 20971 | D96: CHAVE DUPLA PARA CONEXOES TIPO STORZ, ENGATE RAPIDO 1 1/2" X 2 1/2", EM LATAO, PARA INSTALACAO PREDIAL COMBATE A INCENDIO | E96: UN | F96: 1 | G96: 12.09 | H96: 12.09 | I96: 12.09 | J96: 12.09
G97: 0 | H97: 0 | I97: 0 | J97: 0
G98: 0 | H98: 0 | I98: 0 | J98: 0
B99: MATERIAL (C) - TOTAL | I99: 12.09 | J99: 12.09
A101: 87 | B101: FONTE | C101: CÓDIGO | D101: DESCRIÇÃO | E101: UNIDADE | F101: COEFIC. | G101: CUSTO UNITÁRIO | I101: CUSTO TOTAL (A) + (B) + (C) + (D) + (E)
G102: DESONERADO | H102: NÃO DESONER. | I102: DESONERADO | J102: NÃO DESONER.
B103: COMPOSIÇÃO | C103: COMP 087_SEE | D103: REGISTRO DE GAVETA COM HASTE ASCENDENTE DE BRONZE 2 1/2" | E103: UN | I103: 257.3 | J103: 261.26
B104: AGETOP_I | C104: 8 | D104: AJUDANTE | E104: h | F104: 1.15 | G104: 8.2 | H104: 9.51 | I104: 9.43 | J104: 10.94
B105: AGETOP_I | C105: 11 | D105: ENCANADOR | E105: h | F105: 1.15 | G105: 13.4 | H105: 15.53 | I105: 15.41 | J105: 17.86
G106: 0 | H106: 0 | I106: 0 | J106: 0
B107: MÃO DE OBRA (B) - TOTAL | I107: 24.84 | J107: 28.8
B108: AGETOP_I | C108: H689 | D108: FITA VEDAROSCA 12 MM | E108: m | F108: 2.82 | G108: 0.28 | H108: 0.28 | I108: 0.79 | J108: 0.79
B109: COTAÇÃO | C109: COT 017_SEE | D109: REGISTRO DE GAVETA COM HASTE ASCENDENTE DE BRONZE 2 1/2" | E109: UN | F109: 1 | G109: 231.6666667 | H109: 231.6666667 | I109: 231.67 | J109: 231.67
G110: 0 | H110: 0 | I110: 0 | J110: 0
B111: MATERIAL (C) - TOTAL | I111: 232.46 | J111: 232.46
A113: 19 | B113: FONTE | C113: CÓDIGO | D113: DESCRIÇÃO | E113: UNIDADE | F113: COEFIC. | G113: CUSTO UNITÁRIO | I113: CUSTO TOTAL (A) + (B) + (C) + (D) + (E)
G114: DESONERADO | H114: NÃO DESONER. | I114: DESONERADO | J114: NÃO DESONER.
B115: COMPOSIÇÃO | C115: COMP 019_SEE | D115: TAMPÃO LATAO C/ CORRENTE P/ INSTALAÇÃO PREDIAL COMBATE A INCÊNDIO ENGATE RÁPIDO 1 1/2" | E115: UN | G115: - | H115: - | I115: 52.82 | J115: 53.34
B116: AGETOP_I | C116: 11 | D116: ENCANADOR | E116: h | F116: 0.15 | G116: 13.4 | H116: 15.53 | I116: 2.01 | J116: 2.33
B117: AGETOP_I | C117: 8 | D117: AJUDANTE | E117: h | F117: 0.15 | G117: 8.2 | H117: 9.51 | I117: 1.23 | J117: 1.43
G118: 0 | H118: 0 | I118: 0 | J118: 0
B119: MÃO DE OBRA (B) - TOTAL | I119: 3.24 | J119: 3.76
B120: SINAPI_I | C120: 20964 | D120: TAMPAO COM CORRENTE, EM LATAO, ENGATE RAPIDO 1 1/2", PARA INSTALACAO PREDIAL DE COMBATE A INCENDIO | E120: UN | F120: 1 | G120: 49.58 | H120: 49.58 | I120: 49.58 | J120: 49.58
G121: 0 | H121: 0 | I121: 0 | J121: 0
G122: 0 | H122: 0 | I122: 0 | J122: 0
B123: MATERIAL (C) - TOTAL | I123: 49.58 | J123: 49.58
A125: 30 | B125: FONTE | C125: CÓDIGO | D125: DESCRIÇÃO | E125: UNIDADE | F125: COEFIC. | G125: CUSTO UNITÁRIO | I125: CUSTO TOTAL (A) + (B) + (C) + (D) + (E)
G126: DESONERADO | H126: NÃO DESONER. | I126: DESONERADO | J126: NÃO DESONER.
B127: COMPOSIÇÃO | C127: COMP 030_SEE | D127: COTOVELO DE FERRO GALV. 90° X 2 1/2" | E127: UN | I127: 68.89 | J127: 72.06
B128: AGETOP_I | C128: 8 | D128: AJUDANTE | E128: h | F128: 0.92 | G128: 8.2 | H128: 9.51 | I128: 7.54 | J128: 8.75
B129: AGETOP_I | C129: 11 | D129: ENCANADOR | E129: h | F129: 0.92 | G129: 13.4 | H129: 15.53 | I129: 12.33 | J129: 14.29
B130: MÃO DE OBRA (B) - TOTAL | I130: 19.87 | J130: 23.04
B131: SINAPI_I | C131: 3470 | D131: COTOVELO 90 GRAUS DE FERRO GALVANIZADO, COM ROSCA BSP, DE 2 1/2" | E131: UN | F131: 1 | G131: 48.46 | H131: 48.46 | I131: 48.46 | J131: 48.46
B132: AGETOP_I | C132: H689 | D132: FITA VEDAROSCA 12 MM | E132: m | F132: 2 | G132: 0.28 | H132: 0.28 | I132: 0.56 | J132: 0.56
B133: MATERIAL (C) - TOTAL | I133: 49.02 | J133: 49.02
A135: 77 | B135: FONTE | C135: CÓDIGO | D135: DESCRIÇÃO | E135: UNIDADE | F135: COEFIC. | G135: CUSTO UNITÁRIO | I135: CUSTO TOTAL (A) + (B) + (C) + (D) + (E)
G136: DESONERADO | H136: NÃO DESONER. | I136: DESONERADO | J136: NÃO DESONER.
B137: COMPOSIÇÃO | C137: COMP 077_SEE | D137: UNIAO FERRO GALV C/ASSENTO CONICO BRONZE 2 1/2" | E137: UN | I137: 147.52 | J137: 148.89
B138: AGETOP_I | C138: 8 | D138: AJUDANTE | E138: h | F138: 0.4 | G138: 8.2 | H138: 9.51 | I138: 3.28 | J138: 3.8
B139: AGETOP_I | C139: 11 | D139: ENCANADOR | E139: h | F139: 0.4 | G139: 13.4 | H139: 15.53 | I139: 5.36 | J139: 6.21
B140: MÃO DE OBRA (B) - TOTAL | I140: 8.64 | J140: 10.01
B141: AGETOP_I | C141: H689 | D141: FITA VEDAROSCA 12 MM | E141: m | F141: 2.4 | G141: 0.28 | H141: 0.28 | I141: 0.67 | J141: 0.67
B142: SINAPI_I | C142: 12427 | D142: UNIAO COM ASSENTO CONICO DE BRONZE, DIAMETRO 2 1/2" | E142: UN | F142: 1 | G142: 138.21 | H142: 138.21 | I142: 138.21 | J142: 138.21
B143: MATERIAL (C) - TOTAL | I143: 138.88 | J143: 138.88
A145: 76 | B145: FONTE | C145: CÓDIGO | D145: DESCRIÇÃO | E145: UNIDADE | F145: COEFIC. | G145: CUSTO UNITÁRIO | I145: CUSTO TOTAL (A) + (B) + (C) + (D) + (E)
G146: DESONERADO | H146: NÃO DESONER. | I146: DESONERADO | J146: NÃO DESONER.
B147: COMPOSIÇÃO | C147: COMP 076_SEE | D147: CURVA FERRO GALVANIZADO 45G ROSCA MACHO/FEMEA REF. 2 1/2" | E147: UN | I147: 116.11 | J147: 119.28
B148: AGETOP_I | C148: 8 | D148: AJUDANTE | E148: h | F148: 0.92 | G148: 8.2 | H148: 9.51 | I148: 7.54 | J148: 8.75
B149: AGETOP_I | C149: 11 | D149: ENCANADOR | E149: h | F149: 0.92 | G149: 13.4 | H149: 15.53 | I149: 12.33 | J149: 14.29
B150: MÃO DE OBRA (B) - TOTAL | I150: 19.87 | J150: 23.04
B151: SINAPI_I | C151: 3148 | D151: FITA VEDA ROSCA EM ROLOS DE 18 MM X 50 M (L X C) | E151: UN | F151: 0.0491 | G151: 12.9 | H151: 12.9 | I151: 0.63 | J151: 0.63
B152: SINAPI_I | C152: 1784 | D152: CURVA 45 GRAUS DE FERRO GALVANIZADO, COM ROSCA BSP MACHO/FEMEA, DE 2 1/2" | E152: UN | F152: 1 | G152: 95.61 | H152: 95.61 | I152: 95.61 | J152: 95.61
B153: MATERIAL (C) - TOTAL | I153: 96.24 | J153: 96.24
A155: 22 | B155: FONTE | C155: CÓDIGO | D155: DESCRIÇÃO | E155: UNIDADE | F155: COEFIC. | G155: CUSTO UNITÁRIO | I155: CUSTO TOTAL (A) + (B) + (C) + (D) + (E)
G156: DESONERADO | H156: NÃO DESONER. | I156: DESONERADO | J156: NÃO DESONER.
B157: COMPOSIÇÃO | C157: COMP 022_SEE | D157: TAMPÃO FOFO 40X50CM C/INSCRIÇÃO | E157: UN | G157: - | H157: - | I157: 216.53 | J157: 216.85
B158: AGETOP_I | C158: 11 | D158: ENCANADOR | E158: h | F158: 0.15 | G158: 13.4 | H158: 15.53 | I158: 2.01 | J158: 2.33
G159: 0 | H159: 0 | I159: 0 | J159: 0
G160: 0 | H160: 0 | I160: 0 | J160: 0
B161: MÃO DE OBRA (B) - TOTAL | I161: 2.01 | J161: 2.33
B162: SINAPI_I | C162: 11293 | D162: TAMPAO FOFO SIMPLES COM BASE, CLASSE A15 CARGA MAX 1,5 T, 400 X 500 MM, COM INSCRICAO INCENDIO | E162: UN | F162: 1 | G162: 214.52 | H162: 214.52 | I162: 214.52 | J162: 214.52
G163: 0 | H163: 0 | I163: 0 | J163: 0
G164: 0 | H164: 0 | I164: 0 | J164: 0
B165: MATERIAL (C) - TOTAL | I165: 214.52 | J165: 214.52
A167: 24 | B167: FONTE | C167: CÓDIGO | D167: DESCRIÇÃO | E167: UNIDADE | F167: COEFIC. | G167: CUSTO UNITÁRIO | I167: CUSTO TOTAL (A) + (B) + (C) + (D) + (E)
G168: DESONERADO | H168: NÃO DESONER. | I168: DESONERADO | J168: NÃO DESONER.
B169: COMPOSIÇÃO | C169: COMP 024_SEE | D169: SINALIZADOR FOTOLUMINESCENTE PARA EXTINTOR | E169: UN | G169: - | H169: - | I169: 25.27 | J169: 25.39
B170: AGETOP_I | C170: 5 | D170: SERVENTE | E170: h | F170: 0.09 | G170: 8.2 | H170: 9.51 | I170: 0.74 | J170: 0.86
G171: 0 | H171: 0 | I171: 0 | J171: 0
G172: 0 | H172: 0 | I172: 0 | J172: 0
B173: MÃO DE OBRA (B) - TOTAL | I173: 0.74 | J173: 0.86
B174: AGETOP_I | C174: 3070 | D174: BUCHA DE NYLON S-6 | E174: un | F174: 2 | G174: 0.04 | H174: 0.04 | I174: 0.08 | J174: 0.08
B175: AGETOP_I | C175: 3393 | D175: PARAFUSO P/BUCHA S-6 | E175: un | F175: 2 | G175: 0.08 | H175: 0.08 | I175: 0.16 | J175: 0.16
B176: SINAPI_I | C176: 37556 | D176: PLACA DE SINALIZACAO DE SEGURANCA CONTRA INCENDIO, FOTOLUMINESCENTE, QUADRADA, *20 X 20* CM, EM PVC *2* MM ANTI-CHAMAS (SIMBOLOS, CORES E PICTOGRAMAS CONFORME NBR 13434) | E176: UN | F176: 1 | G176: 24.29 | H176: 24.29 | I176: 24.29 | J176: 24.29
B177: MATERIAL (C) - TOTAL | I177: 24.53 | J177: 24.53
A179: 186 | B179: FONTE | C179: CÓDIGO | D179: DESCRIÇÃO | E179: UNIDADE | F179: COEFIC. | G179: CUSTO UNITÁRIO | I179: CUSTO TOTAL (A) + (B) + (C) + (D) + (E)
G180: DESONERADO | H180: NÃO DESONER. | I180: DESONERADO | J180: NÃO DESONER.
B181: COMPOSIÇÃO | C181: COMP 186_SEE | D181: BOTOEIRA BOMBA DE INCÊNDIO C/ MARTELO CONVENCIONAL/ ANALÓGICA | E181: UN | I181: 85.1 | J181: 88.54
B182: AGETOP_I | C182: 8 | D182: AJUDANTE | E182: h | F182: 1 | G182: 8.2 | H182: 9.51 | I182: 8.2 | J182: 9.51
B183: AGETOP_I | C183: 12 | D183: ELETRICISTA | E183: h | F183: 1 | G183: 13.4 | H183: 15.53 | I183: 13.4 | J183: 15.53
G184: 0 | H184: 0 | I184: 0 | J184: 0
B185: MÃO DE OBRA (B) - TOTAL | I185: 21.6 | J185: 25.04
B186: COTAÇÃO | C186: COT 088_SEE | D186: BOTOEIRA BOMBA DE INCÊNDIO C/ MARTELO CONVENCIONAL/ ANALÓGICA | E186: UN | F186: 1 | G186: 63.5 | H186: 63.5 | I186: 63.5 | J186: 63.5
G187: 0 | H187: 0 | I187: 0 | J187: 0
G188: 0 | H188: 0 | I188: 0 | J188: 0
B189: MATERIAL (C) - TOTAL | I189: 63.5 | J189: 63.5
A191: 188 | B191: FONTE | C191: CÓDIGO | D191: DESCRIÇÃO | E191: UNIDADE | F191: COEFIC. | G191: CUSTO UNITÁRIO | I191: CUSTO TOTAL (A) + (B) + (C) + (D) + (E)
G192: DESONERADO | H192: NÃO DESONER. | I192: DESONERADO | J192: NÃO DESONER.
B193: COMPOSIÇÃO | C193: COMP 188_SEE | D193: ACIONADOR MANUAL DE ALARME | E193: UN | I193: 100.61 | J193: 103.36
B194: AGETOP_I | C194: 8 | D194: AJUDANTE | E194: h | F194: 0.8 | G194: 8.2 | H194: 9.51 | I194: 6.56 | J194: 7.61
B195: AGETOP_I | C195: 12 | D195: ELETRICISTA | E195: h | F195: 0.8 | G195: 13.4 | H195: 15.53 | I195: 10.72 | J195: 12.42
G196: 0 | H196: 0 | I196: 0 | J196: 0
B197: MÃO DE OBRA (B) - TOTAL | I197: 17.28 | J197: 20.03
B198: COTAÇÃO | C198: COT 090_SEE | D198: ACIONADOR MANUAL DE ALARME | E198: UN | F198: 1 | G198: 83.33333333 | H198: 83.33333333 | I198: 83.33 | J198: 83.33
G199: 0 | H199: 0 | I199: 0 | J199: 0
G200: 0 | H200: 0 | I200: 0 | J200: 0
B201: MATERIAL (C) - TOTAL | I201: 83.33 | J201: 83.33
A203: 190 | B203: FONTE | C203: CÓDIGO | D203: DESCRIÇÃO | E203: UNIDADE | F203: COEFIC. | G203: CUSTO UNITÁRIO | I203: CUSTO TOTAL (A) + (B) + (C) + (D) + (E)
G204: DESONERADO | H204: NÃO DESONER. | I204: DESONERADO | J204: NÃO DESONER.
B205: COMPOSIÇÃO | C205: COMP 190_SEE | D205: CENTRAL DE DETECÇÃO E ALARME DE 40 SETORES COM BATERIA | E205: UN | I205: 1136.13 | J205: 1163.65
B206: AGETOP_I | C206: 8 | D206: AJUDANTE | E206: h | F206: 8 | G206: 8.2 | H206: 9.51 | I206: 65.6 | J206: 76.08
B207: AGETOP_I | C207: 12 | D207: ELETRICISTA | E207: h | F207: 8 | G207: 13.4 | H207: 15.53 | I207: 107.2 | J207: 124.24
G208: 0 | H208: 0 | I208: 0 | J208: 0
B209: MÃO DE OBRA (B) - TOTAL | I209: 172.8 | J209: 200.32
B210: COTAÇÃO | C210: COT 092_SEE | D210: CENTRAL DE DETECÇÃO E ALARME DE 40 SETORES COM BATERIA (PREÇO MÉDIO) | E210: UN | F210: 1 | G210: 963.3333333 | H210: 963.3333333 | I210: 963.33 | J210: 963.33
G211: 0 | H211: 0 | I211: 0 | J211: 0
G212: 0 | H212: 0 | I212: 0 | J212: 0
B213: MATERIAL (C) - TOTAL | I213: 963.33 | J213: 963.33
A215: 25 | B215: FONTE | C215: CÓDIGO | D215: DESCRIÇÃO | E215: UNIDADE | F215: COEFIC. | G215: CUSTO UNITÁRIO | I215: CUSTO TOTAL (A) + (B) + (C) + (D) + (E)
G216: DESONERADO | H216: NÃO DESONER. | I216: DESONERADO | J216: NÃO DESONER.
B217: COMPOSIÇÃO | C217: COMP 025_SEE | D217: SINALIZADOR FOTOLUMINESCENTE DE EMERGÊNCIA | E217: UN | G217: - | H217: - | I217: 25.27 | J217: 25.39
B218: AGETOP_I | C218: 5 | D218: SERVENTE | E218: h | F218: 0.09 | G218: 8.2 | H218: 9.51 | I218: 0.74 | J218: 0.86
B219: MÃO DE OBRA (B) - TOTAL | I219: 0.74 | J219: 0.86
B220: AGETOP_I | C220: 3070 | D220: BUCHA DE NYLON S-6 | E220: un | F220: 2 | G220: 0.04 | H220: 0.04 | I220: 0.08 | J220: 0.08
B221: AGETOP_I | C221: 3393 | D221: PARAFUSO P/BUCHA S-6 | E221: un | F221: 2 | G221: 0.08 | H221: 0.08 | I221: 0.16 | J221: 0.16
B222: SINAPI_I | C222: 37556 | D222: PLACA DE SINALIZACAO DE SEGURANCA CONTRA INCENDIO, FOTOLUMINESCENTE, QUADRADA, *20 X 20* CM, EM PVC *2* MM ANTI-CHAMAS (SIMBOLOS, CORES E PICTOGRAMAS CONFORME NBR 13434) | E222: UN | F222: 1 | G222: 24.29 | H222: 24.29 | I222: 24.29 | J222: 24.29
B223: MATERIAL (C) - TOTAL | I223: 24.53 | J223: 24.53
A225: 277 | B225: FONTE | C225: CÓDIGO | D225: DESCRIÇÃO | E225: UNIDADE | F225: COEFIC. | G225: CUSTO UNITÁRIO | I225: CUSTO TOTAL (A) + (B) + (C) + (D) + (E)
... 194 more rows

Sheet Cotações
A4: UNIDADE ESCOLAR | H4: CÓDIGO INEP
A5: =Orçamento!$O$4 -> COLÉGIO ESTADUAL PROFESSORA MARIA PEREIRA VASCONCELOS | H5: =Orçamento!$X$4 -> 52047318
A7: OBRA | H7: CIDADE
A8: =Orçamento!$O$7 -> AMPLIAÇÃO E REFORMA | H8: =Orçamento!$X$7 -> LUZIÂNIA
A10: CRE | D10: ENDEREÇO | H10: REFERÊNCIA AGETOP
A11: =Orçamento!$O$10 -> LUZIÂNIA | D11: =Orçamento!$R$10 -> RUA 92 QD 256 LOTE A SN JARDIM INGA, PQ. ESTRELA DALVA IX, CEP:72853-256 | H11: =Orçamento!$X$10 -> DEZ/18 | I11: =Orçamento!$Y$10 -> ONERADA
A13: DATA | D13: ÁREA TOTAL CONSTRUÍDA (M²) | H13: REFERÊNCIA SINAPI
A14: =Orçamento!$S$7 -> 2020-08-27 | D14: =Orçamento!$S$13 -> 0 | H14: =Orçamento!$X$13 -> MAR/19 | I14: =Orçamento!$Y$13 -> ONERADA
A16: COTAÇÕES DE PREÇOS - SEE-GO
B17: FONTE | C17: CÓDIGO | D17: DESCRIÇÃO | E17: UNIDADE | F17: MÉDIA | H17: ÍNDICE RETROAÇÃO
F18: DESONERADA | G18: ONERADA
A19: 10 | B19: COTAÇÃO | C19: COT 010_SEE | D19: CAPUZ PARA PROTEÇÃO DOS PARA RAIOS | E19: UN | F19: 15.81 | G19: 15.81
C20: EMPRESA | D20: NOME DA EMPRESA | F20: COTAÇÕES | H20: DATA COTAÇÃO
C21: E013 - ELETRO... | D21: ELETROTRANSOL | F21: 15.81 | G21: 15.81 | H21: 06/02/2019
C26: OBSERVAÇÕES:
B28: FONTE | C28: CÓDIGO | D28: DESCRIÇÃO | E28: UNIDADE | F28: MÉDIA | H28: ÍNDICE RETROAÇÃO
F29: DESONERADA | G29: ONERADA
A30: 11 | B30: COTAÇÃO | C30: COT 011_SEE | D30: CAPUZ DE PROTEÇÃO PARA BUCHA DE TRANSFORMADOR | E30: UN | F30: 15.81 | G30: 15.81
C31: EMPRESA | D31: NOME DA EMPRESA | F31: COTAÇÕES | H31: DATA COTAÇÃO
C32: E013 - ELETRO... | D32: ELETROTRANSOL | F32: 15.81 | G32: 15.81 | H32: 06/02/2019
C37: OBSERVAÇÕES:
B39: FONTE | C39: CÓDIGO | D39: DESCRIÇÃO | E39: UNIDADE | F39: MÉDIA | H39: ÍNDICE RETROAÇÃO
F40: DESONERADA | G40: ONERADA
A41: 12 | B41: COTAÇÃO | C41: COT 012_SEE | D41: HASTE ROSQUEADA "TIRANTE" 3/8" | E41: M | F41: 5.383333333 | G41: 5.383333333
C42: EMPRESA | D42: NOME DA EMPRESA | F42: COTAÇÕES | H42: DATA COTAÇÃO
C43: E013 - ELETRO... | D43: ELETROTRANSOL | F43: 5.383333333 | G43: 5.383333333 | H43: 06/02/2019
C48: OBSERVAÇÕES:
B50: FONTE | C50: CÓDIGO | D50: DESCRIÇÃO | E50: UNIDADE | F50: MÉDIA | H50: ÍNDICE RETROAÇÃO
F51: DESONERADA | G51: ONERADA
A52: 13 | B52: COTAÇÃO | C52: COT 013_SEE | D52: PORCA SEXTAVADA 3/8" | E52: UN | F52: 0.13 | G52: 0.13
C53: EMPRESA | D53: NOME DA EMPRESA | F53: COTAÇÕES | H53: DATA COTAÇÃO
C54: E013 - ELETRO... | D54: ELETROTRANSOL | F54: 0.12 | G54: 0.12 | H54: 06/02/2019
C55: E055 - SANETA... | D55: SANETAM COMERCIO DE TUBOS E CONEXOES LTDA. | F55: 0.13 | G55: 0.13 | H55: 06/02/2019
C56: E056 - AC COM... | D56: AC COMERCIO DE FERRAMENTAS E PRODUTOS PARA FIXACAO EIRE | F56: 0.14 | G56: 0.14 | H56: 06/02/2019
C59: OBSERVAÇÕES:
B61: FONTE | C61: CÓDIGO | D61: DESCRIÇÃO | E61: UNIDADE | F61: MÉDIA | H61: ÍNDICE RETROAÇÃO
F62: DESONERADA | G62: ONERADA
A63: 195 | B63: COTAÇÃO | C63: COT 195_SEE | D63: LÂMPADA LED TUBULAR 18W | E63: UN | F63: 21.96 | G63: 21.96
C64: EMPRESA | D64: NOME DA EMPRESA | F64: COTAÇÕES | H64: DATA COTAÇÃO
C65: E030 - AJEL M... | D65: AJEL MATERIAIS ELÉTRICOS | F65: 19.89 | G65: 19.89
C66: E013 - ELETRO... | D66: ELETROTRANSOL | F66: 25.99 | G66: 25.99
C67: E014 - MAKRO ... | D67: MAKRO SERVICE | F67: 20 | G67: 20
C70: OBSERVAÇÕES:
B72: FONTE | C72: CÓDIGO | D72: DESCRIÇÃO | E72: UNIDADE | F72: MÉDIA | H72: ÍNDICE RETROAÇÃO
F73: DESONERADA | G73: ONERADA
A74: 17 | B74: COTAÇÃO | C74: COT 017_SEE | D74: REGISTRO DE GAVETA COM HASTE ASCENDENTE DE BRONZE 2 1/2" | E74: UN | F74: 231.6666667 | G74: 231.6666667
C75: EMPRESA | D75: NOME DA EMPRESA | F75: COTAÇÕES | H75: DATA COTAÇÃO
C76: E034 - VALK T... | D76: VALK TUBOS | F76: 220 | G76: 220
C77: E035 - ACIONA... | D77: ACIONAR SERVIÇOS E EQUIPAMENTOS CONTRA INCÊNDIO | F77: 250 | G77: 250
C78: E038 - CENTER... | D78: CENTER FIRE | F78: 225 | G78: 225
C81: OBSERVAÇÕES:
B83: FONTE | C83: CÓDIGO | D83: DESCRIÇÃO | E83: UNIDADE | F83: MÉDIA | H83: ÍNDICE RETROAÇÃO
F84: DESONERADA | G84: ONERADA
A85: 88 | B85: COTAÇÃO | C85: COT 088_SEE | D85: BOTOEIRA BOMBA DE INCÊNDIO C/ MARTELO CONVENCIONAL/ ANALÓGICA | E85: UN | F85: 63.5 | G85: 63.5
C86: EMPRESA | D86: NOME DA EMPRESA | F86: COTAÇÕES | H86: DATA COTAÇÃO
C87: E034 - VALK T... | D87: VALK TUBOS | F87: 58 | G87: 58
C88: E035 - ACIONA... | D88: ACIONAR SERVIÇOS E EQUIPAMENTOS CONTRA INCÊNDIO | F88: 67.5 | G88: 67.5
C89: E038 - CENTER... | D89: CENTER FIRE | F89: 65 | G89: 65
C92: OBSERVAÇÕES:
B94: FONTE | C94: CÓDIGO | D94: DESCRIÇÃO | E94: UNIDADE | F94: MÉDIA | H94: ÍNDICE RETROAÇÃO
F95: DESONERADA | G95: ONERADA
A96: 90 | B96: COTAÇÃO | C96: COT 090_SEE | D96: ACIONADOR MANUAL DE ALARME | E96: UN | F96: 83.33333333 | G96: 83.33333333
C97: EMPRESA | D97: NOME DA EMPRESA | F97: COTAÇÕES | H97: DATA COTAÇÃO
C98: E034 - VALK T... | D98: VALK TUBOS | F98: 120 | G98: 120
C99: E035 - ACIONA... | D99: ACIONAR SERVIÇOS E EQUIPAMENTOS CONTRA INCÊNDIO | F99: 65 | G99: 65
C100: E038 - CENTER... | D100: CENTER FIRE | F100: 65 | G100: 65
C103: OBSERVAÇÕES:
B105: FONTE | C105: CÓDIGO | D105: DESCRIÇÃO | E105: UNIDADE | F105: MÉDIA | H105: ÍNDICE RETROAÇÃO
F106: DESONERADA | G106: ONERADA
A107: 92 | B107: COTAÇÃO | C107: COT 092_SEE | D107: CENTRAL DE DETECÇÃO E ALARME DE 40 SETORES COM BATERIA (PREÇO MÉDIO) | E107: UN | F107: 963.3333333 | G107: 963.3333333
C108: EMPRESA | D108: NOME DA EMPRESA | F108: COTAÇÕES | H108: DATA COTAÇÃO
C109: E034 - VALK T... | D109: VALK TUBOS | F109: 840 | G109: 840
C110: E035 - ACIONA... | D110: ACIONAR SERVIÇOS E EQUIPAMENTOS CONTRA INCÊNDIO | F110: 980 | G110: 980
C111: E038 - CENTER... | D111: CENTER FIRE | F111: 1070 | G111: 1070
C114: OBSERVAÇÕES:
B116: FONTE | C116: CÓDIGO | D116: DESCRIÇÃO | E116: UNIDADE | F116: MÉDIA | H116: ÍNDICE RETROAÇÃO
F117: DESONERADA | G117: ONERADA
A118: 8 | B118: COTAÇÃO | C118: COT 008_SEE | D118: CONJUNTO MOTOR-BOMBA ELÉTRICA TRIFÁSICO 380/220 V PARA VZ= 24,33 M³/H, HM= 46,24 M POTÊNCIA= 7,5 CV | E118: UN | F118: 3792.666667 | G118: 3792.666667
C119: EMPRESA | D119: NOME DA EMPRESA | F119: COTAÇÕES | H119: DATA COTAÇÃO
C120: E036 - TECNOB... | D120: TECNOBOMBAS | F120: 4200 | G120: 4200 | H120: 05.02.2019
C121: E039 - ESPÍND... | D121: ESPÍNDOLA E ANDRADE LTDA-ME | F121: 3178 | G121: 3178 | H121: 05.02.2019
C122: E054 - R M D ... | D122: R M D DE SOUZA EIRELI - ME | F122: 4000 | G122: 4000 | H122: 06.02.2019
C125: OBSERVAÇÕES:
B127: FONTE | C127: CÓDIGO | D127: DESCRIÇÃO | E127: UNIDADE | F127: MÉDIA | H127: ÍNDICE RETROAÇÃO
F128: DESONERADA | G128: ONERADA
A129: 286 | B129: COTAÇÃO | C129: COT 286_SEE | D129: BUJÃO DE REBORDO 2.1/2" | E129: UN | F129: 15 | G129: 15
C130: EMPRESA | D130: NOME DA EMPRESA | F130: COTAÇÕES | H130: DATA COTAÇÃO
C131: E076 - GOIÂNI... | D131: GOIÂNIA TUBOS | F131: 15 | G131: 15 | H131: 12/04/2019
C136: OBSERVAÇÕES:
B138: FONTE | C138: CÓDIGO | D138: DESCRIÇÃO | E138: UNIDADE | F138: MÉDIA | H138: ÍNDICE RETROAÇÃO
F139: DESONERADA | G139: ONERADA
A140: 290 | B140: COTAÇÃO | C140: COT 290_SEE | D140: VÁLVULA DE ESFERA BRUTA EM METAL, BITOLA 2.1/2" | E140: UN | F140: 285.526 | G140: 285.526
C141: EMPRESA | D141: NOME DA EMPRESA | F141: COTAÇÕES | H141: DATA COTAÇÃO
C142: E034 - VALK T... | D142: VALK TUBOS | F142: 278.8 | G142: 278.8 | H142: 26/04/2019
C143: E076 - GOIÂNI... | D143: GOIÂNIA TUBOS | F143: 209.4 | G143: 209.4 | H143: 26/04/2019
C144: E081 - CASA I... | D144: CASA IRACEMA | F144: 287.1 | G144: 287.1 | H144: 26/04/2019
C145: E082 - HIDROR... | D145: HIDROREPAROS COM. DE FERR. E HIDRAULICOS | F145: 272.54 | G145: 272.54 | H145: 26/04/2019
C146: E083 - REBRAC... | D146: REBRACE COMERCIO E REPRESENTAÇÕES EIRELI | F146: 379.79 | G146: 379.79 | H146: 26/04/2019
C147: OBSERVAÇÕES:
B149: FONTE | C149: CÓDIGO | D149: DESCRIÇÃO | E149: UNIDADE | F149: MÉDIA | H149: ÍNDICE RETROAÇÃO
F150: DESONERADA | G150: ONERADA
A151: 291 | B151: COTAÇÃO | C151: COT 291_SEE | D151: FLANGE GALVANIZADA 2.1/2" | E151: UN | F151: 151.8966667 | G151: 151.8966667
C152: EMPRESA | D152: NOME DA EMPRESA | F152: COTAÇÕES | H152: DATA COTAÇÃO
C153: E081 - CASA I... | D153: CASA IRACEMA | F153: 339.39 | G153: 339.39 | H153: 26/04/2019
C154: E083 - REBRAC... | D154: REBRACE COMERCIO E REPRESENTAÇÕES EIRELI | F154: 70.12 | G154: 70.12 | H154: 26/04/2019
C155: E084 - CRS... | D155: CRS | F155: 46.18 | G155: 46.18 | H155: 26/04/2019
C158: OBSERVAÇÕES:
B160: FONTE | C160: CÓDIGO | D160: DESCRIÇÃO | E160: UNIDADE | F160: MÉDIA | H160: ÍNDICE RETROAÇÃO
F161: DESONERADA | G161: ONERADA
A162: 103 | B162: COTAÇÃO | C162: COT 103_SEE | D162: NIPLE DE REDUÇÃO 1/2" X 1/4" BSP | E162: UN | F162: 6.053333333 | G162: 6.053333333
C163: EMPRESA | D163: NOME DA EMPRESA | F163: COTAÇÕES | H163: DATA COTAÇÃO
C164: E070 - FOCO R... | D164: FOCO REPRESENTAÇÃO E CONSULTORIA LTDA-ME | F164: 4.46 | G164: 4.46 | H164: 12/02/2019
C165: E071 - CASA D... | D165: CASA DAS PEÇAS COM E INDUSTRIA DE FOGOES LTDA | F165: 3.9 | G165: 3.9 | H165: 11/02/2019
C166: E072 - AMIG I... | D166: AMIG INSTALAÇÃO DE REDE DE GÁS E INCÊNDIO | F166: 9.8 | G166: 9.8 | H166: 08/02/2019
C169: OBSERVAÇÕES:
B171: FONTE | C171: CÓDIGO | D171: DESCRIÇÃO | E171: UNIDADE | F171: MÉDIA | H171: ÍNDICE RETROAÇÃO
F172: DESONERADA | G172: ONERADA
A173: 104 | B173: COTAÇÃO | C173: COT 104_SEE | D173: NIPLE DE REDUÇÃO 3/4" X 1/2" BSP | E173: UN | F173: 9.71 | G173: 9.71
C174: EMPRESA | D174: NOME DA EMPRESA | F174: COTAÇÕES | H174: DATA COTAÇÃO
C175: E070 - FOCO R... | D175: FOCO REPRESENTAÇÃO E CONSULTORIA LTDA-ME | F175: 10.93 | G175: 10.93 | H175: 12/02/2019
C176: E071 - CASA D... | D176: CASA DAS PEÇAS COM E INDUSTRIA DE FOGOES LTDA | F176: 5.5 | G176: 5.5 | H176: 11/02/2019
C177: E072 - AMIG I... | D177: AMIG INSTALAÇÃO DE REDE DE GÁS E INCÊNDIO | F177: 12.7 | G177: 12.7 | H177: 08/02/2019
C180: OBSERVAÇÕES:
B182: FONTE | C182: CÓDIGO | D182: DESCRIÇÃO | E182: UNIDADE | F182: MÉDIA | H182: ÍNDICE RETROAÇÃO
F183: DESONERADA | G183: ONERADA
A184: 281 | B184: COTAÇÃO | C184: COT 281_SEE | D184: VÁLVULA UGV 3/4" (S) LATÃO | E184: UN | F184: 15.83666667 | G184: 15.83666667
C185: EMPRESA | D185: NOME DA EMPRESA | F185: COTAÇÕES | H185: DATA COTAÇÃO
C186: E070 - FOCO R... | D186: FOCO REPRESENTAÇÃO E CONSULTORIA LTDA-ME | F186: 12.51 | G186: 12.51 | H186: 12/02/2019
C187: E071 - CASA D... | D187: CASA DAS PEÇAS COM E INDUSTRIA DE FOGOES LTDA | F187: 17.5 | G187: 17.5 | H187: 11/02/2019
C188: E072 - AMIG I... | D188: AMIG INSTALAÇÃO DE REDE DE GÁS E INCÊNDIO | F188: 17.5 | G188: 17.5 | H188: 08/02/2019
C191: OBSERVAÇÕES:
B193: FONTE | C193: CÓDIGO | D193: DESCRIÇÃO | E193: UNIDADE | F193: MÉDIA | H193: ÍNDICE RETROAÇÃO
F194: DESONERADA | G194: ONERADA
A195: 282 | B195: COTAÇÃO | C195: COT 282_SEE | D195: VÁLVULA UGV 1/2" (S) LATÃO | E195: UN | F195: 15.16666667 | G195: 15.16666667
C196: EMPRESA | D196: NOME DA EMPRESA | F196: COTAÇÕES | H196: DATA COTAÇÃO
C197: E070 - FOCO R... | D197: FOCO REPRESENTAÇÃO E CONSULTORIA LTDA-ME | F197: 11.2 | G197: 11.2 | H197: 12/02/2019
C198: E071 - CASA D... | D198: CASA DAS PEÇAS COM E INDUSTRIA DE FOGOES LTDA | F198: 17.5 | G198: 17.5 | H198: 11/02/2019
C199: E072 - AMIG I... | D199: AMIG INSTALAÇÃO DE REDE DE GÁS E INCÊNDIO | F199: 16.8 | G199: 16.8 | H199: 08/02/2019
C202: OBSERVAÇÕES:
B204: FONTE | C204: CÓDIGO | D204: DESCRIÇÃO | E204: UNIDADE | F204: MÉDIA | H204: ÍNDICE RETROAÇÃO
F205: DESONERADA | G205: ONERADA
A206: 102 | B206: COTAÇÃO | C206: COT 102_SEE | D206: REGULADOR DE 2º ESTÁGIO 5KG/H | E206: UN | F206: 59.83333333 | G206: 59.83333333
C207: EMPRESA | D207: NOME DA EMPRESA | F207: COTAÇÕES | H207: DATA COTAÇÃO
C208: E070 - FOCO R... | D208: FOCO REPRESENTAÇÃO E CONSULTORIA LTDA-ME | F208: 38.9 | G208: 38.9 | H208: 12/02/2019
C209: E071 - CASA D... | D209: CASA DAS PEÇAS COM E INDUSTRIA DE FOGOES LTDA | F209: 55.6 | G209: 55.6 | H209: 11/02/2019
C210: E072 - AMIG I... | D210: AMIG INSTALAÇÃO DE REDE DE GÁS E INCÊNDIO | F210: 85 | G210: 85 | H210: 08/02/2019
C213: OBSERVAÇÕES: | D213: AMIG enviou cotação de regulador de 2º estágio de 12kg/h.
B215: FONTE | C215: CÓDIGO | D215: DESCRIÇÃO | E215: UNIDADE | F215: MÉDIA | H215: ÍNDICE RETROAÇÃO
F216: DESONERADA | G216: ONERADA
A217: 101 | B217: COTAÇÃO | C217: COT 101_SEE | D217: REGULADOR DE 1º ESTÁGIO 60KG/H MODELO AP-40 COM MANÔMETRO | E217: UN | F217: 205.5766667 | G217: 205.5766667
C218: EMPRESA | D218: NOME DA EMPRESA | F218: COTAÇÕES | H218: DATA COTAÇÃO
C219: E070 - FOCO R... | D219: FOCO REPRESENTAÇÃO E CONSULTORIA LTDA-ME | F219: 148.73 | G219: 148.73 | H219: 12/02/2019
C220: E071 - CASA D... | D220: CASA DAS PEÇAS COM E INDUSTRIA DE FOGOES LTDA | F220: 198 | G220: 198 | H220: 11/02/2019
C221: E072 - AMIG I... | D221: AMIG INSTALAÇÃO DE REDE DE GÁS E INCÊNDIO | F221: 270 | G221: 270 | H221: 08/02/2019
C224: OBSERVAÇÕES:
